Department Family,Entity,Date of Payment,Expense Type,Expense Area,Supplier,Voluntary & Community Sector,SME Class,Sole Trader,Transaction number,Narrative,Postal Code,Amount in Sterling,Grant?
Communities & Local Government,DCLG,01/05/2012,Advertising,Finance & Corporate Services,RKCR/Y&R,,Micro,,5106178498,Fire Kills - producing variation on main advert,NW1 7QP,"4,385.00",
Communities & Local Government,DCLG,01/05/2012,Cap Grants to Local Authorities (DEL),Localism,AVON FIRE AUTHORITY,,Large,,5000199624,Grant Payable by Exchequer,BS1 6EU,"1,496,959.00",Yes
Communities & Local Government,DCLG,01/05/2012,Cap Grants to Local Authorities (DEL),Localism,BEDS & LUTON FIRE & RESCUE SERVICE,,Medium,,5000199599,Grant Payable by Exchequer,MK42 7NR,"1,058,191.00",Yes
Communities & Local Government,DCLG,01/05/2012,Cap Grants to Local Authorities (DEL),Localism,BUCKS & MILTON KEYNES FIRE AUTH,,,,5000199577,Grant Payable by Exchequer,HP20 1BD,"1,171,506.00",Yes
Communities & Local Government,DCLG,01/05/2012,Cap Grants to Local Authorities (DEL),Localism,CAMBS & PETERBOROUGH FIRE AUTHORITY,,,,5000199591,Grant Payable by Exchequer,PE29 2NA,"1,217,028.00",Yes
Communities & Local Government,DCLG,01/05/2012,Cap Grants to Local Authorities (DEL),Localism,CHESHIRE FIRE AUTHORITY,,,,5000199589,Grant Payable by Exchequer,CW7 2FQ,"1,416,403.00",Yes
Communities & Local Government,DCLG,01/05/2012,Cap Grants to Local Authorities (DEL),Localism,CLEVELAND FIRE AUTHORITY,,Medium,,5000199583,Grant Payable by Exchequer,TS25 5TB,"1,011,605.00",Yes
Communities & Local Government,DCLG,01/05/2012,Cap Grants to Local Authorities (DEL),Localism,CORNWALL COUNTY FIRE BRIGADE,,,,5000199632,Grant Payable by Exchequer,TR1 3AY,"986,067.00",Yes
Communities & Local Government,DCLG,01/05/2012,Cap Grants to Local Authorities (DEL),Localism,COUNTY DURHAM & DARLINGTON,,,,5000199607,Grant Payable by Exchequer,DH1 5UE,"1,055,357.00",Yes
Communities & Local Government,DCLG,01/05/2012,Cap Grants to Local Authorities (DEL),Localism,CUMBRIA COUNTY COUNCIL,,,,5000199634,Grant Payable by Exchequer,CA3 8NA,"948,855.00",Yes
Communities & Local Government,DCLG,01/05/2012,Cap Grants to Local Authorities (DEL),Localism,DERBYSHIRE FIRE AUTHORITY,,,,5000199609,Grant Payable by Exchequer,DE55 1RH,"1,417,575.00",Yes
Communities & Local Government,DCLG,01/05/2012,Cap Grants to Local Authorities (DEL),Localism,DEVON & SOMERSET FIRE & RESCUE SERV,,Large,,5000199597,Grant Payable by Exchequer,EX3 0NW,"2,014,594.00",Yes
Communities & Local Government,DCLG,01/05/2012,Cap Grants to Local Authorities (DEL),Localism,DORSET FIRE AUTHORITY,,Large,,5000199612,Grant Payable by Exchequer,DT1 1FB,"1,149,236.00",Yes
Communities & Local Government,DCLG,01/05/2012,Cap Grants to Local Authorities (DEL),Localism,EAST SUSSEX FIRE AUTHORITY,,Large,,5000199620,Grant Payable by Exchequer,BN21 1EU,"1,203,026.00",Yes
Communities & Local Government,DCLG,01/05/2012,Cap Grants to Local Authorities (DEL),Localism,ESSEX FIRE AUTHORITY,,Large,,5000199579,Grant Payable by Exchequer,CM8 3HB,"2,078,045.00",Yes
Communities & Local Government,DCLG,01/05/2012,Cap Grants to Local Authorities (DEL),Localism,GLOUCESTERSHIRE COUNTY COUNCIL,,,,5000199636,Grant Payable by Exchequer,GL2 2AX,"1,038,904.00",Yes
Communities & Local Government,DCLG,01/05/2012,Cap Grants to Local Authorities (DEL),Localism,GREATER LONDON AUTHORITY (RSG),,Large,,5000199561,Grant Payable by Exchequer,SE10 1AJ,"7,605,022.00",Yes
Communities & Local Government,DCLG,01/05/2012,Cap Grants to Local Authorities (DEL),Localism,GREATER MANCHESTER FIRE (RSG),,,,5000199563,Grant Payable by Exchequer,M27 2US,"2,887,404.00",Yes
Communities & Local Government,DCLG,01/05/2012,Cap Grants to Local Authorities (DEL),Localism,HAMPSHIRE FIRE & RESCUE AUTHORITY,,Large,,5000199614,Grant Payable by Exchequer,SO23 8UB,"2,083,196.00",Yes
Communities & Local Government,DCLG,01/05/2012,Cap Grants to Local Authorities (DEL),Localism,HEREFORD WORCESTER FIRE BRIGADE,,Large,,5000199601,Grant Payable by Exchequer,WR1 2HQ,"1,168,922.00",Yes
Communities & Local Government,DCLG,01/05/2012,Cap Grants to Local Authorities (DEL),Localism,HERTFORDSHIRE CC,,,,5000199638,Grant Payable by Exchequer,SG13 8TN,"1,505,595.00",Yes
Communities & Local Government,DCLG,01/05/2012,Cap Grants to Local Authorities (DEL),Localism,HUMBERSIDE FIRE & RESCUE SERVICE,,,,5000199585,Grant Payable by Exchequer,HU4 7BB,"1,336,457.00",Yes
Communities & Local Government,DCLG,01/05/2012,Cap Grants to Local Authorities (DEL),Localism,ISLE OF SCILLY FIRE AND RESCUE SERV,,,,5000199626,Grant Payable by Exchequer,TR21 0NG,"75,000.00",Yes
Communities & Local Government,DCLG,01/05/2012,Cap Grants to Local Authorities (DEL),Localism,ISLE OF WIGHT COUNCIL,,,,5000199640,Grant Payable by Exchequer,PO30 1UD,"627,562.00",Yes
Communities & Local Government,DCLG,01/05/2012,Cap Grants to Local Authorities (DEL),Localism,KENT & MEDWAY TOWNS FIRE AUTHORITY,,Large,,5000199587,Grant Payable by Exchequer,ME15 6XB,"2,029,127.00",Yes
Communities & Local Government,DCLG,01/05/2012,Cap Grants to Local Authorities (DEL),Localism,LANCASHIRE COMBINED FIRE AUTHORITY,,Large,,5000199605,Grant Payable by Exchequer,PR2 3LH,"1,815,910.00",Yes
Communities & Local Government,DCLG,01/05/2012,Cap Grants to Local Authorities (DEL),Localism,LEICS LEICESTERSHIRE RUTLAND CFA,,,,5000199618,Grant Payable by Exchequer,LE3 8HD,"1,402,465.00",Yes
Communities & Local Government,DCLG,01/05/2012,Cap Grants to Local Authorities (DEL),Localism,LINCOLNSHIRE CC- FIRE AND RESCUE,,,,5000199642,Grant Payable by Exchequer,LN1 1YQ,"1,138,310.00",Yes
Communities & Local Government,DCLG,01/05/2012,Cap Grants to Local Authorities (DEL),Localism,MERSEYSIDE FIRE & RESCUE SERVICE,,,,5000199565,Grant Payable by Exchequer,L30 4YD,"1,728,865.00",Yes
Communities & Local Government,DCLG,01/05/2012,Cap Grants to Local Authorities (DEL),Localism,NORFOLK COUNTY COUNCIL,,,,5000199644,Grant Payable by Exchequer,NR1 2DH,"1,282,984.00",Yes
Communities & Local Government,DCLG,01/05/2012,Cap Grants to Local Authorities (DEL),Localism,NORTH YORKSHIRE FIRE & RESCUE AUTH,,Large,,5000199622,Grant Payable by Exchequer,DL6 2ND,"1,228,332.00",Yes
Communities & Local Government,DCLG,01/05/2012,Cap Grants to Local Authorities (DEL),Localism,NORTHAMPTONSHIRE CC,,,,5000199646,Grant Payable by Exchequer,NN1 1AX,"1,124,065.00",Yes
Communities & Local Government,DCLG,01/05/2012,Cap Grants to Local Authorities (DEL),Localism,NORTHUMBERLAND FIRE & RESCUE SERV,,,,5000199630,Grant Payable by Exchequer,NE23 3JP,"783,278.00",Yes
Communities & Local Government,DCLG,01/05/2012,Cap Grants to Local Authorities (DEL),Localism,NOTTS & CITY NOTTINGHAM FIRE AUTH,,Large,,5000199595,Grant Payable by Exchequer,NG5 8PD,"1,486,588.00",Yes
Communities & Local Government,DCLG,01/05/2012,Cap Grants to Local Authorities (DEL),Localism,OXFORDSHIRE CC,,,,5000199648,Grant Payable by Exchequer,OX1 1SD,"1,089,020.00",Yes
Communities & Local Government,DCLG,01/05/2012,Cap Grants to Local Authorities (DEL),Localism,ROYAL BERKSHIRE FIRE AUTHORITY,,,,5000199581,Grant Payable by Exchequer,RG30 4FS,"1,285,576.00",Yes
Communities & Local Government,DCLG,01/05/2012,Cap Grants to Local Authorities (DEL),Localism,SHROPSHIRE & WREKIN FIRE AUTHORITY,,,,5000199616,Grant Payable by Exchequer,SY1 2HJ,"914,026.00",Yes
Communities & Local Government,DCLG,01/05/2012,Cap Grants to Local Authorities (DEL),Localism,SOUTH YORKSHIRE FIRE & CD (RSG),,,,5000199567,Grant Payable by Exchequer,S1 3FG,"1,706,069.00",Yes
Communities & Local Government,DCLG,01/05/2012,Cap Grants to Local Authorities (DEL),Localism,STAFFORDSHIRE  FIRE & RESCUE SERV,,,,5000199593,Grant Payable by Exchequer,ST15 0BS,"1,472,764.00",Yes
Communities & Local Government,DCLG,01/05/2012,Cap Grants to Local Authorities (DEL),Localism,SUFFOLK COUNTY CNCL (RSG),,,,5000199569,Grant Payable by Exchequer,IP4 2JP,"1,153,294.00",Yes
Communities & Local Government,DCLG,01/05/2012,Cap Grants to Local Authorities (DEL),Localism,SURREY COUNTY COUNCIL,,,,5000199650,Grant Payable by Exchequer,KT1 1AB,"1,523,574.00",Yes
Communities & Local Government,DCLG,01/05/2012,Cap Grants to Local Authorities (DEL),Localism,TYNE & WEAR FIRE AUTHORITY (RSG),,,,5000199571,Grant Payable by Exchequer,SR2 7DN,"1,516,495.00",Yes
Communities & Local Government,DCLG,01/05/2012,Cap Grants to Local Authorities (DEL),Localism,W YORKSHIRE FIRE & RESCUE AUTH (RSG,,,,5000199573,Grant Payable by Exchequer,BD11 2DY,"2,542,516.00",Yes
Communities & Local Government,DCLG,01/05/2012,Cap Grants to Local Authorities (DEL),Localism,WARWICKSHIRE CC,,,,5000199652,Grant Payable by Exchequer,CV35 7DP,"986,655.00",Yes
Communities & Local Government,DCLG,01/05/2012,Cap Grants to Local Authorities (DEL),Localism,WEST MIDLANDS FIRE & CIVIL DEFENCE,,,,5000199575,Grant Payable by Exchequer,B4 7DE,"2,910,769.00",Yes
Communities & Local Government,DCLG,01/05/2012,Cap Grants to Local Authorities (DEL),Localism,WEST SUSSEX FIRE AND RESCUE SERVICE,,,,5000199628,Grant Payable by Exchequer,PO19 1RG,"1,226,104.00",Yes
Communities & Local Government,DCLG,01/05/2012,Cap Grants to Local Authorities (DEL),Localism,WILTSHIRE & SWINDON FIRE AUTHORITY,,Large,,5000199603,Grant Payable by Exchequer,SN10 5PP,"1,100,705.00",Yes
Communities & Local Government,DCLG,01/05/2012,Cap Grants to Local Authorities (DEL),Neighbourhoods,TAUNTON DEANE BC,,,,5000196140,Overpayment of Grant recovered by Exchequer,TA1 1HE,"-2,931.00",Yes
Communities & Local Government,DCLG,01/05/2012,Capital Grants to People Non Profit,Neighbourhoods,COALFIELDS REGENERATION TRUST,Yes,Small,,2100216802,CRT -Claim for Qtr1 2012/13,S63 7WX,"437,302.00",Yes
Communities & Local Government,DCLG,01/05/2012,Capital Grants to Private Sect Non Profit,Localism,CFOA (NATIONAL RESILIANCE) LTD,,Small,,2100216803,CNR Grant 2012-13 - 1st Half,GL56 0RH,"750,000.00",Yes
Communities & Local Government,DCLG,01/05/2012,Current Grants to Non Profit Bodies,Localism,CFOA (NATIONAL RESILIANCE) LTD,,Small,,2100216803,CNR Grant 2012-13 - 1st Half,GL56 0RH,"2,127,500.00",Yes
Communities & Local Government,DCLG,01/05/2012,Current Grants to Non Profit Bodies,Neighbourhoods,COALFIELDS REGENERATION TRUST,Yes,Small,,2100216802,CRT -Claim for Qtr1 2012/13,S63 7WX,"1,218,115.00",Yes
Communities & Local Government,DCLG,01/05/2012,Fixed Maintenance,Localism,NORWOOD ELECTRICAL (UK) LTD,,Small,,5106178478,FEU portable appliance safety testing,LE11 3AB,437.00,
Communities & Local Government,DCLG,01/05/2012,Fixed Maintenance,Localism,VT FLAGSHIP INFRASTRUCTURE,,Large,,5106178457,Catalogue Services 11/12,BS3 2HQ,"4,598.56",
Communities & Local Government,DCLG,01/05/2012,Research,Neighbourhoods,FRASER ASSOCIATES LIMITED,,Micro,,5106178477,ERDF Investment Framework Review & Re Qu,G2 4JR,"2,136.00",
Communities & Local Government,DCLG,01/05/2012,Training,Finance & Corporate Services,FAIRPLACE LIMITED,,Medium,,5106178511,Restructuring Support Workshops,EC3V 3PQ,600.00,
Communities & Local Government,DCLG,01/05/2012,Training,Finance & Corporate Services,KNOWLEDGE ACADEMY LTD,,Small,,5106178490,Certified Tester Foundation Course (IT),SL4 4RU,599.00,
Communities & Local Government,DCLG,01/05/2012,Training,Finance & Corporate Services,LGG LIMITED,,Micro,,5106178476,Stage One Management Course (LON),RH12 1TL,860.00,
Communities & Local Government,DCLG,01/05/2012,Travel and Subsistence Account,Finance & Corporate Services,GOVERNMENT CAR & DESPATCH AGENCY,,Public Bodies,,5106178482,Ministerial Cars,SW8 5AX,837.00,
Communities & Local Government,DCLG,01/05/2012,Vehicle hire,Finance & Corporate Services,GOVERNMENT CAR & DESPATCH AGENCY,,Public Bodies,,5106178510,Ministerial Cars,SW8 5AX,360.00,
Communities & Local Government,DCLG,01/05/2012,Work In Progress Pre-Cert 40373 Spend,Neighbourhoods,CHESHIRE WEST & CHESTER COUNCIL,,,,7600001494,ERDF Claim - 10 - P4-NW,CH1 2NP,"21,673.26",
Communities & Local Government,DCLG,01/05/2012,Work In Progress Pre-Cert 40373 Spend,Neighbourhoods,CHESHIRE WEST & CHESTER COUNCIL,,,,7600001495,ERDF Claim - 11 - P4-NW,CH1 2NP,"19,746.07",
Communities & Local Government,DCLG,01/05/2012,Work In Progress Pre-Cert 40373 Spend,Neighbourhoods,CHESHIRE WEST & CHESTER COUNCIL,,,,7600001502,ERDF Claim - 9 - P4-NW,CH1 2NP,"21,427.09",
Communities & Local Government,DCLG,01/05/2012,Work In Progress Pre-Cert 40373 Spend,Neighbourhoods,CHESHIRE WEST & CHESTER COUNCIL,,,,7600001504,ERDF Claim - 13 - P5-NW,CH1 2NP,"11,638.62"
Communities & Local Government,DCLG,01/05/2012,Work In Progress Pre-Cert 40373 Spend,Neighbourhoods,GLOUCESTERSHIRE UNIVERSITY,,,,7600001508,ERDF Claim - 12 - P1,GL50 2RH,"145,696.63"
Communities & Local Government,DCLG,01/05/2012,Work In Progress Pre-Cert 40373 Spend,Neighbourhoods,MERSEY PARTNERSHIP,,,,7600001500,ERDF Claim - 8 - P1-MS,L3 1BG,"55,064.37"
Communities & Local Government,DCLG,01/05/2012,Work In Progress Pre-Cert 40373 Spend,Neighbourhoods,NEWCASTLE UNIVERSITY,,,,7600001512,ERDF Claim - 10 - P1,NE1 7RU,"67,764.87"
Communities & Local Government,DCLG,01/05/2012,Work In Progress Pre-Cert 40373 Spend,Neighbourhoods,NORTH WEST AEROSPACE ALLIANCE,,,,7600001501,ERDF Claim - 25 - P1-NW,BB9 9BT,"83,573.67"
Communities & Local Government,DCLG,01/05/2012,Work In Progress Pre-Cert 40373 Spend,Neighbourhoods,UNIVERSITY COLLEGE FALMOUTH,,,,7600001507,ERDF Claim - 12 - P3,TR11 4RH,"84,190.15"
Communities & Local Government,DCLG,01/05/2012,Work In Progress Pre-Cert 40373 Spend,Neighbourhoods,UNIVERSITY OF EXETER,,,,7600001511,ERDF Claim - 10 - P1,EX4 4QJ,"120,518.64"
Communities & Local Government,DCLG,01/05/2012,Work In Progress Pre-Cert 40373 Spend,Neighbourhoods,WSX ENTERPRISE,,Small,,7600001506,ERDF Claim - 17 - P1,PO16 7BJ,"15,219.38"
Communities & Local Government,DCLG,01/05/2012,Work In Progress Pre-Cert 40467 Spend,Neighbourhoods,BALTIC CREATIVE CIC,,,,7600001496,ERDF Claim - 33 - P4-MS,L1 0BP,"79,502.35"
Communities & Local Government,DCLG,01/05/2012,Work In Progress Pre-Cert 40467 Spend,Neighbourhoods,BALTIC CREATIVE CIC,,,,7600001497,ERDF Claim - 34 - P4-MS,L1 0BP,"65,343.42"
Communities & Local Government,DCLG,01/05/2012,Work In Progress Pre-Cert 40467 Spend,Neighbourhoods,BARNFIELD CENTRIC LTD,,,,7600001503,ERDF Claim - 7 - P4-NW,BB9 5SP,"189,549.40"
Communities & Local Government,DCLG,01/05/2012,Work In Progress Pre-Cert 40467 Spend,Neighbourhoods,BORLASE SMART JOHN WELLS TRUST LTD,,,,7600001510,ERDF Claim - 12 - P2,TR11 5JZ,"69,043.35"
Communities & Local Government,DCLG,01/05/2012,Work In Progress Pre-Cert 40467 Spend,Neighbourhoods,MANCHESTER CITY COUNCIL,,,,7600001498,ERDF Claim - 3 - P4-NW,M60 2JR,"1,627,621.27"
Communities & Local Government,DCLG,01/05/2012,Work In Progress Pre-Cert 40467 Spend,Neighbourhoods,MERSEYSIDE ESTATES LTD,,Large,,7600001505,ERDF Claim - 10 - P4-MS,L2 5QQ,"106,870.68"
Communities & Local Government,DCLG,01/05/2012,Work In Progress Pre-Cert 40467 Spend,Neighbourhoods,MERSEYTRAVEL,,,,7600001499,ERDF Claim - 4 - P3-MS,L3 2AN,"267,714.87"
Communities & Local Government,DCLG,01/05/2012,Work In Progress Pre-Cert 40467 Spend,Neighbourhoods,PRACTICAL DEVELOPMENTS (SOUTH WEST),,,,7600001509,ERDF Claim - 33 - P4,TR15 1SS,"67,081.37"
Communities & Local Government,DCLG,01/05/2012,Work In Progress Pre-Cert 40467 Spend,Neighbourhoods,UNIVERSITY OF EXETER,,,,7600001511,ERDF Claim - 10 - P1,EX4 4QJ,"97,145.16",
Communities & Local Government,DCLG,02/05/2012,Agency Staff,Finance & Corporate Services,CAPITA RESOURCING LTD,,Large,,5106178528,Interim contractor,SL6 1DP,"3,346.20",
Communities & Local Government,DCLG,02/05/2012,Agency Staff,Finance & Corporate Services,CAPITA RESOURCING LTD,,Large,,5106178529,Transition Accountant,SL6 1DP,"6,115.20",
Communities & Local Government,DCLG,02/05/2012,Agency Staff,Finance & Corporate Services,CAPITA RESOURCING LTD,,Large,,5106178535,CPD 0492030 Capita MSP,SL6 1DP,"2,882.88",
Communities & Local Government,DCLG,02/05/2012,Agency Staff,Finance & Corporate Services,MICHAEL PAGE INTERNATIONAL,,Large,,5106178538,Interim Internal Audit,SL1 3SA,"1,929.48",
Communities & Local Government,DCLG,02/05/2012,Agency Staff,Localism,CAPITA RESOURCING LTD,,Large,,5106178533,Temporary Staff,SL6 1DP,"10,712.26",
Communities & Local Government,DCLG,02/05/2012,Agency Staff,Neighbourhoods,CAPITA RESOURCING LTD,,Large,,5106178527,DayRate ERREG2 Seas-Territorial,SL6 1DP,"1,044.00",
Communities & Local Government,DCLG,02/05/2012,Agency Staff,Neighbourhoods,CAPITA RESOURCING LTD,,Large,,5106178540,DayRate INTERREG 2Seas-Territorial Facil,SL6 1DP,"1,164.14",
Communities & Local Government,DCLG,02/05/2012,Fees,Localism,BARONESS HELEN NEWLOVE,,,,2100217057,FEES+ERS,,"2,691.46",
Communities & Local Government,DCLG,02/05/2012,Fees,Neighbourhoods,MS P MACLACHLAN,,,,2100217056,FEES,,"5,777.35",
Communities & Local Government,DCLG,02/05/2012,Grant in Aid to NDPBs (non budget),Neighbourhoods,HOMES & COMMUNITIES AGENCY,,Public Bodies,,2100217053,HCA Claim 4,NE11 0NA,"9,468,498.00",Yes
Communities & Local Government,DCLG,02/05/2012,Housing Revenue Account Surplus,Neighbourhoods,ISLINGTON LB,,,,5000186497,Overpayment of Grant recovered by Exchequer,N1 1XR,"-2,405.00",Yes
Communities & Local Government,DCLG,02/05/2012,Housing Revenue Account Surplus,Neighbourhoods,ISLINGTON LB,,,,5000192092,Overpayment of Grant recovered by Exchequer,N1 1XR,"-197,481.00",Yes
Communities & Local Government,DCLG,02/05/2012,IT Consultancy,Finance & Corporate Services,GARTNER UK LTD,,Large,,5106178514,Benchmarking,TW20 9AW,"59,820.00",
Communities & Local Government,DCLG,02/05/2012,Professional services,Finance & Corporate Services,GVA GRIMLEY LTD,,Large,,5106178518,PAMU QEII Valuation,B1 2JB,"16,800.00",
Communities & Local Government,DCLG,02/05/2012,Professional services,Neighbourhoods,MR R S MILNE,,,,2100216971,FEES,,"1,133.00",
Communities & Local Government,DCLG,02/05/2012,Professional services,Neighbourhoods,MS E M COCHRANE,,,,2100216970,FEES+VAT,,"1,359.60"
Communities & Local Government,DCLG,02/05/2012,Professional services,Neighbourhoods,VALUATION OFFICE AGENCY,,Public Bodies,,5106178023,Financial Checks/Fees 2011/12,W1B 5BU,"3,000.00"
Communities & Local Government,DCLG,02/05/2012,Publications,Finance & Corporate Services,JONES YARRELL LEADENHALL LTD,,Large,,5106178554,Annual Magazine/Newspaper costs - Comms,E3 3JH,"1,171.91"
Communities & Local Government,DCLG,02/05/2012,Publications,Finance & Corporate Services,JONES YARRELL LEADENHALL LTD,,Large,,5106178560,Journal and newspaper supply 2012-13,E3 3JH,328.34
Communities & Local Government,DCLG,02/05/2012,Rates,Finance & Corporate Services,NEWCASTLE CITY COUNCIL,,Public Bodies,,5106178544,CityGate Annual Bid Levy Rates 2012/13,NE1 8PA,"13,250.00"
Communities & Local Government,DCLG,02/05/2012,Research,Neighbourhoods,BUILDING RESEARCH ESTABLISHMENT,,Large,,5106178329,Technical Support on the Constructive Pr,WD25 9XX,"25,237.50"
Communities & Local Government,DCLG,02/05/2012,Security,Finance & Corporate Services,SIEMENS FINANCIAL SERVICES LTD,,Large,,5106178543,77 PCQ Rental & Service 2012/13,SL2 4JS,721.00
Communities & Local Government,DCLG,02/05/2012,Telephone call costs,Finance & Corporate Services,DAMOVO UK LTD,,Large,,5106178545,Telephony Charges,RH12 4QP,"7,345.44"
Communities & Local Government,DCLG,02/05/2012,Travel and Subsistence Account,Neighbourhoods,MS P MACLACHLAN,,,,2100217056,FEES & EXPENSES,,829.43
Communities & Local Government,DCLG,02/05/2012,Work In Progress Pre-Cert 40373 Spend,Neighbourhoods,ART (ASTON REINVESTMENT TRUST),,Small,,7600001517,ERDF Claim - 10 - P2,B6 4EA,"1,250.00"
Communities & Local Government,DCLG,02/05/2012,Work In Progress Pre-Cert 40373 Spend,Neighbourhoods,ASTON UNIVERSITY,,Large,,7600001521,ERDF Claim - 26 - P1,B4 7ET,"6,398.24"
Communities & Local Government,DCLG,02/05/2012,Work In Progress Pre-Cert 40373 Spend,Neighbourhoods,BIRMINGHAM CHAMBER OF COMMERCE,,Small,,7600001528,ERDF Claim - 23 - P2,B15 3BU,"4,895.91"
Communities & Local Government,DCLG,02/05/2012,Work In Progress Pre-Cert 40373 Spend,Neighbourhoods,CERAMIC INDUSTRY FORUM,,Small,,7600001520,ERDF Claim - 29 - P2,ST4 2SA,"43,690.20"
Communities & Local Government,DCLG,02/05/2012,Work In Progress Pre-Cert 40373 Spend,Neighbourhoods,COVENTRY UNIVERSITY,,Large,,7600001527,ERDF Claim - 7 - P1,CV1 5FB,"8,430.24"
Communities & Local Government,DCLG,02/05/2012,Work In Progress Pre-Cert 40373 Spend,Neighbourhoods,COVENTRY UNIVERSITY ENTERPRISES LTD,,Medium,,7600001515,ERDF Claim - 2 - P1,CV1 2TT,"6,744.60"
Communities & Local Government,DCLG,02/05/2012,Work In Progress Pre-Cert 40373 Spend,Neighbourhoods,COVENTRY UNIVERSITY ENTERPRISES LTD,,Medium,,7600001523,ERDF Claim - 4 - P2,CV1 2TT,"16,231.34"
Communities & Local Government,DCLG,02/05/2012,Work In Progress Pre-Cert 40373 Spend,Neighbourhoods,COVENTRY UNIVERSITY ENTERPRISES LTD,,Medium,,7600001524,ERDF Claim - 27 - P4,CV1 2TT,"5,652.53"
Communities & Local Government,DCLG,02/05/2012,Work In Progress Pre-Cert 40373 Spend,Neighbourhoods,COVENTRY UNIVERSITY ENTERPRISES LTD,,Medium,,7600001525,ERDF Claim - 7 - P2,CV1 2TT,"50,600.56"
Communities & Local Government,DCLG,02/05/2012,Work In Progress Pre-Cert 40373 Spend,Neighbourhoods,HEART OF ENGLAND FINE FOODS,,Small,,7600001514,ERDF Claim - 35 - P2,SY1 3TG,"13,408.69"
Communities & Local Government,DCLG,02/05/2012,Work In Progress Pre-Cert 40373 Spend,Neighbourhoods,HEART OF ENGLAND FINE FOODS,,Small,,7600001516,ERDF Claim - 36 - P2,SY1 3TG,"14,063.18"
Communities & Local Government,DCLG,02/05/2012,Work In Progress Pre-Cert 40373 Spend,Neighbourhoods,HEART OF ENGLAND FINE FOODS,,Small,,7600001529,ERDF Claim - 37 - P2,SY1 3TG,"21,486.34"
Communities & Local Government,DCLG,02/05/2012,Work In Progress Pre-Cert 40373 Spend,Neighbourhoods,INTERNATIONAL SYNERGIES LTD,,Small,,7600001519,ERDF Claim - 25 - P2,B30 3ES,"20,027.81"
Communities & Local Government,DCLG,02/05/2012,Work In Progress Pre-Cert 40373 Spend,Neighbourhoods,MIDLANDS AEROSPACE ALLIANCE LTD,,Small,,7600001513,ERDF Claim - 32 - P1,CV3 2TX,"18,608.31"
Communities & Local Government,DCLG,02/05/2012,Work In Progress Pre-Cert 40373 Spend,Neighbourhoods,RTC NORTH LTD,,,,7600001522,ERDF Claim - 2 - P1,SR5 3HD,"72,005.29"
Communities & Local Government,DCLG,02/05/2012,Work In Progress Pre-Cert 40373 Spend,Neighbourhoods,WASTE & RESOURCES ACTION PROG'M,,Small,,7600001518,ERDF Claim - 13 - P2,OX16 0AH,"7,303.63"
Communities & Local Government,DCLG,02/05/2012,Work In Progress Pre-Cert 40467 Spend,Neighbourhoods,ART (ASTON REINVESTMENT TRUST),,Small,,7600001517,ERDF Claim - 10 - P2,B6 4EA,"58,912.50"
Communities & Local Government,DCLG,02/05/2012,Work In Progress Pre-Cert 40467 Spend,Neighbourhoods,ART (ASTON REINVESTMENT TRUST),,Small,,7600001531,ERDF Claim - 11 - P2,B6 4EA,"24,325.00"
Communities & Local Government,DCLG,02/05/2012,Work In Progress Pre-Cert 40467 Spend,Neighbourhoods,ASTON UNIVERSITY,,Large,,7600001521,ERDF Claim - 26 - P1,B4 7ET,"1,763.23"
Communities & Local Government,DCLG,02/05/2012,Work In Progress Pre-Cert 40467 Spend,Neighbourhoods,COVENTRY UNIVERSITY,,Large,,7600001526,ERDF Claim - 6 - P1,CV1 5FB,"428,843.34"
Communities & Local Government,DCLG,02/05/2012,Work In Progress Pre-Cert 40467 Spend,Neighbourhoods,COVENTRY UNIVERSITY,,Large,,7600001527,ERDF Claim - 7 - P1,CV1 5FB,"40,959.70"
Communities & Local Government,DCLG,02/05/2012,Work In Progress Pre-Cert 40467 Spend,Neighbourhoods,WASTE & RESOURCES ACTION PROG'M,,Small,,7600001518,ERDF Claim - 13 - P2,OX16 0AH,"27,303.63"
Communities & Local Government,DCLG,03/05/2012,Agency Staff,Finance & Corporate Services,CAPITA RESOURCING LTD,,Large,,5106178525,Interim Contractor,SL6 1DP,"8,561.28"
Communities & Local Government,DCLG,03/05/2012,Agency Staff,Finance & Corporate Services,CAPITA RESOURCING LTD,,Large,,5106178536,Interim - CPD,SL6 1DP,"2,059.20",
Communities & Local Government,DCLG,03/05/2012,Agency Staff,Finance & Corporate Services,CAPITA RESOURCING LTD,,Large,,5106178539,CPD 0492030 Capita MSP,SL6 1DP,"5,980.28",
Communities & Local Government,DCLG,03/05/2012,Courier Services,Finance & Corporate Services,TAYLOR WOODROW CONSTRUCTION,,Large,,5106178515,Rivergate Postal Jan-Sep12,WD24 4WW,"3,838.71",
Communities & Local Government,DCLG,03/05/2012,Current (non AEF) Grants to Local Authorities,Localism,BIRMINGHAM CITY COUNCIL,,Public Bodies,,2100217089,Co-ordination of Neighbourhood Community Budgets,B1 1BB,"148,500.00",Yes
Communities & Local Government,DCLG,03/05/2012,Current Grants to Non Profit Bodies,Localism,MITZVAH DAY UK,Yes,Micro,,2100217088,Supporting faith communities Year of Service,NW6 1SD,"35,000.00",Yes
Communities & Local Government,DCLG,03/05/2012,Current Grants to Non Profit Bodies,Troubled Families,INTERFACE ASSOICATES UK LTD,,Micro,,2100217058,Provide Expertise to families with comp,NR2 3PG,"130,110.00",Yes
Communities & Local Government,DCLG,03/05/2012,Domestic Services,Finance & Corporate Services,TAYLOR WOODROW CONSTRUCTION,,Large,,5106178515,Rivergate Cleaning Jan-Sep12,WD24 4WW,"9,285.56",
Communities & Local Government,DCLG,03/05/2012,Facilities Management (ISD use only),Finance & Corporate Services,TAYLOR WOODROW CONSTRUCTION,,Large,,5106178515,Rivergate Helpdesk Jan-Sep12,WD24 4WW,676.51,
Communities & Local Government,DCLG,03/05/2012,Facilities Management (ISD use only),Finance & Corporate Services,TAYLOR WOODROW CONSTRUCTION,,Large,,5106178515,Rivergate Management Jan-Sep12,WD24 4WW,"6,957.18",
Communities & Local Government,DCLG,03/05/2012,Facilities Management (ISD use only),Finance & Corporate Services,TAYLOR WOODROW CONSTRUCTION,,Large,,5106178515,Rivergate Reprographics Jan-Sep12,WD24 4WW,"2,700.18",
Communities & Local Government,DCLG,03/05/2012,Fixed Maintenance,Finance & Corporate Services,TAYLOR WOODROW CONSTRUCTION,,Large,,5106178515,Rivergate PPM & Reactive Maintenance Jan,WD24 4WW,"8,857.44",
Communities & Local Government,DCLG,03/05/2012,Fixed Maintenance,Finance & Corporate Services,TAYLOR WOODROW CONSTRUCTION,,Large,,5106178552,Rivergate VM Dec11-Mar12,WD24 4WW,"28,647.28",
Communities & Local Government,DCLG,03/05/2012,Grant in Aid to NDPBs (non budget),Localism,VALUATION TRIBUNAL SERVICE,,,,2100217059,Claim in respect to May 2012  expenditure,E1 1DU,"815,300.00",Yes
Communities & Local Government,DCLG,03/05/2012,Hospitality,Finance & Corporate Services,MITIE CATERING SERVICES LTD,,Large,,2100217092,Hospitality March 2012,BS16 7FN,361.08,
Communities & Local Government,DCLG,03/05/2012,Hospitality,Localism,MITIE CATERING SERVICES LTD,,Large,,2100217091,Hospitality March 2012,BS16 7FN,575.04,
Communities & Local Government,DCLG,03/05/2012,Hospitality,Neighbourhoods,MITIE CATERING SERVICES LTD,,Large,,2100217099,Joint CLG/Portal conference,BS16 7FN,"1,276.62",
Communities & Local Government,DCLG,03/05/2012,IT - Service Contracts,Finance & Corporate Services,VERIZON UK LTD,,Large,,5106178578,WebRap hosting charges,RG2 6DA,"3,088.99",
Communities & Local Government,DCLG,03/05/2012,IT - Service Contracts,Finance & Corporate Services,VERIZON UK LTD,,Large,,5106178576,ARTEMIS hosting charges,RG2 6DA,328.30,
Communities & Local Government,DCLG,03/05/2012,IT - Service Contracts,Localism,VERIZON UK LTD,,Large,,5106178579,IRS Hosting charges,RG2 6DA,"3,411.07",
Communities & Local Government,DCLG,03/05/2012,IT - Service Contracts,Neighbourhoods,VERIZON UK LTD,,Large,,5106178577,TESA hosting charges,RG2 6DA,"2,620.38",
Communities & Local Government,DCLG,03/05/2012,Legal Fees,Finance & Corporate Services,JAMES MAURICI,,Micro,Yes,5106178571,20% Legal -Counsel Fees,,864.00,
Communities & Local Government,DCLG,03/05/2012,National Non Domestic Rates (NNDR) Payments,Localism,AVON & SOMERSET POLICE AUTHORITY,,,,5000198770,Grant Payable by Exchequer,TA1 4DY,"2,913,957.00",Yes
Communities & Local Government,DCLG,03/05/2012,National Non Domestic Rates (NNDR) Payments,Localism,AVON FIRE AUTHORITY,,,,5000198777,Grant Payable by Exchequer,BS1 6EU,"1,069,474.00",Yes
Communities & Local Government,DCLG,03/05/2012,National Non Domestic Rates (NNDR) Payments,Localism,BARKING & DAGENHAM LB,,,,5000198813,Grant Payable by Exchequer,RM10 7BY,"4,676,806.00",Yes
Communities & Local Government,DCLG,03/05/2012,National Non Domestic Rates (NNDR) Payments,Localism,BARNSLEY MBC,,,,5000198836,Grant Payable by Exchequer,S70 2AQ,"4,810,612.00",Yes
Communities & Local Government,DCLG,03/05/2012,National Non Domestic Rates (NNDR) Payments,Localism,BEDFORDSHIRE POLICE AUTH,,,,5000198908,Grant Payable by Exchequer,MK43 9AX,"1,313,595.00",Yes
Communities & Local Government,DCLG,03/05/2012,National Non Domestic Rates (NNDR) Payments,Localism,BEDS & LUTON FIRE & RESCUE SERVICE,,,,5000198902,Grant Payable by Exchequer,MK42 7NR,"532,077.00",Yes
Communities & Local Government,DCLG,03/05/2012,National Non Domestic Rates (NNDR) Payments,Localism,BIRMINGHAM CITY CNCL,,,,5000198938,Grant Payable by Exchequer,B3 3AB,"30,125,706.00",Yes
Communities & Local Government,DCLG,03/05/2012,National Non Domestic Rates (NNDR) Payments,Localism,BLACKBURN WITH DARWEN BC,,,,5000198962,Grant Payable by Exchequer,BB1 7DY,"3,602,773.00",Yes
Communities & Local Government,DCLG,03/05/2012,National Non Domestic Rates (NNDR) Payments,Localism,BLACKPOOL BC,,,,5000198974,Grant Payable by Exchequer,FY1 1NA,"3,843,922.00",Yes
Communities & Local Government,DCLG,03/05/2012,National Non Domestic Rates (NNDR) Payments,Localism,BOLTON MBC,,,,5000198999,Grant Payable by Exchequer,BL1 1RU,"5,580,216.00",Yes
Communities & Local Government,DCLG,03/05/2012,National Non Domestic Rates (NNDR) Payments,Localism,BRADFORD MBC,,,,5000199048,Grant Payable by Exchequer,BD1 1HX,"11,945,917.00",Yes
Communities & Local Government,DCLG,03/05/2012,National Non Domestic Rates (NNDR) Payments,Localism,BRENT LB,,,,5000199084,Grant Payable by Exchequer,HA9 9EZ,"7,242,067.00",Yes
Communities & Local Government,DCLG,03/05/2012,National Non Domestic Rates (NNDR) Payments,Localism,BRIGHTON & HOVE CITY COUNCIL,,,,5000199108,Grant Payable by Exchequer,BN3 2SR,"4,863,382.00",Yes
Communities & Local Government,DCLG,03/05/2012,National Non Domestic Rates (NNDR) Payments,Localism,BUCKINGHAMSHIRE CC,,,,5000199192,Grant Payable by Exchequer,HP20 1UD,"2,993,862.00",Yes
Communities & Local Government,DCLG,03/05/2012,National Non Domestic Rates (NNDR) Payments,Localism,BUCKS & MILTON KEYNES FIRE AUTH,,,,5000199186,Grant Payable by Exchequer,HP20 1BD,"507,762.00",Yes
Communities & Local Government,DCLG,03/05/2012,National Non Domestic Rates (NNDR) Payments,Localism,BURY MBC,,,,5000199216,Grant Payable by Exchequer,BL9 0SP,"2,945,693.00",Yes
Communities & Local Government,DCLG,03/05/2012,National Non Domestic Rates (NNDR) Payments,Localism,CALDERDALE MBC,,,,5000199228,Grant Payable by Exchequer,HX1 1YP,"3,590,418.00",Yes
Communities & Local Government,DCLG,03/05/2012,National Non Domestic Rates (NNDR) Payments,Localism,CAMBRIDGESHIRE COUNTY CNCL,,,,5000199259,Grant Payable by Exchequer,CB3 0AP,"5,275,467.00",Yes
Communities & Local Government,DCLG,03/05/2012,National Non Domestic Rates (NNDR) Payments,Localism,CAMBRIDGESHIRE POLICE AUT,,,,5000199253,Grant Payable by Exchequer,P18 8NP,"1,351,530.00",Yes
Communities & Local Government,DCLG,03/05/2012,National Non Domestic Rates (NNDR) Payments,Localism,CAMBS & PETERBOROUGH FIRE AUTHORITY,,,,5000199247,Grant Payable by Exchequer,PE29 2NA,"607,019.00",Yes
Communities & Local Government,DCLG,03/05/2012,National Non Domestic Rates (NNDR) Payments,Localism,CHESHIRE FIRE AUTHORITY,,,,5000199355,Grant Payable by Exchequer,CW7 2FQ,"916,270.00",Yes
Communities & Local Government,DCLG,03/05/2012,National Non Domestic Rates (NNDR) Payments,Localism,CHESHIRE POLICE AUTHORITY,,,,5000199360,Grant Payable by Exchequer,CW7 9FX,"2,403,852.00",Yes
Communities & Local Government,DCLG,03/05/2012,National Non Domestic Rates (NNDR) Payments,Localism,CITY OF WAKEFIELD MDC,,,,5000199021,Grant Payable by Exchequer,WF1 2QW,"6,103,459.00",Yes
Communities & Local Government,DCLG,03/05/2012,National Non Domestic Rates (NNDR) Payments,Localism,CLEVELAND FIRE AUTHORITY,,,,5000199436,Grant Payable by Exchequer,TS25 5TB,"924,441.00",Yes
Communities & Local Government,DCLG,03/05/2012,National Non Domestic Rates (NNDR) Payments,Localism,CLEVELAND POLICE AUTHORITY,,,,5000199441,Grant Payable by Exchequer,TS1 2JX,"2,069,159.00",Yes
Communities & Local Government,DCLG,03/05/2012,National Non Domestic Rates (NNDR) Payments,Localism,CO DURHAM & DARLINGTON FIRE AND RES,,,,5000198865,Grant Payable by Exchequer,DH1 5UE,"618,273.00",Yes
Communities & Local Government,DCLG,03/05/2012,National Non Domestic Rates (NNDR) Payments,Localism,CORNWALL COUNCIL,,,,5000199492,Grant Payable by Exchequer,TR1 3AY,"9,621,134.00",Yes
Communities & Local Government,DCLG,03/05/2012,National Non Domestic Rates (NNDR) Payments,Localism,COVENTRY CITY CNCL,,,,5000199490,Grant Payable by Exchequer,CV1 2QL,"6,946,353.00",Yes
Communities & Local Government,DCLG,03/05/2012,National Non Domestic Rates (NNDR) Payments,Localism,CROYDON LB,,,,5000199520,Grant Payable by Exchequer,CR9 3JS,"5,405,522.00",Yes
Communities & Local Government,DCLG,03/05/2012,National Non Domestic Rates (NNDR) Payments,Localism,CUMBRIA COUNTY CNCL,,,,5000199525,Grant Payable by Exchequer,CA3 8NA,"7,134,370.00",Yes
Communities & Local Government,DCLG,03/05/2012,National Non Domestic Rates (NNDR) Payments,Localism,CUMBRIA POLICE AUTHORITY,,,,5000199530,Grant Payable by Exchequer,CA10 2AU,"1,624,252.00",Yes
Communities & Local Government,DCLG,03/05/2012,National Non Domestic Rates (NNDR) Payments,Localism,DARLINGTON BC,,,,5000198721,Grant Payable by Exchequer,TS19 1JA,"1,820,518.00",Yes
Communities & Local Government,DCLG,03/05/2012,National Non Domestic Rates (NNDR) Payments,Localism,DERBY CITY CNCL,,,,5000198754,Grant Payable by Exchequer,DE1 2FS,"4,921,271.00",Yes
Communities & Local Government,DCLG,03/05/2012,National Non Domestic Rates (NNDR) Payments,Localism,DERBYSHIRE COUNTYCOUNCIL,,,,5000198774,Grant Payable by Exchequer,DE4 3AH,"9,161,876.00",Yes
Communities & Local Government,DCLG,03/05/2012,National Non Domestic Rates (NNDR) Payments,Localism,DERBYSHIRE FIRE AUTHORITY,,,,5000198762,Grant Payable by Exchequer,DE55 1RH,"860,486.00",Yes
Communities & Local Government,DCLG,03/05/2012,National Non Domestic Rates (NNDR) Payments,Localism,DERBYSHIRE POLICE AUTHORITY,,,,5000198768,Grant Payable by Exchequer,DE5 3RS,"2,075,225.00",Yes
Communities & Local Government,DCLG,03/05/2012,National Non Domestic Rates (NNDR) Payments,Localism,DEVON & CORNWALL POLICE A,,,,5000198792,Grant Payable by Exchequer,EX2 5YT,"3,277,670.00",Yes
Communities & Local Government,DCLG,03/05/2012,National Non Domestic Rates (NNDR) Payments,Localism,DEVON & SOMERSET FIRE & RESCUE SERV,,,,5000198804,Grant Payable by Exchequer,EX3 0NW,"1,518,303.00",Yes
Communities & Local Government,DCLG,03/05/2012,National Non Domestic Rates (NNDR) Payments,Localism,DEVON COUNTY CNCL,,,,5000198798,Grant Payable by Exchequer,EX2 4QJ,"8,358,698.00",Yes
Communities & Local Government,DCLG,03/05/2012,National Non Domestic Rates (NNDR) Payments,Localism,DONCASTER MBC,,,,5000198816,Grant Payable by Exchequer,DN1 3QA,"6,327,297.00",Yes
Communities & Local Government,DCLG,03/05/2012,National Non Domestic Rates (NNDR) Payments,Localism,DORSET COUNTY CNCL,,,,5000198822,Grant Payable by Exchequer,DT1 1XJ,"3,063,676.00",Yes
Communities & Local Government,DCLG,03/05/2012,National Non Domestic Rates (NNDR) Payments,Localism,DORSET FIRE AUTHORITY,,,,5000198829,Grant Payable by Exchequer,DT1 1FB,"537,657.00",Yes
Communities & Local Government,DCLG,03/05/2012,National Non Domestic Rates (NNDR) Payments,Localism,DORSET POLICE AUTHORITY,,,,5000198835,Grant Payable by Exchequer,DT2 8DZ,"994,026.00",Yes
Communities & Local Government,DCLG,03/05/2012,National Non Domestic Rates (NNDR) Payments,Localism,DUDLEY MBC,,,,5000198859,Grant Payable by Exchequer,DY1 1HF,"5,672,332.00",Yes
Communities & Local Government,DCLG,03/05/2012,National Non Domestic Rates (NNDR) Payments,Localism,DURHAM COUNTY COUNCIL,,,,5000199502,Grant Payable by Exchequer,DH1 5UE,"10,402,823.00",Yes
Communities & Local Government,DCLG,03/05/2012,National Non Domestic Rates (NNDR) Payments,Localism,DURHAM POLICE AUTHORITY,,,,5000198871,Grant Payable by Exchequer,DH1 5TT,"1,977,776.00",Yes
Communities & Local Government,DCLG,03/05/2012,National Non Domestic Rates (NNDR) Payments,Localism,EAST RIDING OF YORKS,,,,5000198978,Grant Payable by Exchequer,HU17 9AB,"4,535,587.00",Yes
Communities & Local Government,DCLG,03/05/2012,National Non Domestic Rates (NNDR) Payments,Localism,EAST SUSSEX COUNTY CNCL,,,,5000198996,Grant Payable by Exchequer,BN7 1SF,"5,332,633.00",Yes
Communities & Local Government,DCLG,03/05/2012,National Non Domestic Rates (NNDR) Payments,Localism,EAST SUSSEX FIRE & RESCUE SERVICE,,,,5000199002,Grant Payable by Exchequer,BN21 1EU,"675,741.00",Yes
Communities & Local Government,DCLG,03/05/2012,National Non Domestic Rates (NNDR) Payments,Localism,ENFIELD LB,,,,5000199063,Grant Payable by Exchequer,EN1 3XF,"5,839,705.00",Yes
Communities & Local Government,DCLG,03/05/2012,National Non Domestic Rates (NNDR) Payments,Localism,ESSEX COUNTY CNCL,,,,5000199105,Grant Payable by Exchequer,CM1 1JZ,"12,804,762.00",Yes
Communities & Local Government,DCLG,03/05/2012,National Non Domestic Rates (NNDR) Payments,Localism,ESSEX FIRE AUTHORITY,,,,5000199111,Grant Payable by Exchequer,CM8 3HB,"1,592,478.00",Yes
Communities & Local Government,DCLG,03/05/2012,National Non Domestic Rates (NNDR) Payments,Localism,ESSEX POLICE AUTHORITY,,,,5000199118,Grant Payable by Exchequer,CM2 6DA,"2,964,211.00",Yes
Communities & Local Government,DCLG,03/05/2012,National Non Domestic Rates (NNDR) Payments,Localism,GATESHEAD MBC,,,,5000199202,Grant Payable by Exchequer,NE8 1HH,"4,638,778.00",Yes
Communities & Local Government,DCLG,03/05/2012,National Non Domestic Rates (NNDR) Payments,Localism,GLOUCESTERSHIRE COUNTY CNCL,,,,5000199238,Grant Payable by Exchequer,GL1 2TG,"6,113,239.00",Yes
Communities & Local Government,DCLG,03/05/2012,National Non Domestic Rates (NNDR) Payments,Localism,GLOUCESTERSHIRE POLICE AUTHORITY,,,,5000199244,Grant Payable by Exchequer,GL2 2AN,"1,034,198.00",Yes
Communities & Local Government,DCLG,03/05/2012,National Non Domestic Rates (NNDR) Payments,Localism,GREATER LONDON AUTHORITY,,,,5000199220,Grant Payable by Exchequer,SE10 1AJ,"39,818,979.00",Yes
Communities & Local Government,DCLG,03/05/2012,National Non Domestic Rates (NNDR) Payments,Localism,GREATER LONDON AUTHORITY-FIRE,,,,5000199452,Grant Payable by Exchequer,SE1 2AA,"12,072,519.00",Yes
Communities & Local Government,DCLG,03/05/2012,National Non Domestic Rates (NNDR) Payments,Localism,GREATER MANCHESTER FIRE,,,,5000199109,Grant Payable by Exchequer,M27 2US,"3,126,071.00",Yes
Communities & Local Government,DCLG,03/05/2012,National Non Domestic Rates (NNDR) Payments,Localism,GREATER MANCHESTER POL AUTH,,,,5000199115,Grant Payable by Exchequer,M16 0RE,"9,774,319.00",Yes
Communities & Local Government,DCLG,03/05/2012,National Non Domestic Rates (NNDR) Payments,Localism,GREENWICH LB,,,,5000199288,Grant Payable by Exchequer,SE18 6RA,"7,220,142.00",Yes
Communities & Local Government,DCLG,03/05/2012,National Non Domestic Rates (NNDR) Payments,Localism,HALTON BC,,,,5000199318,Grant Payable by Exchequer,WA8 7QF,"2,928,007.00",Yes
Communities & Local Government,DCLG,03/05/2012,National Non Domestic Rates (NNDR) Payments,Localism,HAMPSHIRE COUNTY COUNCIL,,,,5000199343,Grant Payable by Exchequer,SO23 8UB,"8,259,416.00",Yes
Communities & Local Government,DCLG,03/05/2012,National Non Domestic Rates (NNDR) Payments,Localism,HAMPSHIRE FIRE & RESCUE AUTHORITY,,,,5000199348,Grant Payable by Exchequer,SO23 8UB,"1,447,396.00",Yes
Communities & Local Government,DCLG,03/05/2012,National Non Domestic Rates (NNDR) Payments,Localism,HAMPSHIRE POLICE AUTHORITY,,,,5000199353,Grant Payable by Exchequer,SO23 8UB,"3,374,229.00",Yes
Communities & Local Government,DCLG,03/05/2012,National Non Domestic Rates (NNDR) Payments,Localism,HARINGEY LB,,,,5000199373,Grant Payable by Exchequer,N22 7TR,"6,699,837.00",Yes
Communities & Local Government,DCLG,03/05/2012,National Non Domestic Rates (NNDR) Payments,Localism,HARROW LB,,,,5000199402,Grant Payable by Exchequer,HA1 2UZ,"3,131,092.00",Yes
Communities & Local Government,DCLG,03/05/2012,National Non Domestic Rates (NNDR) Payments,Localism,HARTLEPOOL BOROUGH COUNCIL,,,,5000199423,Grant Payable by Exchequer,TS24 7BT,"2,258,926.00",Yes
Communities & Local Government,DCLG,03/05/2012,National Non Domestic Rates (NNDR) Payments,Localism,HEREFORD WORCESTER FIRE BRIGADE,,,,5000199459,Grant Payable by Exchequer,WR1 2HQ,"517,396.00",Yes
Communities & Local Government,DCLG,03/05/2012,National Non Domestic Rates (NNDR) Payments,Localism,HEREFORDSHIRE DISTRICT COUNCIL,,,,5000199469,Grant Payable by Exchequer,HR1 1SH,"2,638,080.00",Yes
Communities & Local Government,DCLG,03/05/2012,National Non Domestic Rates (NNDR) Payments,Localism,HERTFORDSHIRE CONTY CNCL,,,,5000199479,Grant Payable by Exchequer,SG13 8DQ,"8,865,866.00",Yes
Communities & Local Government,DCLG,03/05/2012,National Non Domestic Rates (NNDR) Payments,Localism,HERTFORDSHIRE POLICE AUTH,,,,5000199474,Grant Payable by Exchequer,AL8 6XF,"2,026,752.00",Yes
Communities & Local Government,DCLG,03/05/2012,National Non Domestic Rates (NNDR) Payments,Localism,HULL CITY COUNCIL,,,,5000198850,Grant Payable by Exchequer,HU1 2AA,"6,847,188.00",Yes
Communities & Local Government,DCLG,03/05/2012,National Non Domestic Rates (NNDR) Payments,Localism,HUMBERSIDE FIRE & RESCUE SERVICE,,,,5000199544,Grant Payable by Exchequer,HU4 7BB,"1,216,743.00",Yes
Communities & Local Government,DCLG,03/05/2012,National Non Domestic Rates (NNDR) Payments,Localism,HUMBERSIDE POLICE,,,,5000199548,Grant Payable by Exchequer,HU5 5SF,"2,485,367.00",Yes
Communities & Local Government,DCLG,03/05/2012,National Non Domestic Rates (NNDR) Payments,Localism,ISLE OF WIGHT CNCL,,,,5000198749,Grant Payable by Exchequer,PO30 1UD,"2,804,977.00",Yes
Communities & Local Government,DCLG,03/05/2012,National Non Domestic Rates (NNDR) Payments,Localism,ISLES OF SCILLY COUNCIL,,,,5000198772,Grant Payable by Exchequer,TR21 0LW,"122,530.00",Yes
Communities & Local Government,DCLG,03/05/2012,National Non Domestic Rates (NNDR) Payments,Localism,KENT & MEDWAY TOWNS FIRE AUTHORITY,,,,5000198808,Grant Payable by Exchequer,ME15 6XB,"1,388,775.00",Yes
Communities & Local Government,DCLG,03/05/2012,National Non Domestic Rates (NNDR) Payments,Localism,KENT COUNTY CNCL,,,,5000198802,Grant Payable by Exchequer,ME14 1XQ,"14,139,617.00",Yes
Communities & Local Government,DCLG,03/05/2012,National Non Domestic Rates (NNDR) Payments,Localism,KENT POLICE AUTHORITY,,,,5000198814,Grant Payable by Exchequer,ME15 9BZ,"3,673,735.00",Yes
Communities & Local Government,DCLG,03/05/2012,National Non Domestic Rates (NNDR) Payments,Localism,KIRKLEES MBC,,,,5000198875,Grant Payable by Exchequer,HD1 2YU,"6,993,857.00",Yes
Communities & Local Government,DCLG,03/05/2012,National Non Domestic Rates (NNDR) Payments,Localism,KNOWSLEY MBC,,,,5000198887,Grant Payable by Exchequer,L36 9YZ,"5,147,058.00",Yes
Communities & Local Government,DCLG,03/05/2012,National Non Domestic Rates (NNDR) Payments,Localism,LANCASHIRE COMBINED FIRE AUTHORITY,,,,5000198911,Grant Payable by Exchequer,PR2 3LH,"1,494,962.00",Yes
Communities & Local Government,DCLG,03/05/2012,National Non Domestic Rates (NNDR) Payments,Localism,LANCASHIRE COUNTY CNCL,,,,5000198905,Grant Payable by Exchequer,PR1 8RD,"14,767,915.00",Yes
Communities & Local Government,DCLG,03/05/2012,National Non Domestic Rates (NNDR) Payments,Localism,LANCASHIRE POLICE AUTHORITY,,,,5000198917,Grant Payable by Exchequer,PR1 OLD,"4,158,211.00",Yes
Communities & Local Government,DCLG,03/05/2012,National Non Domestic Rates (NNDR) Payments,Localism,LEICESTER CITY CNCL,,,,5000198953,Grant Payable by Exchequer,LE1 6ZG,"8,374,021.00",Yes
Communities & Local Government,DCLG,03/05/2012,National Non Domestic Rates (NNDR) Payments,Localism,LEICESTERSHIRE COUNTY CNCL,,,,5000198971,Grant Payable by Exchequer,LE3 8RB,"4,865,546.00",Yes
Communities & Local Government,DCLG,03/05/2012,National Non Domestic Rates (NNDR) Payments,Localism,LEICESTERSHIRE POLICE AUTHORITY,,,,5000198965,Grant Payable by Exchequer,LE99 1A2,"2,160,785.00",Yes
Communities & Local Government,DCLG,03/05/2012,National Non Domestic Rates (NNDR) Payments,Localism,LEICS LEICESTERSHIRE RUTLAND CFA,,,,5000198959,Grant Payable by Exchequer,LE3 8HD,"879,094.00",Yes
Communities & Local Government,DCLG,03/05/2012,National Non Domestic Rates (NNDR) Payments,Localism,LEWISHAM LB,,,,5000198995,Grant Payable by Exchequer,SE6 4RU,"8,122,216.00",Yes
Communities & Local Government,DCLG,03/05/2012,National Non Domestic Rates (NNDR) Payments,Localism,LINCOLNSHIRE COUNTY CNCL,,,,5000199031,Grant Payable by Exchequer,LN1 1YT,"9,389,788.00",Yes
Communities & Local Government,DCLG,03/05/2012,National Non Domestic Rates (NNDR) Payments,Localism,LINCOLNSHIRE POLICE AUTH,,,,5000199025,Grant Payable by Exchequer,LN5 7PH,"1,127,364.00",Yes
Communities & Local Government,DCLG,03/05/2012,National Non Domestic Rates (NNDR) Payments,Localism,LIVERPOOL CITY COUNCIL,,,,5000199043,Grant Payable by Exchequer,L2 2DH,"14,809,593.00",Yes
Communities & Local Government,DCLG,03/05/2012,National Non Domestic Rates (NNDR) Payments,Localism,LONDON BOROUGH OF HACKNEY,,,,5000199308,Grant Payable by Exchequer,E8 4RU,"9,764,556.00",Yes
Communities & Local Government,DCLG,03/05/2012,National Non Domestic Rates (NNDR) Payments,Localism,LONDON BOROUGH OF LAMBETH,,,,5000198899,Grant Payable by Exchequer,SW2 1RL,"9,608,517.00",Yes
Communities & Local Government,DCLG,03/05/2012,National Non Domestic Rates (NNDR) Payments,Localism,LONDON BOROUGH OF NEWHAM,,Large,,5000199321,Grant Payable by Exchequer,E16 2QU,"9,530,789.00",Yes
Communities & Local Government,DCLG,03/05/2012,National Non Domestic Rates (NNDR) Payments,Localism,LONDON BOROUGH OF REDBRIDGE,,,,5000198800,Grant Payable by Exchequer,IG1 1NN,"4,480,195.00",Yes
Communities & Local Government,DCLG,03/05/2012,National Non Domestic Rates (NNDR) Payments,Localism,LUTON BC,,,,5000199055,Grant Payable by Exchequer,LU1 1DX,"4,015,535.00",Yes
Communities & Local Government,DCLG,03/05/2012,National Non Domestic Rates (NNDR) Payments,Localism,MANCHESTER CITY CNCL,,,,5000199103,Grant Payable by Exchequer,M60 2JR,"15,396,134.00",Yes
Communities & Local Government,DCLG,03/05/2012,National Non Domestic Rates (NNDR) Payments,Localism,MEDWAY COUNCIL,,,,5000199139,Grant Payable by Exchequer,ME4 4TR,"3,762,368.00",Yes
Communities & Local Government,DCLG,03/05/2012,National Non Domestic Rates (NNDR) Payments,Localism,MERSEYSIDE FIRE & RESCUE SERVICE,,,,5000199169,Grant Payable by Exchequer,L30 4YD,"1,918,018.00",Yes
Communities & Local Government,DCLG,03/05/2012,National Non Domestic Rates (NNDR) Payments,Localism,MERSEYSIDE POLICE AUTH,,,,5000199175,Grant Payable by Exchequer,L69 1JD,"5,947,100.00",Yes
Communities & Local Government,DCLG,03/05/2012,National Non Domestic Rates (NNDR) Payments,Localism,MIDDLESBROUGH BC,,,,5000199236,Grant Payable by Exchequer,TS1 9GA,"3,805,216.00",Yes
Communities & Local Government,DCLG,03/05/2012,National Non Domestic Rates (NNDR) Payments,Localism,NEWCASTLE UPON TYNE DC,,,,5000199301,Grant Payable by Exchequer,NE99 1RD,"7,489,985.00",Yes
Communities & Local Government,DCLG,03/05/2012,National Non Domestic Rates (NNDR) Payments,Localism,NORFOLK COUNTY COUNCIL,,,,5000199326,Grant Payable by Exchequer,NR1 2DW,"11,572,243.00",Yes
Communities & Local Government,DCLG,03/05/2012,National Non Domestic Rates (NNDR) Payments,Localism,NORFOLK POLICE AUTHORITY,,,,5000199331,Grant Payable by Exchequer,NR18 0WW,"1,511,937.00",Yes
Communities & Local Government,DCLG,03/05/2012,National Non Domestic Rates (NNDR) Payments,Localism,NORTH EAST LINCOLN DC,,,,5000199361,Grant Payable by Exchequer,DN31 1HU,"3,225,291.00",Yes
Communities & Local Government,DCLG,03/05/2012,National Non Domestic Rates (NNDR) Payments,Localism,NORTH TYNESIDE MBC,,,,5000199420,Grant Payable by Exchequer,NE30 1AE,"3,944,605.00",Yes
Communities & Local Government,DCLG,03/05/2012,National Non Domestic Rates (NNDR) Payments,Localism,NORTH YORKSHIRE CC,,,,5000199435,Grant Payable by Exchequer,DL7 8AL,"5,441,920.00",Yes
Communities & Local Government,DCLG,03/05/2012,National Non Domestic Rates (NNDR) Payments,Localism,NORTH YORKSHIRE FIRE & RESCUE AUTH,,,,5000199440,Grant Payable by Exchequer,DL6 1AB,"594,641.00",Yes
Communities & Local Government,DCLG,03/05/2012,National Non Domestic Rates (NNDR) Payments,Localism,NORTH YORKSHIRE POLICE AUTHORITY,,,,5000199445,Grant Payable by Exchequer,DL7 9HA,"1,459,720.00",Yes
Communities & Local Government,DCLG,03/05/2012,National Non Domestic Rates (NNDR) Payments,Localism,NORTHAMPTONSHIRE COUNTY COUNCIL,,,,5000199461,Grant Payable by Exchequer,NN4 7DB,"7,480,769.00",Yes
Communities & Local Government,DCLG,03/05/2012,National Non Domestic Rates (NNDR) Payments,Localism,NORTHAMPTONSHIRE POLICE AUTH,,,,5000199466,Grant Payable by Exchequer,NN1 5DQ,"1,308,685.00",Yes
Communities & Local Government,DCLG,03/05/2012,National Non Domestic Rates (NNDR) Payments,Localism,NORTHUMBERLAND,,,,5000199512,Grant Payable by Exchequer,NE61 2EF,"5,679,693.00",Yes
Communities & Local Government,DCLG,03/05/2012,National Non Domestic Rates (NNDR) Payments,Localism,NORTHUMBRIA POLICE AUTH,,,,5000199471,Grant Payable by Exchequer,NE1 8DL,"5,595,311.00",Yes
Communities & Local Government,DCLG,03/05/2012,National Non Domestic Rates (NNDR) Payments,Localism,NOTTINGHAM CITY COUNCIL,,,,5000199491,Grant Payable by Exchequer,M33 0DJ,"8,064,138.00",Yes
Communities & Local Government,DCLG,03/05/2012,National Non Domestic Rates (NNDR) Payments,Localism,NOTTINGHAMSHIRE COUNTY CNCL,,,,5000199496,Grant Payable by Exchequer,NG1 4BU,"8,823,153.00",Yes
Communities & Local Government,DCLG,03/05/2012,National Non Domestic Rates (NNDR) Payments,Localism,NOTTINGHAMSHIRE POLICE AU,,,,5000199506,Grant Payable by Exchequer,NG5 8PP,"2,557,189.00",Yes
Communities & Local Government,DCLG,03/05/2012,National Non Domestic Rates (NNDR) Payments,Localism,NOTTS & CITY NOTTINGHAM FIRE AUTH,,,,5000199501,Grant Payable by Exchequer,NG5 8PD,"1,045,819.00",Yes
Communities & Local Government,DCLG,03/05/2012,National Non Domestic Rates (NNDR) Payments,Localism,OLDHAM MBC,,,,5000199545,Grant Payable by Exchequer,OL1 1UH,"5,365,404.00",Yes
Communities & Local Government,DCLG,03/05/2012,National Non Domestic Rates (NNDR) Payments,Localism,OXFORDSHIRE CC,,,,5000199555,Grant Payable by Exchequer,OX4 2GQ,"5,373,146.00",Yes
Communities & Local Government,DCLG,03/05/2012,National Non Domestic Rates (NNDR) Payments,Localism,PLYMOUTH CITY CNCL,,,,5000198729,Grant Payable by Exchequer,PL1 2AA,"5,013,293.00",Yes
Communities & Local Government,DCLG,03/05/2012,National Non Domestic Rates (NNDR) Payments,Localism,PORTSMOUTH CITY COUNCIL,,,,5000198753,Grant Payable by Exchequer,PO1 2AR,"4,014,226.00",Yes
Communities & Local Government,DCLG,03/05/2012,National Non Domestic Rates (NNDR) Payments,Localism,REDCAR & CLEVELAND BOROUGH COUNCIL,,,,5000198812,Grant Payable by Exchequer,TS6 9AR,"2,976,988.00",Yes
Communities & Local Government,DCLG,03/05/2012,National Non Domestic Rates (NNDR) Payments,Localism,ROCHDALE MBC,,,,5000198885,Grant Payable by Exchequer,OL16 1LQ,"5,000,068.00",Yes
Communities & Local Government,DCLG,03/05/2012,National Non Domestic Rates (NNDR) Payments,Localism,ROTHERHAM MBC,,,,5000198934,Grant Payable by Exchequer,S65 1UF,"5,373,038.00",Yes
Communities & Local Government,DCLG,03/05/2012,National Non Domestic Rates (NNDR) Payments,Localism,ROYAL BERKSHIRE FIRE AUTHORITY,,,,5000198914,Grant Payable by Exchequer,RG30 4FS,"718,818.00",Yes
Communities & Local Government,DCLG,03/05/2012,National Non Domestic Rates (NNDR) Payments,Localism,SALFORD CITY CNCL,,,,5000199016,Grant Payable by Exchequer,M27 5AW,"5,937,362.00",Yes
Communities & Local Government,DCLG,03/05/2012,National Non Domestic Rates (NNDR) Payments,Localism,SANDWELL MBC,,,,5000199028,Grant Payable by Exchequer,B69 3BS,"8,205,906.00",Yes
Communities & Local Government,DCLG,03/05/2012,National Non Domestic Rates (NNDR) Payments,Localism,SEFTON MBC,,,,5000199064,Grant Payable by Exchequer,L20 3NQ,"5,500,220.00",Yes
Communities & Local Government,DCLG,03/05/2012,National Non Domestic Rates (NNDR) Payments,Localism,SHEFFIELD CITY CNCL,,,,5000199101,Grant Payable by Exchequer,S1 1UR,"12,382,234.00",Yes
Communities & Local Government,DCLG,03/05/2012,National Non Domestic Rates (NNDR) Payments,Localism,SHROPSHIRE & WREKIN FIRE AUTHORITY,,,,5000199119,Grant Payable by Exchequer,SY1 2HJ,"352,446.00",Yes
Communities & Local Government,DCLG,03/05/2012,National Non Domestic Rates (NNDR) Payments,Localism,SHROPSHIRE COUNCIL,,Large,,5000199522,Grant Payable by Exchequer,SY2 6ND,"4,210,369.00",Yes
Communities & Local Government,DCLG,03/05/2012,National Non Domestic Rates (NNDR) Payments,Localism,SOMERSET COUNTY CNCL,,,,5000199149,Grant Payable by Exchequer,TA1 4DY,"5,848,210.00",Yes
Communities & Local Government,DCLG,03/05/2012,National Non Domestic Rates (NNDR) Payments,Localism,SOUTH TYNESIDE COUNCIL,,,,5000199319,Grant Payable by Exchequer,NE33 2RL,"3,943,924.00",Yes
Communities & Local Government,DCLG,03/05/2012,National Non Domestic Rates (NNDR) Payments,Localism,SOUTH YORKSHIRE FIRE & CD,,,,5000199324,Grant Payable by Exchequer,S1 3FG,"1,524,778.00",Yes
Communities & Local Government,DCLG,03/05/2012,National Non Domestic Rates (NNDR) Payments,Localism,SOUTH YORKSHIRE P A,,,,5000199329,Grant Payable by Exchequer,S3 8LY,"4,196,038.00",Yes
Communities & Local Government,DCLG,03/05/2012,National Non Domestic Rates (NNDR) Payments,Localism,SOUTHEND ON SEA BC,,,,5000199349,Grant Payable by Exchequer,SS2 6EP,"2,816,969.00",Yes
Communities & Local Government,DCLG,03/05/2012,National Non Domestic Rates (NNDR) Payments,Localism,SOUTHWARK LB,,,,5000199359,Grant Payable by Exchequer,SE16 3QN,"10,115,143.00",Yes
Communities & Local Government,DCLG,03/05/2012,National Non Domestic Rates (NNDR) Payments,Localism,ST HELENS MBC,,,,5000199399,Grant Payable by Exchequer,WA10 1HP,"3,942,458.00",Yes
Communities & Local Government,DCLG,03/05/2012,National Non Domestic Rates (NNDR) Payments,Localism,STAFFORDSHIRE  FIRE & RESCUE SERV,,,,5000199419,Grant Payable by Exchequer,ST15 0BS,"908,968.00",Yes
Communities & Local Government,DCLG,03/05/2012,National Non Domestic Rates (NNDR) Payments,Localism,STAFFORDSHIRE COUNTY CNCL,,,,5000199414,Grant Payable by Exchequer,ST16 2LH,"7,809,213.00",Yes
Communities & Local Government,DCLG,03/05/2012,National Non Domestic Rates (NNDR) Payments,Localism,STAFFORDSHIRE POLICE AUTHORITY,,,,5000199434,Grant Payable by Exchequer,ST16 2NF,"2,228,356.00",Yes
Communities & Local Government,DCLG,03/05/2012,National Non Domestic Rates (NNDR) Payments,Localism,STOKE ON TRENT CITY COUNCIL,,,,5000199473,Grant Payable by Exchequer,ST4 1RJ,"5,764,577.00",Yes
Communities & Local Government,DCLG,03/05/2012,National Non Domestic Rates (NNDR) Payments,Localism,SUFFOLK COUNTY CNCL,,,,5000199498,Grant Payable by Exchequer,IP4 2JP,"8,244,911.00",Yes
Communities & Local Government,DCLG,03/05/2012,National Non Domestic Rates (NNDR) Payments,Localism,SUFFOLK POLICE AUTHORITY,,,,5000199513,Grant Payable by Exchequer,IP5 3QS,"1,236,404.00",Yes
Communities & Local Government,DCLG,03/05/2012,National Non Domestic Rates (NNDR) Payments,Localism,SUNDERLAND DC,,,,5000199523,Grant Payable by Exchequer,SR2 7DN,"6,904,959.00",Yes
Communities & Local Government,DCLG,03/05/2012,National Non Domestic Rates (NNDR) Payments,Localism,SURREY COUNTY CNCL,,,,5000199528,Grant Payable by Exchequer,KT1 2EA,"6,924,961.00",Yes
Communities & Local Government,DCLG,03/05/2012,National Non Domestic Rates (NNDR) Payments,Localism,SURREY POLICE AUTHORITY,,,,5000199543,Grant Payable by Exchequer,KT1 2EA,"1,662,226.00",Yes
Communities & Local Government,DCLG,03/05/2012,National Non Domestic Rates (NNDR) Payments,Localism,SUSSEX POLICE AUTHORITY,,,,5000199547,Grant Payable by Exchequer,PO19 1RG,"2,989,222.00",Yes
Communities & Local Government,DCLG,03/05/2012,National Non Domestic Rates (NNDR) Payments,Localism,SUTTON LB,,,,5000198733,Grant Payable by Exchequer,SM1 1EA,"2,409,620.00",Yes
Communities & Local Government,DCLG,03/05/2012,National Non Domestic Rates (NNDR) Payments,Localism,TAMESIDE MBC,,,,5000198769,Grant Payable by Exchequer,OL6 6DL,"4,687,612.00",Yes
Communities & Local Government,DCLG,03/05/2012,National Non Domestic Rates (NNDR) Payments,Localism,TELFORD & WREKIN DC,,,,5000198828,Grant Payable by Exchequer,TF3 4LF,"3,105,445.00",Yes
Communities & Local Government,DCLG,03/05/2012,National Non Domestic Rates (NNDR) Payments,Localism,THAMES VALLEY POLICE AUTHORITY,,,,5000198870,Grant Payable by Exchequer,OX5 2NX,"4,070,298.00",Yes
Communities & Local Government,DCLG,03/05/2012,National Non Domestic Rates (NNDR) Payments,Localism,TORBAY BC,,,,5000198931,Grant Payable by Exchequer,TQ1 3DR,"2,770,598.00",Yes
Communities & Local Government,DCLG,03/05/2012,National Non Domestic Rates (NNDR) Payments,Localism,TYNE & WEAR FIRE AUTHORITY,,,,5000198985,Grant Payable by Exchequer,SR2 7DN,"1,476,818.00",Yes
Communities & Local Government,DCLG,03/05/2012,National Non Domestic Rates (NNDR) Payments,Localism,W YORKSHIRE FIRE & RESCUE AUTH,,,,5000199277,Grant Payable by Exchequer,BD11 2DY,"2,441,624.00",Yes
Communities & Local Government,DCLG,03/05/2012,National Non Domestic Rates (NNDR) Payments,Localism,WALSALL MBC,,,,5000199032,Grant Payable by Exchequer,WS1 1TW,"6,018,667.00",Yes
Communities & Local Government,DCLG,03/05/2012,National Non Domestic Rates (NNDR) Payments,Localism,WALTHAM FOREST LB,,Large,,5000199044,Grant Payable by Exchequer,E17 4JF,"5,509,402.00",Yes
Communities & Local Government,DCLG,03/05/2012,National Non Domestic Rates (NNDR) Payments,Localism,WANDSWORTH LB,,,,5000199056,Grant Payable by Exchequer,SW18 2PU,"6,616,205.00",Yes
Communities & Local Government,DCLG,03/05/2012,National Non Domestic Rates (NNDR) Payments,Localism,WARWICKSHIRE COUNTY CNCL,,,,5000199086,Grant Payable by Exchequer,CV34 4RH,"4,869,208.00",Yes
Communities & Local Government,DCLG,03/05/2012,National Non Domestic Rates (NNDR) Payments,Localism,WARWICKSHIRE POLICE AUTHORITY,,,,5000199092,Grant Payable by Exchequer,CV35 7QB,"921,623.00",Yes
Communities & Local Government,DCLG,03/05/2012,National Non Domestic Rates (NNDR) Payments,Localism,WEST MERCIA POLICE AUTH,,,,5000199231,Grant Payable by Exchequer,WR5 2NP,"2,382,198.00",Yes
Communities & Local Government,DCLG,03/05/2012,National Non Domestic Rates (NNDR) Payments,Localism,WEST MIDLANDS FIRE & CIVIL DEFENCE,,,,5000199237,Grant Payable by Exchequer,B4 7DE,"3,336,639.00",Yes
Communities & Local Government,DCLG,03/05/2012,National Non Domestic Rates (NNDR) Payments,Localism,WEST MIDLANDS POLICE AUTH,,,,5000199243,Grant Payable by Exchequer,B4 6NQ,"9,949,231.00",Yes
Communities & Local Government,DCLG,03/05/2012,National Non Domestic Rates (NNDR) Payments,Localism,WEST SUSSEX CC,,,,5000199272,Grant Payable by Exchequer,PO19 1RG,"5,509,493.00",Yes
Communities & Local Government,DCLG,03/05/2012,National Non Domestic Rates (NNDR) Payments,Localism,WEST YORKSHIRE POLICE AUTHORITY,,,,5000199282,Grant Payable by Exchequer,WF1 3QP,"6,682,916.00",Yes
Communities & Local Government,DCLG,03/05/2012,National Non Domestic Rates (NNDR) Payments,Localism,WIGAN MBC,,,,5000199312,Grant Payable by Exchequer,WN1 1YD,"5,938,837.00",Yes
Communities & Local Government,DCLG,03/05/2012,National Non Domestic Rates (NNDR) Payments,Localism,WILTSHIRE & SWINDON FIRE AUTHORITY,,,,5000199317,Grant Payable by Exchequer,SN10 5PP,"448,387.00",Yes
Communities & Local Government,DCLG,03/05/2012,National Non Domestic Rates (NNDR) Payments,Localism,WILTSHIRE POLICE,,,,5000199322,Grant Payable by Exchequer,BA14 8JJ,"1,155,129.00",Yes
Communities & Local Government,DCLG,03/05/2012,National Non Domestic Rates (NNDR) Payments,Localism,WIRRAL MBC,,,,5000199352,Grant Payable by Exchequer,L41 6BU,"6,897,391.00",Yes
Communities & Local Government,DCLG,03/05/2012,National Non Domestic Rates (NNDR) Payments,Localism,WOLVERHAMPTON MBC,,,,5000199382,Grant Payable by Exchequer,WV1 1RL,"6,374,778.00",Yes
Communities & Local Government,DCLG,03/05/2012,National Non Domestic Rates (NNDR) Payments,Localism,WORCESTERSHIRE COUNTY COUNCIL,,,,5000199398,Grant Payable by Exchequer,WR5 2NP,"4,897,652.00",Yes
Communities & Local Government,DCLG,03/05/2012,NNDR Billing Authorities Receipts,Localism,BARKING & DAGENHAM LB,,,,5000198807,Grant Payable by Exchequer,RM10 7BY,"-2,600,370.00",Yes
Communities & Local Government,DCLG,03/05/2012,NNDR Billing Authorities Receipts,Localism,BARNSLEY MBC,,,,5000198830,Grant Payable by Exchequer,S70 2AQ,"-2,368,066.00",Yes
Communities & Local Government,DCLG,03/05/2012,NNDR Billing Authorities Receipts,Localism,BIRMINGHAM CITY CNCL,,,,5000198932,Grant Payable by Exchequer,B3 3AB,"-18,221,684.00",Yes
Communities & Local Government,DCLG,03/05/2012,NNDR Billing Authorities Receipts,Localism,BLACKBURN WITH DARWEN BC,,,,5000198956,Grant Payable by Exchequer,BB1 7DY,"-2,105,421.00",Yes
Communities & Local Government,DCLG,03/05/2012,NNDR Billing Authorities Receipts,Localism,BLACKPOOL BC,,,,5000198968,Grant Payable by Exchequer,FY1 1NA,"-2,241,866.00",Yes
Communities & Local Government,DCLG,03/05/2012,NNDR Billing Authorities Receipts,Localism,BOLTON MBC,,,,5000198993,Grant Payable by Exchequer,BL1 1RU,"-4,172,825.00",Yes
Communities & Local Government,DCLG,03/05/2012,NNDR Billing Authorities Receipts,Localism,BRADFORD MBC,,,,5000199042,Grant Payable by Exchequer,BD1 1HX,"-6,351,576.00",Yes
Communities & Local Government,DCLG,03/05/2012,NNDR Billing Authorities Receipts,Localism,BRENT LB,,,,5000199078,Grant Payable by Exchequer,HA9 9EZ,"-4,743,148.00",Yes
Communities & Local Government,DCLG,03/05/2012,NNDR Billing Authorities Receipts,Localism,BRIGHTON & HOVE CITY COUNCIL,,,,5000199102,Grant Payable by Exchequer,BN3 2SR,"-4,667,308.00",Yes
Communities & Local Government,DCLG,03/05/2012,NNDR Billing Authorities Receipts,Localism,BURY MBC,,,,5000199210,Grant Payable by Exchequer,BL9 0SP,"-2,437,420.00",Yes
Communities & Local Government,DCLG,03/05/2012,NNDR Billing Authorities Receipts,Localism,CALDERDALE MBC,,,,5000199222,Grant Payable by Exchequer,HX1 1YP,"-2,631,238.00",Yes
Communities & Local Government,DCLG,03/05/2012,NNDR Billing Authorities Receipts,Localism,CITY OF WAKEFIELD MDC,,,,5000199015,Grant Payable by Exchequer,WF1 2QW,"-5,596,156.00",Yes
Communities & Local Government,DCLG,03/05/2012,NNDR Billing Authorities Receipts,Localism,CORNWALL COUNCIL,,,,5000199487,Grant Payable by Exchequer,TR1 3AY,"-6,831,616.00",Yes
Communities & Local Government,DCLG,03/05/2012,NNDR Billing Authorities Receipts,Localism,COVENTRY CITY CNCL,,,,5000199485,Grant Payable by Exchequer,CV1 2QL,"-5,248,716.00",Yes
Communities & Local Government,DCLG,03/05/2012,NNDR Billing Authorities Receipts,Localism,CROYDON LB,,,,5000199515,Grant Payable by Exchequer,CR9 3JS,"-5,141,972.00",Yes
Communities & Local Government,DCLG,03/05/2012,NNDR Billing Authorities Receipts,Localism,DARLINGTON BC,,,,5000198717,Grant Payable by Exchequer,TS19 1JA,"-1,540,574.00",Yes
Communities & Local Government,DCLG,03/05/2012,NNDR Billing Authorities Receipts,Localism,DERBY CITY CNCL,,,,5000198748,Grant Payable by Exchequer,DE1 2FS,"-3,851,946.00",Yes
Communities & Local Government,DCLG,03/05/2012,NNDR Billing Authorities Receipts,Localism,DONCASTER MBC,,,,5000198810,Grant Payable by Exchequer,DN1 3QA,"-3,979,092.00",Yes
Communities & Local Government,DCLG,03/05/2012,NNDR Billing Authorities Receipts,Localism,DUDLEY MBC,,,,5000198853,Grant Payable by Exchequer,DY1 1HF,"-4,318,932.00",Yes
Communities & Local Government,DCLG,03/05/2012,NNDR Billing Authorities Receipts,Localism,DURHAM COUNTY COUNCIL,,,,5000199497,Grant Payable by Exchequer,DH1 5UE,"-5,144,179.00",Yes
Communities & Local Government,DCLG,03/05/2012,NNDR Billing Authorities Receipts,Localism,EAST RIDING OF YORKS,,,,5000198972,Grant Payable by Exchequer,HU17 9AB,"-3,910,739.00",Yes
Communities & Local Government,DCLG,03/05/2012,NNDR Billing Authorities Receipts,Localism,ENFIELD LB,,,,5000199057,Grant Payable by Exchequer,EN1 3XF,"-4,719,317.00",Yes
Communities & Local Government,DCLG,03/05/2012,NNDR Billing Authorities Receipts,Localism,GATESHEAD MBC,,,,5000199196,Grant Payable by Exchequer,NE8 1HH,"-3,825,332.00",Yes
Communities & Local Government,DCLG,03/05/2012,NNDR Billing Authorities Receipts,Localism,GREENWICH LB,,,,5000199283,Grant Payable by Exchequer,SE18 6RA,"-2,764,640.00",Yes
Communities & Local Government,DCLG,03/05/2012,NNDR Billing Authorities Receipts,Localism,HALTON BC,,,,5000199313,Grant Payable by Exchequer,WA8 7QF,"-2,326,123.00",Yes
Communities & Local Government,DCLG,03/05/2012,NNDR Billing Authorities Receipts,Localism,HARINGEY LB,,,,5000199368,Grant Payable by Exchequer,N22 7TR,"-2,909,112.00",Yes
Communities & Local Government,DCLG,03/05/2012,NNDR Billing Authorities Receipts,Localism,HARROW LB,,,,5000199397,Grant Payable by Exchequer,HA1 2UZ,"-2,170,183.00",Yes
Communities & Local Government,DCLG,03/05/2012,NNDR Billing Authorities Receipts,Localism,HARTLEPOOL BOROUGH COUNCIL,,,,5000199418,Grant Payable by Exchequer,TS24 7BT,"-1,300,539.00",Yes
Communities & Local Government,DCLG,03/05/2012,NNDR Billing Authorities Receipts,Localism,HEREFORDSHIRE DISTRICT COUNCIL,,,,5000199464,Grant Payable by Exchequer,HR1 1SH,"-2,073,689.00",Yes
Communities & Local Government,DCLG,03/05/2012,NNDR Billing Authorities Receipts,Localism,HULL CITY COUNCIL,,,,5000198844,Grant Payable by Exchequer,HU1 2AA,"-4,297,719.00",Yes
Communities & Local Government,DCLG,03/05/2012,NNDR Billing Authorities Receipts,Localism,ISLE OF WIGHT CNCL,,,,5000198743,Grant Payable by Exchequer,PO30 1UD,"-1,523,911.00",Yes
Communities & Local Government,DCLG,03/05/2012,NNDR Billing Authorities Receipts,Localism,ISLES OF SCILLY COUNCIL,,,,5000198766,Grant Payable by Exchequer,TR21 0LW,"-69,400.00",Yes
Communities & Local Government,DCLG,03/05/2012,NNDR Billing Authorities Receipts,Localism,KIRKLEES MBC,,,,5000198869,Grant Payable by Exchequer,HD1 2YU,"-4,855,366.00",Yes
Communities & Local Government,DCLG,03/05/2012,NNDR Billing Authorities Receipts,Localism,KNOWSLEY MBC,,,,5000198881,Grant Payable by Exchequer,L36 9YZ,"-1,853,839.00",Yes
Communities & Local Government,DCLG,03/05/2012,NNDR Billing Authorities Receipts,Localism,LEICESTER CITY CNCL,,,,5000198947,Grant Payable by Exchequer,LE1 6ZG,"-4,636,915.00",Yes
Communities & Local Government,DCLG,03/05/2012,NNDR Billing Authorities Receipts,Localism,LEWISHAM LB,,,,5000198989,Grant Payable by Exchequer,SE6 4RU,"-2,200,150.00",Yes
Communities & Local Government,DCLG,03/05/2012,NNDR Billing Authorities Receipts,Localism,LIVERPOOL CITY COUNCIL,,,,5000199037,Grant Payable by Exchequer,L2 2DH,"-8,796,965.00",Yes
Communities & Local Government,DCLG,03/05/2012,NNDR Billing Authorities Receipts,Localism,LONDON BOROUGH OF HACKNEY,,,,5000199303,Grant Payable by Exchequer,E8 4RU,"-3,883,504.00",Yes
Communities & Local Government,DCLG,03/05/2012,NNDR Billing Authorities Receipts,Localism,LONDON BOROUGH OF LAMBETH,,,,5000198893,Grant Payable by Exchequer,SW2 1RL,"-5,253,317.00",Yes
Communities & Local Government,DCLG,03/05/2012,NNDR Billing Authorities Receipts,Localism,LONDON BOROUGH OF NEWHAM,,Large,,5000199316,Grant Payable by Exchequer,E16 2QU,"-5,317,852.00",Yes
Communities & Local Government,DCLG,03/05/2012,NNDR Billing Authorities Receipts,Localism,LONDON BOROUGH OF REDBRIDGE,,,,5000198794,Grant Payable by Exchequer,IG1 1NN,"-2,413,967.00",Yes
Communities & Local Government,DCLG,03/05/2012,NNDR Billing Authorities Receipts,Localism,LUTON BC,,,,5000199049,Grant Payable by Exchequer,LU1 1DX,"-3,121,335.00",Yes
Communities & Local Government,DCLG,03/05/2012,NNDR Billing Authorities Receipts,Localism,MANCHESTER CITY CNCL,,,,5000199097,Grant Payable by Exchequer,M60 2JR,"-14,492,040.00",Yes
Communities & Local Government,DCLG,03/05/2012,NNDR Billing Authorities Receipts,Localism,MEDWAY COUNCIL,,,,5000199133,Grant Payable by Exchequer,ME4 4TR,"-3,706,540.00",Yes
Communities & Local Government,DCLG,03/05/2012,NNDR Billing Authorities Receipts,Localism,MIDDLESBROUGH BC,,,,5000199230,Grant Payable by Exchequer,TS1 9GA,"-1,899,818.00",Yes
Communities & Local Government,DCLG,03/05/2012,NNDR Billing Authorities Receipts,Localism,NEWCASTLE UPON TYNE DC,,,,5000199296,Grant Payable by Exchequer,NE99 1RD,"-6,827,411.00",Yes
Communities & Local Government,DCLG,03/05/2012,NNDR Billing Authorities Receipts,Localism,NORTH EAST LINCOLN DC,,,,5000199356,Grant Payable by Exchequer,DN31 1HU,"-2,956,188.00",Yes
Communities & Local Government,DCLG,03/05/2012,NNDR Billing Authorities Receipts,Localism,NORTH TYNESIDE MBC,,,,5000199415,Grant Payable by Exchequer,NE30 1AE,"-2,673,638.00",Yes
Communities & Local Government,DCLG,03/05/2012,NNDR Billing Authorities Receipts,Localism,NORTHUMBERLAND,,,,5000199507,Grant Payable by Exchequer,NE61 2EF,"-3,410,614.00",Yes
Communities & Local Government,DCLG,03/05/2012,NNDR Billing Authorities Receipts,Localism,NOTTINGHAM CITY COUNCIL,,,,5000199486,Grant Payable by Exchequer,M33 0DJ,"-5,790,411.00",Yes
Communities & Local Government,DCLG,03/05/2012,NNDR Billing Authorities Receipts,Localism,OLDHAM MBC,,,,5000199541,Grant Payable by Exchequer,OL1 1UH,"-2,646,241.00",Yes
Communities & Local Government,DCLG,03/05/2012,NNDR Billing Authorities Receipts,Localism,PLYMOUTH CITY CNCL,,,,5000198724,Grant Payable by Exchequer,PL1 2AA,"-3,964,888.00",Yes
Communities & Local Government,DCLG,03/05/2012,NNDR Billing Authorities Receipts,Localism,PORTSMOUTH CITY COUNCIL,,,,5000198747,Grant Payable by Exchequer,PO1 2AR,"-3,708,066.00",Yes
Communities & Local Government,DCLG,03/05/2012,NNDR Billing Authorities Receipts,Localism,REDCAR & CLEVELAND BOROUGH COUNCIL,,,,5000198806,Grant Payable by Exchequer,TS6 9AR,"-2,331,035.00",Yes
Communities & Local Government,DCLG,03/05/2012,NNDR Billing Authorities Receipts,Localism,ROCHDALE MBC,,,,5000198879,Grant Payable by Exchequer,OL16 1LQ,"-2,913,839.00",Yes
Communities & Local Government,DCLG,03/05/2012,NNDR Billing Authorities Receipts,Localism,ROTHERHAM MBC,,,,5000198928,Grant Payable by Exchequer,S65 1UF,"-3,322,189.00",Yes
Communities & Local Government,DCLG,03/05/2012,NNDR Billing Authorities Receipts,Localism,SALFORD CITY CNCL,,,,5000199012,Grant Payable by Exchequer,M27 5AW,"-3,882,546.00",Yes
Communities & Local Government,DCLG,03/05/2012,NNDR Billing Authorities Receipts,Localism,SANDWELL MBC,,,,5000199022,Grant Payable by Exchequer,B69 3BS,"-4,364,634.00",Yes
Communities & Local Government,DCLG,03/05/2012,NNDR Billing Authorities Receipts,Localism,SEFTON MBC,,,,5000199058,Grant Payable by Exchequer,L20 3NQ,"-3,184,507.00",Yes
Communities & Local Government,DCLG,03/05/2012,NNDR Billing Authorities Receipts,Localism,SHEFFIELD CITY CNCL,,,,5000199095,Grant Payable by Exchequer,S1 1UR,"-9,339,894.00",Yes
Communities & Local Government,DCLG,03/05/2012,NNDR Billing Authorities Receipts,Localism,SHROPSHIRE COUNCIL,,Large,,5000199517,Grant Payable by Exchequer,SY2 6ND,"-3,332,783.00",Yes
Communities & Local Government,DCLG,03/05/2012,NNDR Billing Authorities Receipts,Localism,SOUTH TYNESIDE COUNCIL,,,,5000199314,Grant Payable by Exchequer,NE33 2RL,"-1,372,463.00",Yes
Communities & Local Government,DCLG,03/05/2012,NNDR Billing Authorities Receipts,Localism,SOUTHEND ON SEA BC,,,,5000199344,Grant Payable by Exchequer,SS2 6EP,"-2,055,475.00",Yes
Communities & Local Government,DCLG,03/05/2012,NNDR Billing Authorities Receipts,Localism,SOUTHWARK LB,,,,5000199354,Grant Payable by Exchequer,SE16 3QN,"-9,017,135.00",Yes
Communities & Local Government,DCLG,03/05/2012,NNDR Billing Authorities Receipts,Localism,ST HELENS MBC,,,,5000199394,Grant Payable by Exchequer,WA10 1HP,"-2,229,275.00",Yes
Communities & Local Government,DCLG,03/05/2012,NNDR Billing Authorities Receipts,Localism,STOKE ON TRENT CITY COUNCIL,,,,5000199468,Grant Payable by Exchequer,ST4 1RJ,"-3,735,031.00",Yes
Communities & Local Government,DCLG,03/05/2012,NNDR Billing Authorities Receipts,Localism,SUNDERLAND DC,,,,5000199518,Grant Payable by Exchequer,SR2 7DN,"-3,912,542.00",Yes
Communities & Local Government,DCLG,03/05/2012,NNDR Billing Authorities Receipts,Localism,SUTTON LB,,,,5000198727,Grant Payable by Exchequer,SM1 1EA,"-2,346,052.00",Yes
Communities & Local Government,DCLG,03/05/2012,NNDR Billing Authorities Receipts,Localism,TAMESIDE MBC,,,,5000198763,Grant Payable by Exchequer,OL6 6DL,"-2,537,914.00",Yes
Communities & Local Government,DCLG,03/05/2012,NNDR Billing Authorities Receipts,Localism,TELFORD & WREKIN DC,,,,5000198823,Grant Payable by Exchequer,TF3 4LF,"-3,044,819.00",Yes
Communities & Local Government,DCLG,03/05/2012,NNDR Billing Authorities Receipts,Localism,TORBAY BC,,,,5000198925,Grant Payable by Exchequer,TQ1 3DR,"-1,689,709.00",Yes
Communities & Local Government,DCLG,03/05/2012,NNDR Billing Authorities Receipts,Localism,WALSALL MBC,,,,5000199026,Grant Payable by Exchequer,WS1 1TW,"-3,135,747.00",Yes
Communities & Local Government,DCLG,03/05/2012,NNDR Billing Authorities Receipts,Localism,WALTHAM FOREST LB,,Large,,5000199038,Grant Payable by Exchequer,E17 4JF,"-2,517,002.00",Yes
Communities & Local Government,DCLG,03/05/2012,NNDR Billing Authorities Receipts,Localism,WANDSWORTH LB,,,,5000199050,Grant Payable by Exchequer,SW18 2PU,"-4,628,798.00",Yes
Communities & Local Government,DCLG,03/05/2012,NNDR Billing Authorities Receipts,Localism,WIGAN MBC,,,,5000199307,Grant Payable by Exchequer,WN1 1YD,"-3,476,628.00",Yes
Communities & Local Government,DCLG,03/05/2012,NNDR Billing Authorities Receipts,Localism,WIRRAL MBC,,,,5000199347,Grant Payable by Exchequer,L41 6BU,"-3,072,413.00",Yes
Communities & Local Government,DCLG,03/05/2012,NNDR Billing Authorities Receipts,Localism,WOLVERHAMPTON MBC,,,,5000199377,Grant Payable by Exchequer,WV1 1RL,"-3,315,816.00",Yes
Communities & Local Government,DCLG,03/05/2012,Professional services,Localism,VALUATION OFFICE AGENCY,,Public Bodies,,2100217084,Payment for May work on NNDR and CTax,W1B 5BU,"12,416,666.66",
Communities & Local Government,DCLG,03/05/2012,Publishing,Neighbourhoods,TEMPO GRAPHIC DESIGN LTD,,Medium,,5106178582,2 ERDF Banner Stands ( Y&H) expm 11/040,SE15 6NJ,427.00
Communities & Local Government,DCLG,03/05/2012,Research,Finance & Corporate Services,NETFUNDI LTD,,Micro,,5106178592,20% Research DATABASE,LA1 1SQ,861.00
Communities & Local Government,DCLG,03/05/2012,Security,Finance & Corporate Services,TAYLOR WOODROW CONSTRUCTION,,Large,,5106178515,Rivergate Reception Jan-Sep12,WD24 4WW,"2,607.03"
Communities & Local Government,DCLG,03/05/2012,Security,Finance & Corporate Services,TAYLOR WOODROW CONSTRUCTION,,Large,,5106178515,Rivergate Security Jan-Sep12,WD24 4WW,"8,885.44"
Communities & Local Government,DCLG,03/05/2012,Steady State Service Provision,Finance & Corporate Services,LOGICA (CMG UK LTD),,Large,,5106178580,Blanket PRF for Logica Payroll (10-11),TW18 4LG,"1,137.18"
Communities & Local Government,DCLG,03/05/2012,Training,Finance & Corporate Services,BEAMANS MANAGEMENT CONSULTANTS,,,,5106178330,Job Evaluator Training (JEGS),WD2 6DE,800.00
Communities & Local Government,DCLG,03/05/2012,Training,Finance & Corporate Services,DCLG GOVERNMENT PROCUREMENT CARD,,,,1000003590,training,TN37 7GA,345.00
Communities & Local Government,DCLG,03/05/2012,Training,Finance & Corporate Services,JUST DELIVER LTD,,Micro,,5106178570,Development support for SCS member with high potential,GU10 2LU,621.30
Communities & Local Government,DCLG,03/05/2012,Water,Finance & Corporate Services,SOUTH WEST WATER,,Large,,5106178558,July 11 to March 12 Mast Hse Water Chg,EX2 7HS,592.01
Communities & Local Government,DCLG,03/05/2012,Work In Progress Pre-Cert 40373 Spend,Neighbourhoods,E-FACTOR ENTERPRISE (NEL) LIMITED,,Small,,7600001546,ERDF Claim - 16 - P3-YH,DN34 5BQ,"162,967.54"
Communities & Local Government,DCLG,03/05/2012,Work In Progress Pre-Cert 40373 Spend,Neighbourhoods,HUDDERSFIELD UNIVERISTY,,,,7600001545,ERDF Claim - 24 - P1-YH,HD1 3DH,"14,142.73"
Communities & Local Government,DCLG,03/05/2012,Work In Progress Pre-Cert 40373 Spend,Neighbourhoods,KEY FUND (STH YORKSHIRE) LTD,,,,7600001532,ERDF Claim - 19 - P3-SY,S9 3TY,"2,260.90"
Communities & Local Government,DCLG,03/05/2012,Work In Progress Pre-Cert 40373 Spend,Neighbourhoods,KEY FUND (STH YORKSHIRE) LTD,,,,7600001534,ERDF Claim - 19 - P3-YH,S9 3TY,"3,220.73"
Communities & Local Government,DCLG,03/05/2012,Work In Progress Pre-Cert 40373 Spend,Neighbourhoods,KEY FUND (STH YORKSHIRE) LTD,,,,7600001538,ERDF Claim - 21 - P3-SY,S9 3TY,"2,098.97"
Communities & Local Government,DCLG,03/05/2012,Work In Progress Pre-Cert 40373 Spend,Neighbourhoods,KEY FUND (STH YORKSHIRE) LTD,,,,7600001539,ERDF Claim - 21 - P3-YH,S9 3TY,"2,576.40"
Communities & Local Government,DCLG,03/05/2012,Work In Progress Pre-Cert 40373 Spend,Neighbourhoods,KEY FUND (STH YORKSHIRE) LTD,,,,7600001540,ERDF Claim - 15 - P3-SY,S9 3TY,"9,946.00"
Communities & Local Government,DCLG,03/05/2012,Work In Progress Pre-Cert 40373 Spend,Neighbourhoods,KEY FUND (STH YORKSHIRE) LTD,,,,7600001541,ERDF Claim - 15 - P3-YH,S9 3TY,"21,660.93"
Communities & Local Government,DCLG,03/05/2012,Work In Progress Pre-Cert 40373 Spend,Neighbourhoods,ROTHERHAM METROPOLITAN BC,,,,7600001537,ERDF Claim - 23 - P3-SY,S65 1DJ,"5,974.98"
Communities & Local Government,DCLG,03/05/2012,Work In Progress Pre-Cert 40373 Spend,Neighbourhoods,SCARBOROUGH BOROUGH COUNCIL,,,,7600001536,ERDF Claim - 42 - P3-YH,YO11 2HG,"34,782.08"
Communities & Local Government,DCLG,03/05/2012,Work In Progress Pre-Cert 40373 Spend,Neighbourhoods,SHEFFIELD HALLAM UNIVERSITY,,,,7600001535,ERDF Claim - 39 - P1-SY,S1 1WB,"31,216.30"
Communities & Local Government,DCLG,03/05/2012,Work In Progress Pre-Cert 40373 Spend,Neighbourhoods,SHEFFIELD HALLAM UNIVERSITY,,,,7600001544,ERDF Claim - 39 - P1-YH,S1 1WB,"9,453.59"
Communities & Local Government,DCLG,03/05/2012,Work In Progress Pre-Cert 40373 Spend,Neighbourhoods,YORKS & HUMBER PEOPLE UTD AGAINST C,,,,7600001542,ERDF Claim - 6 - P2-SY,S1 2AH,"21,066.73"
Communities & Local Government,DCLG,03/05/2012,Work In Progress Pre-Cert 40373 Spend,Neighbourhoods,YORKS & HUMBER PEOPLE UTD AGAINST C,,,,7600001543,ERDF Claim - 6 - P2-YH,S1 2AH,"39,040.73"
Communities & Local Government,DCLG,03/05/2012,Work In Progress Pre-Cert 40467 Spend,Neighbourhoods,HUDDERSFIELD UNIVERISTY,,,,7600001545,ERDF Claim - 24 - P1-YH,HD1 3DH,"487,792.57"
Communities & Local Government,DCLG,03/05/2012,Work In Progress Pre-Cert 40467 Spend,Neighbourhoods,KEY FUND (STH YORKSHIRE) LTD,,,,7600001534,ERDF Claim - 19 - P3-YH,S9 3TY,"31,850.00"
Communities & Local Government,DCLG,03/05/2012,Work In Progress Pre-Cert 40467 Spend,Neighbourhoods,KEY FUND (STH YORKSHIRE) LTD,,,,7600001538,ERDF Claim - 21 - P3-SY,S9 3TY,"5,300.01"
Communities & Local Government,DCLG,03/05/2012,Work In Progress Pre-Cert 40467 Spend,Neighbourhoods,KEY FUND (STH YORKSHIRE) LTD,,,,7600001539,ERDF Claim - 21 - P3-YH,S9 3TY,"24,500.00"
Communities & Local Government,DCLG,03/05/2012,Work In Progress Pre-Cert 40467 Spend,Neighbourhoods,KEY FUND (STH YORKSHIRE) LTD,,,,7600001540,ERDF Claim - 15 - P3-SY,S9 3TY,"22,294.45"
Communities & Local Government,DCLG,03/05/2012,Work In Progress Pre-Cert 40467 Spend,Neighbourhoods,KEY FUND (STH YORKSHIRE) LTD,,,,7600001541,ERDF Claim - 15 - P3-YH,S9 3TY,"183,705.08"
Communities & Local Government,DCLG,04/05/2012,Agency Staff,Finance & Corporate Services,REED SPECIALIST RECRUITMENT LTD,,Large,,5106178601,Temp Electoral Claims,NN1 1UE,733.91
Communities & Local Government,DCLG,04/05/2012,Agency Staff,Finance & Corporate Services,REED SPECIALIST RECRUITMENT LTD,,Large,,5106178604,Temp electoral claims,NN1 1UE,687.46
Communities & Local Government,DCLG,04/05/2012,Agency Staff,Finance & Corporate Services,REED SPECIALIST RECRUITMENT LTD,,Large,,5106178608,Temp Electoral Claims EO,NN1 1UE,604.09
Communities & Local Government,DCLG,04/05/2012,Agency Staff,Finance & Corporate Services,REED SPECIALIST RECRUITMENT LTD,,Large,,5106178612,Agency Staff,NN1 1UE,696.75,
Communities & Local Government,DCLG,04/05/2012,Agency Staff,Finance & Corporate Services,REED SPECIALIST RECRUITMENT LTD,,Large,,5106178619,Agency Staff,NN1 1UE,464.50,
Communities & Local Government,DCLG,04/05/2012,Agency Staff,Finance & Corporate Services,REED SPECIALIST RECRUITMENT LTD,,Large,,5106178622,Agency Staff,NN1 1UE,743.20,
Communities & Local Government,DCLG,04/05/2012,Agency Staff,Finance & Corporate Services,REED SPECIALIST RECRUITMENT LTD,,Large,,5106178625,agency staff,NN1 1UE,743.20,
Communities & Local Government,DCLG,04/05/2012,Agency Staff,Finance & Corporate Services,REED SPECIALIST RECRUITMENT LTD,,Large,,5106178627,Agency Staff,NN1 1UE,733.91,
Communities & Local Government,DCLG,04/05/2012,Agency Staff,Finance & Corporate Services,REED SPECIALIST RECRUITMENT LTD,,Large,,5106178599,Temp Electoral Claims,NN1 1UE,617.79,
Communities & Local Government,DCLG,04/05/2012,Cap Grants to Local Authorities (DEL),Neighbourhoods,LONDON BOROUGH HACKNEY(USE408124),,Public Bodies,,2100216976,2011-12 Olympics Public Realm grant -claim 4,E8 4RU,"1,219,773.00",Yes
Communities & Local Government,DCLG,04/05/2012,Conferences and Meeting Facilities,Neighbourhoods,TEMPO GRAPHIC DESIGN LTD,,Medium,,5106178583,Provision & delivery of 5 Banner Stands,SE15 6NJ,"1,279.20",
Communities & Local Government,DCLG,04/05/2012,Current Grants to Non Profit Bodies,Neighbourhoods,BRITISH CHAMBERS OF COMMERCE,,,,2100217137,4th claim BCC Local Enterprise Partnership Network,CV3 2UN,"64,061.00",Yes
Communities & Local Government,DCLG,04/05/2012,IT - Service Contracts,Finance & Corporate Services,COMPUTACENTER (UK) LTD,,Large,,5106178388,Evault data backup mthly charge 2011/12,AL10 9TW,-866.40,
Communities & Local Government,DCLG,04/05/2012,IT - Service Contracts,Finance & Corporate Services,COMPUTACENTER (UK) LTD,,Large,,5106178388,Leased line charges 2011/12,AL10 9TW,-900.00,
Communities & Local Government,DCLG,04/05/2012,IT - Service Contracts,Finance & Corporate Services,REMPLOY E-CYCLE,,Large,,5106178561,GO Disposal - London - REMPLOY,CF39 9BW,898.70,
Communities & Local Government,DCLG,04/05/2012,IT - Service Contracts,Finance & Corporate Services,REMPLOY E-CYCLE,,Large,,5106178563,GO Disposal - Cambridge - REMPLOY,CF39 9BW,"3,791.00",
Communities & Local Government,DCLG,04/05/2012,IT - Service Contracts,Finance & Corporate Services,REMPLOY E-CYCLE,,Large,,5106178564,GO Disposal - Birmingham - REMPLOY,CF39 9BW,"2,803.90",
Communities & Local Government,DCLG,04/05/2012,IT - Service Contracts,Finance & Corporate Services,REMPLOY E-CYCLE,,Large,,5106178565,GO Disposal - Warrington - REMPLOY,CF39 9BW,494.50,
Communities & Local Government,DCLG,04/05/2012,IT - Service Contracts,Finance & Corporate Services,REMPLOY E-CYCLE,,Large,,5106178566,GO Disposal - Guildford - REMPLOY,CF39 9BW,"5,170.20",
Communities & Local Government,DCLG,04/05/2012,IT - Service Contracts,Finance & Corporate Services,REMPLOY E-CYCLE,,Large,,5106178568,Secure Disposal of ex-GO ICT kitLeedsLat,CF39 9BW,"4,787.00"
Communities & Local Government,DCLG,04/05/2012,IT - Service Contracts,Finance & Corporate Services,VERIZON UK LTD,,Large,,5106178602,WebRap hosting charges,RG2 6DA,"13,573.66"
Communities & Local Government,DCLG,04/05/2012,IT - Service Contracts,Finance & Corporate Services,VERIZON UK LTD,,Large,,5106178602,ARTEMIS hosting charges,RG2 6DA,573.76
Communities & Local Government,DCLG,04/05/2012,IT - Service Contracts,Localism,VERIZON UK LTD,,Large,,5106178602,IRS Hosting charges,RG2 6DA,"13,251.58"
Communities & Local Government,DCLG,04/05/2012,IT - Service Contracts,Neighbourhoods,VERIZON UK LTD,,Large,,5106178602,TESA hosting charges,RG2 6DA,"14,042.27"
Communities & Local Government,DCLG,04/05/2012,IT Maintenance,Finance & Corporate Services,COMPUTACENTER (UK) LTD,,Large,,5106178644,SE T2000 23 months hardware support,AL10 9TW,"4,653.42"
Communities & Local Government,DCLG,04/05/2012,Management Consultancy,Neighbourhoods,CEL GROUP,,Medium,,5106178650,Payments for 1/10/11 - 30/09/12,SK13 8HT,"85,415.60"
Communities & Local Government,DCLG,04/05/2012,Office Supplies,Finance & Corporate Services,BANNER BUSINESS SUPPLIES LTD,,Large,,5106178584,DELWEEKLY Banner A4 Recycled Copier Pape,NR3 1PD,272.16
Communities & Local Government,DCLG,04/05/2012,Office Supplies,Localism,BANNER BUSINESS SUPPLIES LTD,,Large,,5106178588,DELWEEKLY Banner A4 Recycled Copier Pape,NR3 1PD,272.16
Communities & Local Government,DCLG,04/05/2012,Professional services,Finance & Corporate Services,GVA GRIMLEY LTD,,Large,,5106178640,PAMU Y&H RCC Valuation,B1 2JB,"6,000.00"
Communities & Local Government,DCLG,04/05/2012,Professional services,Finance & Corporate Services,GVA GRIMLEY LTD,,Large,,5106178640,PAMU EM RCC Valuation,B1 2JB,"6,000.00"
Communities & Local Government,DCLG,04/05/2012,Professional services,Finance & Corporate Services,GVA GRIMLEY LTD,,Large,,5106178640,PAMU WM RCC Valuation,B1 2JB,"6,000.00"
Communities & Local Government,DCLG,04/05/2012,Professional services,Finance & Corporate Services,GVA GRIMLEY LTD,,Large,,5106178640,PAMU SW RCC Valuation,B1 2JB,"6,000.00"
Communities & Local Government,DCLG,04/05/2012,Professional services,Finance & Corporate Services,GVA GRIMLEY LTD,,Large,,5106178640,PAMU RCC Valuation Travelling Expenses,B1 2JB,360.24
Communities & Local Government,DCLG,04/05/2012,Research,Strategic Performance Team,MARKET & OPINION RESEARCH INT LTD,,Large,,5106178641,Research for Riots and Victims Panel,SE1 1FY,"80,352.90"
Communities & Local Government,DCLG,04/05/2012,Training,Finance & Corporate Services,NOTTINGHAM TRENT UNIVERSITY,,Large,,5106178614,Diploma in Public Administration (year 2,NG1 4BU,"2,950.00"
Communities & Local Government,DCLG,04/05/2012,Training,Finance & Corporate Services,SOUTHAMPTON UNIVERSITY,,Large,,5106178630,Analysis of Complex Survey Data Course - professional development ,SO17 1BJ,440.00
Communities & Local Government,DCLG,04/05/2012,Work In Progress Pre-Cert 40373 Spend,Neighbourhoods,ASTON UNIVERSITY,,Large,,7600001551,ERDF Claim - 27 - P1,B4 7ET,"6,298.67"
Communities & Local Government,DCLG,04/05/2012,Work In Progress Pre-Cert 40373 Spend,Neighbourhoods,ASTON UNIVERSITY,,Large,,7600001552,ERDF Claim - 2 - P1,B4 7ET,"17,664.09"
Communities & Local Government,DCLG,04/05/2012,Work In Progress Pre-Cert 40373 Spend,Neighbourhoods,ASTON UNIVERSITY,,Large,,7600001555,ERDF Claim - 3 - P1,B4 7ET,"21,891.03"
Communities & Local Government,DCLG,04/05/2012,Work In Progress Pre-Cert 40373 Spend,Neighbourhoods,COVENTRY & WARKS RE-INVESTMT TRUST,,Small,,7600001548,ERDF Claim - 10 - P2,CV1 2FL,"1,250.00"
Communities & Local Government,DCLG,04/05/2012,Work In Progress Pre-Cert 40373 Spend,Neighbourhoods,COVENTRY UNIVERSITY ENTERPRISES LTD,,Medium,,7600001547,ERDF Claim - 26 - P4,CV1 2TT,"4,768.87"
Communities & Local Government,DCLG,04/05/2012,Work In Progress Pre-Cert 40373 Spend,Neighbourhoods,COVENTRY UNIVERSITY ENTERPRISES LTD,,Medium,,7600001553,ERDF Claim - 12 - P1,CV1 2TT,"19,569.59"
Communities & Local Government,DCLG,04/05/2012,Work In Progress Pre-Cert 40373 Spend,Neighbourhoods,COVENTRY UNIVERSITY ENTERPRISES LTD,,Medium,,7600001554,ERDF Claim - 13 - P1,CV1 2TT,"17,618.81"
Communities & Local Government,DCLG,04/05/2012,Work In Progress Pre-Cert 40373 Spend,Neighbourhoods,SOLIHULL METROPOLITAN BC,,Large,,7600001550,ERDF Claim - 24 - P3,B91 3QS,"3,384.10"
Communities & Local Government,DCLG,04/05/2012,Work In Progress Pre-Cert 40373 Spend,Neighbourhoods,UNIVERSITY OF WOLVERHAMPTON,,Large,,7600001549,ERDF Claim - 23 - P1,WV1 1SB,"139,637.86"
Communities & Local Government,DCLG,04/05/2012,Work In Progress Pre-Cert 40467 Spend,Neighbourhoods,COVENTRY & WARKS RE-INVESTMT TRUST,,Small,,7600001548,ERDF Claim - 10 - P2,CV1 2FL,"3,000.00"
Communities & Local Government,DCLG,08/05/2012,Agency Staff,Finance & Corporate Services,PRICEWATERHOUSE,,Large,,5106178674,Internal Audit Interims,EC4A 4HT,"64,470.00"
Communities & Local Government,DCLG,08/05/2012,Agency Staff,Finance & Corporate Services,PRICEWATERHOUSE,,Large,,5106178675,Internal Audit Interims,EC4A 4HT,"86,730.00"
Communities & Local Government,DCLG,08/05/2012,Domestic Services,Finance & Corporate Services,TAYLOR WOODROW CONSTRUCTION,,Large,,5106178617,Mast House Cleaning and Sundry Nov11-Jun,WD24 4WW,"2,710.79"
Communities & Local Government,DCLG,08/05/2012,Domestic Services,Finance & Corporate Services,TAYLOR WOODROW CONSTRUCTION,,Large,,5106178617,"Bridge House Grounds, Cleaning and Sundr",WD24 4WW,"7,465.89"
Communities & Local Government,DCLG,08/05/2012,Domestic Services,Finance & Corporate Services,TAYLOR WOODROW CONSTRUCTION,,Large,,5106178617,City Gate Cleaning and Sundry Nov11-Jun1,WD24 4WW,"6,829.04"
Communities & Local Government,DCLG,08/05/2012,Domestic Services,Finance & Corporate Services,TAYLOR WOODROW CONSTRUCTION,,Large,,5106178617,Queen St Cleaning and Sundry Nov11-Jun12,WD24 4WW,"3,861.44",
Communities & Local Government,DCLG,08/05/2012,Facilities Management (ISD use only),Finance & Corporate Services,TAYLOR WOODROW CONSTRUCTION,,Large,,5106178617,Mast House All Staff Nov11-Jun12,WD24 4WW,691.18,
Communities & Local Government,DCLG,08/05/2012,Facilities Management (ISD use only),Finance & Corporate Services,TAYLOR WOODROW CONSTRUCTION,,Large,,5106178617,Mast House Central Costs  Nov11-Jun12,WD24 4WW,994.31,
Communities & Local Government,DCLG,08/05/2012,Facilities Management (ISD use only),Finance & Corporate Services,TAYLOR WOODROW CONSTRUCTION,,Large,,5106178617,Mast House Variable Labour Costs Nov11-J,WD24 4WW,578.50,
Communities & Local Government,DCLG,08/05/2012,Facilities Management (ISD use only),Finance & Corporate Services,TAYLOR WOODROW CONSTRUCTION,,Large,,5106178617,Bridge House All Staff Nov11-Jun12,WD24 4WW,"7,611.61",
Communities & Local Government,DCLG,08/05/2012,Facilities Management (ISD use only),Finance & Corporate Services,TAYLOR WOODROW CONSTRUCTION,,Large,,5106178617,Bridge House Central Costs  Nov11-Jun12,WD24 4WW,"3,620.29",
Communities & Local Government,DCLG,08/05/2012,Facilities Management (ISD use only),Finance & Corporate Services,TAYLOR WOODROW CONSTRUCTION,,Large,,5106178617,City Gate All Staff Nov11-Jun12,WD24 4WW,"9,624.82",
Communities & Local Government,DCLG,08/05/2012,Facilities Management (ISD use only),Finance & Corporate Services,TAYLOR WOODROW CONSTRUCTION,,Large,,5106178617,City Gate Central Costs  Nov11-Jun12,WD24 4WW,"4,059.83",
Communities & Local Government,DCLG,08/05/2012,Facilities Management (ISD use only),Finance & Corporate Services,TAYLOR WOODROW CONSTRUCTION,,Large,,5106178617,City Gate Variable Labour Costs Nov11-Ju,WD24 4WW,"2,507.21",
Communities & Local Government,DCLG,08/05/2012,Facilities Management (ISD use only),Finance & Corporate Services,TAYLOR WOODROW CONSTRUCTION,,Large,,5106178617,Queen St Central Costs  Nov11-Jun12,WD24 4WW,"1,523.58",
Communities & Local Government,DCLG,08/05/2012,Fixed Maintenance,Finance & Corporate Services,TAYLOR WOODROW CONSTRUCTION,,Large,,5106178617,Mast House M & E and H & S Nov11-Jun12,WD24 4WW,"3,793.45",
Communities & Local Government,DCLG,08/05/2012,Fixed Maintenance,Finance & Corporate Services,TAYLOR WOODROW CONSTRUCTION,,Large,,5106178617,Bridge House M & E and H & S Nov11-Jun12,WD24 4WW,"7,862.33",
Communities & Local Government,DCLG,08/05/2012,Fixed Maintenance,Finance & Corporate Services,TAYLOR WOODROW CONSTRUCTION,,Large,,5106178617,City Gate M & E and H & S Nov11-Jun12,WD24 4WW,"1,333.17",
Communities & Local Government,DCLG,08/05/2012,Fixed Maintenance,Finance & Corporate Services,TAYLOR WOODROW CONSTRUCTION,,Large,,5106178617,Queen St M & E and H & S Nov11-Jun12,WD24 4WW,"4,165.69",
Communities & Local Government,DCLG,08/05/2012,Grant in Aid to NDPBs (non budget),Localism,COMMISSION LOCAL ADMINISTRATION,,,,2100217201,Grant in Aid covering the Ombudsman Service,SW1P 4QP,"838,000.00",Yes
Communities & Local Government,DCLG,08/05/2012,Hospitality,Localism,MITIE CATERING SERVICES LTD,,Large,,2100217203,Hospitality Provided February 2012,BS16 7FN,512.34,
Communities & Local Government,DCLG,08/05/2012,IT - Service Contracts,Finance & Corporate Services,REMPLOY E-CYCLE,,Large,,5106178654,GO Disposal - Newcastle - REMPLOY,CF39 9BW,"4,547.00"
Communities & Local Government,DCLG,08/05/2012,IT - Service Contracts,Neighbourhoods,I B M UK LTD,,Large,,5106178679,Capital CR Budget,PO6 3AE,"2,954.02"
Communities & Local Government,DCLG,08/05/2012,IT - Service Contracts,Neighbourhoods,I B M UK LTD,,Large,,5106178704,Capital CR Budget,PO6 3AE,"7,432.46"
Communities & Local Government,DCLG,08/05/2012,IT - Software Maintenance,Finance & Corporate Services,READSOFT LTD,,Medium,,5106178696,Software annual renewal license 18585,MK9 1BZ,"13,179.84"
Communities & Local Government,DCLG,08/05/2012,Legal Fees,Localism,SNR DENTON UK  LLP,,Large,,5106178668,RCC Buildings Advice for FireControl,EC4M 7WS,699.02
Communities & Local Government,DCLG,08/05/2012,Legal Fees,Localism,SNR DENTON UK  LLP,,Large,,5106178670,RCC Buildings Advice for FireControl,EC4M 7WS,755.72
Communities & Local Government,DCLG,08/05/2012,Legal Fees,Localism,SNR DENTON UK  LLP,,Large,,5106178673,RCC Buildings Advice for FireControl,EC4M 7WS,"6,289.38"
Communities & Local Government,DCLG,08/05/2012,Legal Fees,Localism,SNR DENTON UK  LLP,,Large,,5106178691,RCC Buildings Advice for FireControl,EC4M 7WS,"6,124.30"
Communities & Local Government,DCLG,08/05/2012,Management Consultancy,Neighbourhoods,LAND USE CONSULTANTS,,Medium,,5106178692,Phase 4. Revocation of Regional Strategy,NW1 1JD,"4,209.60"
Communities & Local Government,DCLG,08/05/2012,Office Machinery (<5000),Finance & Corporate Services,DANWOOD FINANCIAL SERVICES LTD,,Large,,5106178698,Photocopier Hire Charge,BS32 4GQ,257.78
Communities & Local Government,DCLG,08/05/2012,Office Supplies,Finance & Corporate Services,BANNER BUSINESS SUPPLIES LTD,,Large,,5106178475,DELWEEKLY Banner A4 Recycled Copier Pape,NR3 1PD,408.24
Communities & Local Government,DCLG,08/05/2012,Publicity,Finance & Corporate Services,DURRANTS LTD,,Large,,5106178697,Press Cuttings,EC1Y 8QE,"4,003.43"
Communities & Local Government,DCLG,08/05/2012,Security,Finance & Corporate Services,TAYLOR WOODROW CONSTRUCTION,,Large,,5106178617,Mast House Security Nov11-Jun12,WD24 4WW,"1,386.25"
Communities & Local Government,DCLG,08/05/2012,Security,Finance & Corporate Services,TAYLOR WOODROW CONSTRUCTION,,Large,,5106178617,Bridge House Security Nov11-Jun12,WD24 4WW,"3,898.79"
Communities & Local Government,DCLG,08/05/2012,Security,Finance & Corporate Services,TAYLOR WOODROW CONSTRUCTION,,Large,,5106178617,City Gate Security Nov11-Jun12,WD24 4WW,"3,242.40"
Communities & Local Government,DCLG,08/05/2012,Security,Finance & Corporate Services,TAYLOR WOODROW CONSTRUCTION,,Large,,5106178617,Queen St Security Nov11-Jun12,WD24 4WW,"3,253.12"
Communities & Local Government,DCLG,08/05/2012,Software Licences,Neighbourhoods,MEMSET,,Small,,5106178694,Miniserver plannaa1 & plannaa2,GU2 7YD,539.82
Communities & Local Government,DCLG,08/05/2012,Telecoms equipment (non-capitalised),Finance & Corporate Services,HIGHWAYS AGENCY,,Public Bodies,,5106178701,Telephone Line Rental,B1 1RN,732.27
Communities & Local Government,DCLG,08/05/2012,Telephone call costs,Finance & Corporate Services,DAMOVO UK LTD,,Large,,5106178684,Telephony Charges,RH12 4QP,372.00
Communities & Local Government,DCLG,08/05/2012,Telephone call costs,Finance & Corporate Services,DAMOVO UK LTD,,Large,,5106178687,Telephony Charges,RH12 4QP,372.00
Communities & Local Government,DCLG,08/05/2012,Training,Finance & Corporate Services,BEAMANS MANAGEMENT CONSULTANTS,,,,5106178689,Job Evaluator Training (JEGS),WD2 6DE,"4,558.20"
Communities & Local Government,DCLG,08/05/2012,Training,Finance & Corporate Services,BEAMANS MANAGEMENT CONSULTANTS,,,,5106178690,Job Evaluator Training (JEGS),WD2 6DE,"3,038.80"
Communities & Local Government,DCLG,08/05/2012,Training,Finance & Corporate Services,GOVMNT EXCHANGE-CPS FRAMEWORK LTD,,Small,,5106178699,Influencing and Negotiation Skills,SE11 5JH,275.00
Communities & Local Government,DCLG,08/05/2012,Training,Finance & Corporate Services,SAP (UK) LTD,,Large,,5106178632,SAP Supplier Relationship Management - professional development (Finance) ,TW14 8HD,"1,248.00"
Communities & Local Government,DCLG,08/05/2012,Training,Finance & Corporate Services,SAP (UK) LTD,,Large,,5106178681,SAP Supplier Relationship Management - professional development (Finance) ,TW14 8HD,"2,210.00"
Communities & Local Government,DCLG,08/05/2012,Waste Disposal and pest control,Finance & Corporate Services,TAYLOR WOODROW CONSTRUCTION,,Large,,5106178617,Bridge House Waste and security shreddin,WD24 4WW,546.08
Communities & Local Government,DCLG,08/05/2012,Work In Progress Pre-Cert 40373 Spend,Neighbourhoods,ASHFIELD DISTRICT COUNCIL,,Large,,7600001559,ERDF Claim - 5 - P2,NG17 8DA,"76,648.65"
Communities & Local Government,DCLG,08/05/2012,Work In Progress Pre-Cert 40373 Spend,Neighbourhoods,GLOUCESTERSHIRE UNIVERSITY,,,,7600001560,ERDF Claim - 12 - P1,GL50 2RH,"72,776.25"
Communities & Local Government,DCLG,08/05/2012,Work In Progress Pre-Cert 40373 Spend,Neighbourhoods,GLOUCESTERSHIRE UNIVERSITY,,,,7600001567,ERDF Claim - 13 - P1,GL50 2RH,"178,844.69"
Communities & Local Government,DCLG,08/05/2012,Work In Progress Pre-Cert 40373 Spend,Neighbourhoods,LINCONSHIRE COUNTY COUNCIL,,Large,,7600001558,ERDF Claim - 9 - P1,LN1 1YT,"31,572.89"
Communities & Local Government,DCLG,08/05/2012,Work In Progress Pre-Cert 40373 Spend,Neighbourhoods,NORTH EAST FINANCE (HOLDCO),,,,7600001557,ERDF Claim - 10 - P1,NE1 4AD,"159,123.58"
Communities & Local Government,DCLG,08/05/2012,Work In Progress Pre-Cert 40373 Spend,Neighbourhoods,SHEFFIELD CITY COUNCIL,,,,7600001561,ERDF Claim - 12 - P2-SY,S1 2SH,"32,740.08"
Communities & Local Government,DCLG,08/05/2012,Work In Progress Pre-Cert 40373 Spend,Neighbourhoods,UNIVERSITY OF LEEDS,,,,7600001565,ERDF Claim - 35 - P1-SY,LS2 9JT,"14,746.50",
Communities & Local Government,DCLG,08/05/2012,Work In Progress Pre-Cert 40373 Spend,Neighbourhoods,UNIVERSITY OF LEEDS,,,,7600001566,ERDF Claim - 35 - P1-YH,LS2 9JT,"30,896.74",
Communities & Local Government,DCLG,08/05/2012,Work In Progress Pre-Cert 40373 Spend,Neighbourhoods,UNIVERSITY OF SHEFFIELD,,,,7600001562,ERDF Claim - 21 - P1-SY,S60 5TZ,"64,678.87",
Communities & Local Government,DCLG,08/05/2012,Work In Progress Pre-Cert 40373 Spend,Neighbourhoods,UNIVERSITY OF SHEFFIELD,,,,7600001563,ERDF Claim - 21 - P1-YH,S60 5TZ,"34,827.90",
Communities & Local Government,DCLG,08/05/2012,Work In Progress Pre-Cert 40467 Spend,Neighbourhoods,LEICESTER CITY COUNCIL,,Large,,7600001556,ERDF Claim - 14 - P1,LE1 6ZG,"3,271.63",
Communities & Local Government,DCLG,08/05/2012,Work In Progress Pre-Cert 40467 Spend,Neighbourhoods,SOUTH YORKS PASSENGER TRANS EXEC,,,,7600001564,ERDF Claim - 50 - P4-SY,S1 2BQ,"10,571.69",
Communities & Local Government,DCLG,09/05/2012,Agency Staff,Finance & Corporate Services,ALLEN LANE FINANCIAL RECRUITMENT,,Medium,Yes,5106178716,Extension until 17 Feb 2012,,"3,240.00",
Communities & Local Government,DCLG,09/05/2012,Agency Staff,Finance & Corporate Services,REED SPECIALIST RECRUITMENT LTD,,Large,,5106178752,Agency Staff,NN1 1UE,390.18,
Communities & Local Government,DCLG,09/05/2012,Agency Staff,Finance & Corporate Services,REED SPECIALIST RECRUITMENT LTD,,Large,,5106178753,Agency Staff,NN1 1UE,627.08,
Communities & Local Government,DCLG,09/05/2012,Agency Staff,Finance & Corporate Services,REED SPECIALIST RECRUITMENT LTD,,Large,,5106178754,Agency Staff,NN1 1UE,543.47,
Communities & Local Government,DCLG,09/05/2012,Current Grants to Non Profit Bodies,Localism,FAITH MATTERS,Yes,Small,,2100217246,MAMA-collect & Analyse Anti-Muslim Incident inUK,W1H 6BR,"91,567.45",Yes
Communities & Local Government,DCLG,09/05/2012,Current Grants to Non Profit Bodies,Neighbourhoods,NIACE,Yes,Medium,,2100217245,Delivering GET Digital Programme in Sheltered Home,LE1 7GE,"20,000.00",Yes
Communities & Local Government,DCLG,09/05/2012,Electricity,Finance & Corporate Services,EDF ENERGY 1 LIMITED,,Large,,5106178718,Eland House Electricty 11-12,PL3 5XQ,"35,539.73",
Communities & Local Government,DCLG,09/05/2012,Electricity,Finance & Corporate Services,EDF ENERGY 1 LIMITED,,Large,,5106178743,EoE Waterbeach Electricity 2012-13,PL3 5XQ,"6,428.09",
Communities & Local Government,DCLG,09/05/2012,Electricity,Finance & Corporate Services,EDF ENERGY 1 LIMITED,,Large,,5106178744,Rivergate Electricity 11-12,PL3 5XQ,"7,728.07",
Communities & Local Government,DCLG,09/05/2012,Electricity,Finance & Corporate Services,EDF ENERGY 1 LIMITED,,Large,,5106178748,Paradise Circus Electricity Supply 11-12,PL3 5XQ,"2,542.38",
Communities & Local Government,DCLG,09/05/2012,Electricity,Finance & Corporate Services,EDF ENERGY 1 LIMITED,,Large,,5106178751,Queen St Leeds Electricity 11-12,PL3 5XQ,"1,578.48",
Communities & Local Government,DCLG,09/05/2012,Electricity,Finance & Corporate Services,EDF ENERGY 1 LIMITED,,Large,,5106178762,WM Wolverhampton Electricity - 2012-13,PL3 5XQ,"6,119.15",
Communities & Local Government,DCLG,09/05/2012,Grant in Aid to NDPBs (non budget),Neighbourhoods,HOMES & COMMUNITIES AGENCY,,Public Bodies,,2100217240,HCA Claim 6,NE11 0NA,"6,554,473.00",Yes
Communities & Local Government,DCLG,09/05/2012,Housing Revenue Account Surplus,Neighbourhoods,NEWCASTLE UPON TYNE DC,,,,5000192122,Overpayment of Grant recovered by Exchequer,NE99 1RD,"-130,320.00",Yes
Communities & Local Government,DCLG,09/05/2012,IT - Service Contracts,Finance & Corporate Services,FUJITSU SERVICES LTD,,Large,,5106178398,Core Service Charge,SL1 0NR,"11,778.00",
Communities & Local Government,DCLG,09/05/2012,IT - Service Contracts,Neighbourhoods,I B M UK LTD,,Large,,5106178713,Capital CR Budget,PO6 3AE,"4,230.46",
Communities & Local Government,DCLG,09/05/2012,IT - Service Contracts,Neighbourhoods,I B M UK LTD,,Large,,5106178714,Capital CR Budget,PO6 3AE,"18,913.30",
Communities & Local Government,DCLG,09/05/2012,IT - Software Maintenance,Finance & Corporate Services,METHODS CONSULTING LTD,,Medium,,5106178711,PIMS Application Support FY 2011/12,WC2H 8AD,"24,000.00",
Communities & Local Government,DCLG,09/05/2012,Legal Fees,Localism,SIMMONS & SIMMONS,,Large,,5106178732,LegalAdvise-Fire. Future Options,EC2Y 9SS,"10,645.20",
Communities & Local Government,DCLG,09/05/2012,Publicity,Neighbourhoods,TEMPO GRAPHIC DESIGN LTD,,Medium,,5106178708,EMPDT ERDF Plaques,SE15 6NJ,"4,194.00",
Communities & Local Government,DCLG,09/05/2012,Publicity,Neighbourhoods,TEMPO GRAPHIC DESIGN LTD,,Medium,,5106178709,ERDF Banners,SE15 6NJ,769.20,
Communities & Local Government,DCLG,09/05/2012,Recruitment,Neighbourhoods,WHITEHALL & INDUSTRY GROUP,,Small,,5106178284,HCA Recruitment Fees,SW1H 9EX,"26,400.00",
Communities & Local Government,DCLG,09/05/2012,Services provided by other Govt Orgs,Finance & Corporate Services,DEFENCE VETTING AGENCY,,Public Bodies,,5106178702,Services provided by other Gov'ment Deps,L2 3YL,807.72,Yes
Communities & Local Government,DCLG,09/05/2012,Telecoms equipment (non-capitalised),Finance & Corporate Services,HIGHWAYS AGENCY,,Public Bodies,,5106178707,Telephone Line Rental,B1 1RN,966.62,
Communities & Local Government,DCLG,09/05/2012,Training,Finance & Corporate Services,BPP PROFESSIONAL EDUCATION,,Large,,5106178755,vat charges,W12 8AW,973.95,
Communities & Local Government,DCLG,09/05/2012,Training,Finance & Corporate Services,SAP (UK) LTD,,Large,,5106178710,SAP Supplier Relationship Management - professional development (Finance) ,TW14 8HD,"1,215.00",
Communities & Local Government,DCLG,09/05/2012,Travel and Subsistence Account,Finance & Corporate Services,REDFERN TRAVEL LIMITED,,Small,,2100217242,Consolidated travel expenses April 2012,BD1 3AZ,552.67
Communities & Local Government,DCLG,09/05/2012,Travel and Subsistence Account,Finance & Corporate Services,REDFERN TRAVEL LIMITED,,Small,,2100217242,Consolidated travel expenses April 2012,BD1 3AZ,313.51
Communities & Local Government,DCLG,09/05/2012,Travel and Subsistence Account,Finance & Corporate Services,REDFERN TRAVEL LIMITED,,Small,,2100217242,Consolidated travel expenses April 2012,BD1 3AZ,"8,808.26"
Communities & Local Government,DCLG,09/05/2012,Travel and Subsistence Account,Finance & Corporate Services,REDFERN TRAVEL LIMITED,,Small,,2100217242,Consolidated travel expenses April 2012,BD1 3AZ,"3,028.79"
Communities & Local Government,DCLG,09/05/2012,Travel and Subsistence Account,Finance & Corporate Services,REDFERN TRAVEL LIMITED,,Small,,2100217242,Consolidated travel expenses April 2012,BD1 3AZ,861.58
Communities & Local Government,DCLG,09/05/2012,Travel and Subsistence Account,Finance & Corporate Services,REDFERN TRAVEL LIMITED,,Small,,2100217242,Consolidated travel expenses April 2012,BD1 3AZ,"2,048.89"
Communities & Local Government,DCLG,09/05/2012,Travel and Subsistence Account,Finance & Corporate Services,REDFERN TRAVEL LIMITED,,Small,,2100217242,Consolidated travel expenses April 2012,BD1 3AZ,662.53
Communities & Local Government,DCLG,09/05/2012,Travel and Subsistence Account,Finance & Corporate Services,REDFERN TRAVEL LIMITED,,Small,,2100217242,Consolidated travel expenses April 2012,BD1 3AZ,278.71
Communities & Local Government,DCLG,09/05/2012,Travel and Subsistence Account,Finance & Corporate Services,REDFERN TRAVEL LIMITED,,Small,,2100217244,Consolidated travel expenses April 2012,BD1 3AZ,449.55
Communities & Local Government,DCLG,09/05/2012,Travel and Subsistence Account,Finance & Corporate Services,REDFERN TRAVEL LIMITED,,Small,,2100217249,Consolidated travel expenses April 2012,BD1 3AZ,"8,365.56"
Communities & Local Government,DCLG,09/05/2012,Travel and Subsistence Account,Finance & Corporate Services,REDFERN TRAVEL LIMITED,,Small,,2100217249,Consolidated travel expenses April 2012,BD1 3AZ,"1,393.47"
Communities & Local Government,DCLG,09/05/2012,Travel and Subsistence Account,Localism,REDFERN TRAVEL LIMITED,,Small,,2100217242,Consolidated travel expenses April 2012,BD1 3AZ,886.26
Communities & Local Government,DCLG,09/05/2012,Travel and Subsistence Account,Localism,REDFERN TRAVEL LIMITED,,Small,,2100217248,Consolidated travel expenses April 2012,BD1 3AZ,"1,655.04"
Communities & Local Government,DCLG,09/05/2012,Travel and Subsistence Account,Localism,REDFERN TRAVEL LIMITED,,Small,,2100217248,Consolidated travel expenses April 2012,BD1 3AZ,264.66
Communities & Local Government,DCLG,09/05/2012,Travel and Subsistence Account,Localism,REDFERN TRAVEL LIMITED,,Small,,2100217248,Consolidated travel expenses April 2012,BD1 3AZ,696.55
Communities & Local Government,DCLG,09/05/2012,Travel and Subsistence Account,Localism,REDFERN TRAVEL LIMITED,,Small,,2100217250,Consolidated travel expenses April 2012,BD1 3AZ,250.05
Communities & Local Government,DCLG,09/05/2012,Travel and Subsistence Account,Localism,REDFERN TRAVEL LIMITED,,Small,,2100217250,Consolidated travel expenses April 2012,BD1 3AZ,886.17
Communities & Local Government,DCLG,09/05/2012,Travel and Subsistence Account,Localism,REDFERN TRAVEL LIMITED,,Small,,2100217250,Consolidated travel expenses April 2012,BD1 3AZ,534.90
Communities & Local Government,DCLG,09/05/2012,Travel and Subsistence Account,Localism,REDFERN TRAVEL LIMITED,,Small,,2100217250,Consolidated travel expenses April 2012,BD1 3AZ,"1,519.19"
Communities & Local Government,DCLG,09/05/2012,Travel and Subsistence Account,Neighbourhoods,REDFERN TRAVEL LIMITED,,Small,,2100217242,Consolidated travel expenses April 2012,BD1 3AZ,304.28
Communities & Local Government,DCLG,09/05/2012,Travel and Subsistence Account,Neighbourhoods,REDFERN TRAVEL LIMITED,,Small,,2100217242,Consolidated travel expenses April 2012,BD1 3AZ,"5,446.24"
Communities & Local Government,DCLG,09/05/2012,Travel and Subsistence Account,Neighbourhoods,REDFERN TRAVEL LIMITED,,Small,,2100217242,Consolidated travel expenses April 2012,BD1 3AZ,"6,347.47"
Communities & Local Government,DCLG,09/05/2012,Travel and Subsistence Account,Neighbourhoods,REDFERN TRAVEL LIMITED,,Small,,2100217243,Consolidated travel expenses April 2012,BD1 3AZ,417.59
Communities & Local Government,DCLG,09/05/2012,Travel and Subsistence Account,Neighbourhoods,REDFERN TRAVEL LIMITED,,Small,,2100217243,Consolidated travel expenses April 2012,BD1 3AZ,266.34
Communities & Local Government,DCLG,09/05/2012,Travel and Subsistence Account,Neighbourhoods,REDFERN TRAVEL LIMITED,,Small,,2100217243,Consolidated travel expenses April 2012,BD1 3AZ,265.77
Communities & Local Government,DCLG,09/05/2012,Travel and Subsistence Account,Neighbourhoods,REDFERN TRAVEL LIMITED,,Small,,2100217243,Consolidated travel expenses April 2012,BD1 3AZ,679.34
Communities & Local Government,DCLG,09/05/2012,Travel and Subsistence Account,Neighbourhoods,REDFERN TRAVEL LIMITED,,Small,,2100217243,Consolidated travel expenses April 2012,BD1 3AZ,"1,486.09"
Communities & Local Government,DCLG,09/05/2012,Travel and Subsistence Account,Neighbourhoods,REDFERN TRAVEL LIMITED,,Small,,2100217243,Consolidated travel expenses April 2012,BD1 3AZ,860.77
Communities & Local Government,DCLG,09/05/2012,Travel and Subsistence Account,Neighbourhoods,REDFERN TRAVEL LIMITED,,Small,,2100217243,Consolidated travel expenses April 2012,BD1 3AZ,"1,294.73"
Communities & Local Government,DCLG,09/05/2012,Travel and Subsistence Account,Neighbourhoods,REDFERN TRAVEL LIMITED,,Small,,2100217244,Consolidated travel expenses April 2012,BD1 3AZ,458.70
Communities & Local Government,DCLG,09/05/2012,Travel and Subsistence Account,Neighbourhoods,REDFERN TRAVEL LIMITED,,Small,,2100217248,Consolidated travel expenses April 2012,BD1 3AZ,604.66
Communities & Local Government,DCLG,09/05/2012,Travel and Subsistence Account,Neighbourhoods,REDFERN TRAVEL LIMITED,,Small,,2100217248,Consolidated travel expenses April 2012,BD1 3AZ,"1,525.51"
Communities & Local Government,DCLG,09/05/2012,Travel and Subsistence Account,Neighbourhoods,REDFERN TRAVEL LIMITED,,Small,,2100217248,Consolidated travel expenses April 2012,BD1 3AZ,703.09,
Communities & Local Government,DCLG,09/05/2012,Travel and Subsistence Account,Neighbourhoods,REDFERN TRAVEL LIMITED,,Small,,2100217250,Consolidated travel expenses April 2012,BD1 3AZ,341.05,
Communities & Local Government,DCLG,09/05/2012,Travel and Subsistence Account,Neighbourhoods,REDFERN TRAVEL LIMITED,,Small,,2100217250,Consolidated travel expenses April 2012,BD1 3AZ,717.43,
Communities & Local Government,DCLG,09/05/2012,Travel and Subsistence Account,Neighbourhoods,REDFERN TRAVEL LIMITED,,Small,,2100217250,Consolidated travel expenses April 2012,BD1 3AZ,314.32,
Communities & Local Government,DCLG,09/05/2012,Travel and Subsistence Account,Neighbourhoods,REDFERN TRAVEL LIMITED,,Small,,2100217250,Consolidated travel expenses April 2012,BD1 3AZ,"1,060.27",
Communities & Local Government,DCLG,09/05/2012,Travel and Subsistence Account,Neighbourhoods,REDFERN TRAVEL LIMITED,,Small,,2100217250,Consolidated travel expenses April 2012,BD1 3AZ,"1,286.34",
Communities & Local Government,DCLG,09/05/2012,Travel and Subsistence Account,Neighbourhoods,REDFERN TRAVEL LIMITED,,Small,,2100217250,Consolidated travel expenses April 2012,BD1 3AZ,"1,460.94",
Communities & Local Government,DCLG,09/05/2012,Travel and Subsistence Account,Neighbourhoods,REDFERN TRAVEL LIMITED,,Small,,2100217250,Consolidated travel expenses April 2012,BD1 3AZ,"2,683.63",
Communities & Local Government,DCLG,09/05/2012,Travel and Subsistence Account,Neighbourhoods,REDFERN TRAVEL LIMITED,,Small,,2100217250,Consolidated travel expenses April 2012,BD1 3AZ,714.39,
Communities & Local Government,DCLG,09/05/2012,Travel and Subsistence Account,Neighbourhoods,REDFERN TRAVEL LIMITED,,Small,,2100217250,Consolidated travel expenses April 2012,BD1 3AZ,"1,746.79",
Communities & Local Government,DCLG,09/05/2012,Travel and Subsistence Account,Troubled Families,REDFERN TRAVEL LIMITED,,Small,,2100217242,Consolidated travel expenses April 2012,BD1 3AZ,"1,323.55",
Communities & Local Government,DCLG,09/05/2012,Vehicle Maintenance,Localism,BABCOCK CRITICAL SERVICES LTD,,Large,,5106178655,Planned Vehicle Maintenance 12/13,NG15 0DR,"629,535.82",
Communities & Local Government,DCLG,11/05/2012,Advertising,Finance & Corporate Services,M4C-DIVISION OF GROUPM UK LTD,,Large,,5106178737,Right to Buy Media Campaign Launch,WC1X 8RX,"37,516.11",
Communities & Local Government,DCLG,11/05/2012,Current (non AEF) Grants to Local Authorities,Localism,ROYAL BERKSHIRE FIRE AUTHORITY,,,,2600061769,Royal Berkshire FRS Swinley fires,RG30 4FS,"404,640.00",Yes
Communities & Local Government,DCLG,11/05/2012,Current Grants to Non Profit Bodies,Localism,CIVIC VOICE,Yes,,,2100217321,Promoting new Community Rights,L1 4DQ,"64,000.00",Yes
Communities & Local Government,DCLG,11/05/2012,Current Grants to Non Profit Bodies,Localism,LOCALITY,,Medium,,2100217279,Asset Transfer Unit grant payment for Apr to Mar 2012,N1 6DR,"249,700.00",Yes
Communities & Local Government,DCLG,11/05/2012,Electricity,Finance & Corporate Services,EON UK PLC,,Large,,5106178794,EM Castle Donnington electricity 2012-13,CV4 8LG,"8,348.59",
Communities & Local Government,DCLG,11/05/2012,Electricity,Finance & Corporate Services,SOUTHERN ELECTRIC PLC,,Large,,5106178813,St Phillips Place Electricity 2012-13,RG21 8WS,"7,852.06",
Communities & Local Government,DCLG,11/05/2012,Fixed Maintenance,Finance & Corporate Services,AMEY COMMUNITY LTD,,Large,,5106178736,2011/12 Lateral Variable Maintenance,OX4 4DQ,"16,886.35",
Communities & Local Government,DCLG,11/05/2012,Grant in Aid to NDPBs (non budget),Neighbourhoods,LONDON THAMES GATEWAY DEV CORP,,,,2100217278,Grant in Aid for May 2012,E14 9GE,"1,500,000.00",Yes
Communities & Local Government,DCLG,11/05/2012,Housing Revenue Account Surplus,Neighbourhoods,LONDON BOROUGH OF LAMBETH,,,,5000192102,Overpayment of Grant recovered by Exchequer,SW2 1RL,"-86,848.00",Yes
Communities & Local Government,DCLG,11/05/2012,Housing Revenue Account Surplus,Neighbourhoods,NORTHUMBERLAND COUNTY COUNCIL,,,,5000183344,Overpayment of Grant recovered by Exchequer,NE61 2EF,"-46,641.00",Yes
Communities & Local Government,DCLG,11/05/2012,IT - Service Contracts,Finance & Corporate Services,AIMEDIACOMMS,,Medium,,2100217359,Hosting costs May 2011-May 2012,EC2A 3DA,"-1,101.60",
Communities & Local Government,DCLG,11/05/2012,IT - Service Contracts,Finance & Corporate Services,AIMEDIACOMMS,,Medium,,5106178031,Hosting costs May 2011-May 2012,EC2A 3DA,"1,101.60",
Communities & Local Government,DCLG,11/05/2012,IT - Software Maintenance,Localism,DERBYSHIRE FIRE & RESCUE SERVICE,,Public Bodies,,5106178785,SANI additional maintenance fees,DE23 6EH,"6,212.89",
Communities & Local Government,DCLG,11/05/2012,LA General GLA  Grant Payable,Strategic Performance Team,GREATER LONDON AUTHORITY,,Large,,2100217135,General GLA Grant for 11 May 2012,SE10 1AP,"2,303,125.00",Yes
Communities & Local Government,DCLG,11/05/2012,NNDR Billing Authorities Receipts,Localism,OFFICE OF THE PAYMASTER GENERAL (NN,,,,2100217283,NNDR Billing Authority Receipts May 2012,RH10 1UH,"1,493,039,402.00",Yes
Communities & Local Government,DCLG,11/05/2012,NNDR Central List Receipts,Localism,OFFICE OF THE PAYMASTER GENERAL (NN,,,,2100217283,NNDR Central List Receipts May 2012,RH10 1UH,"128,619,547.00",Yes
Communities & Local Government,DCLG,11/05/2012,Publishing,Neighbourhoods,TEMPO GRAPHIC DESIGN LTD,,Medium,,5106178809,Supply of ERDF Publicity Plaques,SE15 6NJ,869.40,
Communities & Local Government,DCLG,11/05/2012,Steady State Service Provision,Finance & Corporate Services,ALLPAY LIMITED,,Medium,,5106178724,Monthly Management Fee Payments,HR1 3SE,500.00,
Communities & Local Government,DCLG,11/05/2012,Steady State Service Provision,Finance & Corporate Services,LOGICA (CMG UK LTD),,Large,,5106178803,Blanket PRFfor Logica P 12-13,TW18 4LG,"12,633.40",
Communities & Local Government,DCLG,11/05/2012,Technical Aids for the disabled,Finance & Corporate Services,DCLG GOVERNMENT PROCUREMENT CARD,,,,1000003597,AT172 - Assistive technology software,TN37 7GA,475.19,
Communities & Local Government,DCLG,11/05/2012,Training,Finance & Corporate Services,BPP PROFESSIONAL EDUCATION,,Large,,5106178757,Conf course bookings,W12 8AW,438.60
Communities & Local Government,DCLG,11/05/2012,Training,Finance & Corporate Services,BPP PROFESSIONAL EDUCATION,,Large,,5106178757,vat charges,W12 8AW,980.32
Communities & Local Government,DCLG,11/05/2012,Training,Finance & Corporate Services,BPP PROFESSIONAL EDUCATION,,Large,,5106178798,"Conf of booking  E3,F3,P3",W12 8AW,438.60
Communities & Local Government,DCLG,11/05/2012,Training,Finance & Corporate Services,BPP PROFESSIONAL EDUCATION,,Large,,5106178798,vat charges,W12 8AW,"1,159.44"
Communities & Local Government,DCLG,11/05/2012,Training,Finance & Corporate Services,BPP PROFESSIONAL EDUCATION,,Large,,5106178799,Conf of course booking,W12 8AW,721.65
Communities & Local Government,DCLG,11/05/2012,Training,Finance & Corporate Services,BPP PROFESSIONAL EDUCATION,,Large,,5106178799,vat charges,W12 8AW,"1,938.02"
Communities & Local Government,DCLG,11/05/2012,Training,Finance & Corporate Services,BPP PROFESSIONAL EDUCATION,,Large,,5106178805,VAT training - professional development (Finance),W12 8AW,"1,279.67"
Communities & Local Government,DCLG,11/05/2012,Training,Finance & Corporate Services,BPP PROFESSIONAL EDUCATION,,Large,,5106178808,Conf of course booking,W12 8AW,-94.35
Communities & Local Government,DCLG,11/05/2012,Training,Finance & Corporate Services,BPP PROFESSIONAL EDUCATION,,Large,,5106178808,vat charges,W12 8AW,-364.08
Communities & Local Government,DCLG,11/05/2012,Training,Finance & Corporate Services,BPP PROFESSIONAL EDUCATION,,Large,,5106178812,CIMA Finance Course (Finance Qual),W12 8AW,288.77
Communities & Local Government,DCLG,11/05/2012,Training,Finance & Corporate Services,PREMIER COMPUTER SOLUTIONS,,Small,,5106178784,MS Visio Training (Intro and Advanced),EC2A 4QP,450.00
Communities & Local Government,DCLG,11/05/2012,Training,Localism,BPP PROFESSIONAL EDUCATION,,Large,,5106178807,AAT Technician,W12 8AW,-394.26
Communities & Local Government,DCLG,11/05/2012,Training,Localism,BPP PROFESSIONAL EDUCATION,,Large,,5106178807,NON VAT CHARGES,W12 8AW,-280.50
Communities & Local Government,DCLG,11/05/2012,Web Services,Neighbourhoods,BUFFALO DESIGN LTD,,Micro,,5106178316,Amendments to Portal's Interactive House,BA1 5BD,576.00
Communities & Local Government,DCLG,11/05/2012,Work In Progress Pre-Cert 40373 Spend,Neighbourhoods,BRADFORD  MDC,,,,7600001579,ERDF Claim - 12 - P2-YH,BD1 5RE,"28,427.49"
Communities & Local Government,DCLG,11/05/2012,Work In Progress Pre-Cert 40373 Spend,Neighbourhoods,BUSINESS IN THE COMMUNITY EAST MIDL,,Small,,7600001574,ERDF Claim - 13 - P2,NG1 7AB,"1,700.92"
Communities & Local Government,DCLG,11/05/2012,Work In Progress Pre-Cert 40373 Spend,Neighbourhoods,BUSINESS IN THE COMMUNITY EAST MIDL,,Small,,7600001575,ERDF Claim - 13 - P2,NG1 7AB,"3,652.97"
Communities & Local Government,DCLG,11/05/2012,Work In Progress Pre-Cert 40373 Spend,Neighbourhoods,EMTEX LTD,,Small,,7600001585,ERDF Claim - 15 - P1,NG1 3BB,"8,949.36"
Communities & Local Government,DCLG,11/05/2012,Work In Progress Pre-Cert 40373 Spend,Neighbourhoods,EMTEX LTD,,Small,,7600001587,ERDF Claim - 15 - P1,NG1 3BB,"7,873.20"
Communities & Local Government,DCLG,11/05/2012,Work In Progress Pre-Cert 40373 Spend,Neighbourhoods,KIRKLEES COUNCIL,,,,7600001577,ERDF Claim - 24 - P3-YH,HD1 2TG,"8,654.55"
Communities & Local Government,DCLG,11/05/2012,Work In Progress Pre-Cert 40373 Spend,Neighbourhoods,KIRKLEES COUNCIL,,,,7600001578,ERDF Claim - 24 - P3-SY,HD1 2TG,"24,698.18"
Communities & Local Government,DCLG,11/05/2012,Work In Progress Pre-Cert 40373 Spend,Neighbourhoods,LEEDS CITY COUNCIL,,,,7600001576,ERDF Claim - 13 - P3-YH,LS2 8BB,"17,454.81"
Communities & Local Government,DCLG,11/05/2012,Work In Progress Pre-Cert 40373 Spend,Neighbourhoods,LEICS AFRICAN CARIBBEAN BUSINESS AS,,Small,,7600001571,ERDF Claim - 10 - P2,LE2 0GU,"2,704.13"
Communities & Local Government,DCLG,11/05/2012,Work In Progress Pre-Cert 40373 Spend,Neighbourhoods,LINCONSHIRE COUNTY COUNCIL,,Large,,7600001580,ERDF Claim - 4 - P2,LN1 1YT,"30,597.00"
Communities & Local Government,DCLG,11/05/2012,Work In Progress Pre-Cert 40373 Spend,Neighbourhoods,NOTTINGHAM CITY COUNCIL,,Large,,7600001584,ERDF Claim - 6 - P2,NG2 3NG,"42,130.20"
Communities & Local Government,DCLG,11/05/2012,Work In Progress Pre-Cert 40373 Spend,Neighbourhoods,NOTTINGHAM UNIVERSITY,,Large,,7600001573,ERDF Claim - 7 - P1,NG7 2RD,"31,749.92"
Communities & Local Government,DCLG,11/05/2012,Work In Progress Pre-Cert 40373 Spend,Neighbourhoods,SCIENCE CITY YORK,,,,7600001586,ERDF Claim - 62 - P2-YH,YO10 5NY,"30,788.78"
Communities & Local Government,DCLG,11/05/2012,Work In Progress Pre-Cert 40373 Spend,Neighbourhoods,SERCO REGIONAL SERVICES LTD,,,,7600001568,ERDF Claim - 22 - P2,PL6 8BT,"62,744.61"
Communities & Local Government,DCLG,11/05/2012,Work In Progress Pre-Cert 40373 Spend,Neighbourhoods,WSX ENTERPRISE LIMITED,,,,7600001582,ERDF Claim - 12 - P1,PO16 7BJ,"72,460.91"
Communities & Local Government,DCLG,11/05/2012,Work In Progress Pre-Cert 40373 Spend,Neighbourhoods,YTKO LIMITED,,,,7600001569,ERDF Claim - 33 - P2,CB4 0WS,"107,807.28"
Communities & Local Government,DCLG,11/05/2012,Work In Progress Pre-Cert 40373 Spend,Neighbourhoods,YTKO LIMITED,,,,7600001570,ERDF Claim - 7 - P3,CB4 0WS,"27,085.94"
Communities & Local Government,DCLG,11/05/2012,Work In Progress Pre-Cert 40373 Spend,Neighbourhoods,YTKO LIMITED,,,,7600001583,ERDF Claim - 5 - P3,CB4 0WS,"6,283.10"
Communities & Local Government,DCLG,11/05/2012,Work In Progress Pre-Cert 40467 Spend,Neighbourhoods,D B GILBERT PROPERTY DEVELOP INVEST,,,,7600001581,ERDF Claim - 37 - P4,PL25 4UF,"46,892.34",
Communities & Local Government,DCLG,11/05/2012,Work In Progress Pre-Cert 40467 Spend,Neighbourhoods,KIRKLEES COUNCIL,,,,7600001578,ERDF Claim - 24 - P3-SY,HD1 2TG,"218,558.42",
Communities & Local Government,DCLG,11/05/2012,Work In Progress Pre-Cert 40467 Spend,Neighbourhoods,LINCONSHIRE COUNTY COUNCIL,,Large,,7600001572,ERDF Claim - 12 - P2,LN1 1YT,"258,316.16",
Communities & Local Government,DCLG,11/05/2012,Work In Progress Pre-Cert 40467 Spend,Neighbourhoods,NOTTINGHAM UNIVERSITY,,Large,,7600001573,ERDF Claim - 7 - P1,NG7 2RD,"3,791.17",
Communities & Local Government,DCLG,14/05/2012,Accommodation Service Charges,Finance & Corporate Services,PLANNING INSPECTORATE,,Public Bodies,,5106178848,Temple Quay Accom Serv Charge 11-12,BS1 6PN,"62,657.49",
Communities & Local Government,DCLG,14/05/2012,Advertising,Finance & Corporate Services,RKCR/Y&R,,Micro,,5106178879,Fire Kills - Pre-press prep,NW1 7QP,"5,710.00",
Communities & Local Government,DCLG,14/05/2012,Current (non AEF) Grants to Local Authorities,Localism,W YORKSHIRE FIRE & RESCUE AUTH (RSG,,,,5000169980,Overpayment of Grant recovered by Exchequer,BD11 2DY,-667.00,Yes
Communities & Local Government,DCLG,14/05/2012,Housing Revenue Account Surplus,Neighbourhoods,HAMMERSMITH & FULHAM LB,,,,5000186468,Overpayment of Grant recovered by Exchequer,W6 9JU,"-220,972.00",Yes
Communities & Local Government,DCLG,14/05/2012,Housing Revenue Account Surplus,Neighbourhoods,HAMMERSMITH & FULHAM LB,,,,5000192066,Overpayment of Grant recovered by Exchequer,W6 9JU,"-120,138.00",Yes
Communities & Local Government,DCLG,14/05/2012,IT - Service Contracts,Localism,AIRWAVE SOLUTIONS LTD,,Large,,5106178818,Phase B Scotland 2012/13,SL1 2EJ,"22,751.36",
Communities & Local Government,DCLG,14/05/2012,IT - Service Contracts,Localism,AIRWAVE SOLUTIONS LTD,,Large,,5106178819,Phase B Wales 2012/13,SL1 2EJ,"29,134.16",
Communities & Local Government,DCLG,14/05/2012,IT - Service Contracts,Localism,AIRWAVE SOLUTIONS LTD,,Large,,5106178820,Phase A Wales 2012/13,SL1 2EJ,"127,599.60",
Communities & Local Government,DCLG,14/05/2012,IT - Software Maintenance,Finance & Corporate Services,DIGIRATI LTD,,Micro,,5106178881,Web Support Contract,G1 3DX,"4,200.00",
Communities & Local Government,DCLG,14/05/2012,Legal Fees,Finance & Corporate Services,MARTIN CHAMBERLAIN,,Micro,Yes,5106178775,Legal Advice,,324.00,
Communities & Local Government,DCLG,14/05/2012,Legal Fees,Finance & Corporate Services,MR BEN HOOPER - 11KBW,,Small,,5106178850,Legal advice,EC4Y 7EQ,"4,218.00",
Communities & Local Government,DCLG,14/05/2012,Legal Fees,Finance & Corporate Services,TIMOTHY WARD QC,,Micro,,5106178869,Legal advice,WC1R 5BP,"3,744.00",
Communities & Local Government,DCLG,14/05/2012,Online Database Information Retrieval,Finance & Corporate Services,AIMEDIACOMMS,,Medium,,5106178884,Spotlight News Database - Monthly Fee,EC2A 3DA,"1,101.60"
Communities & Local Government,DCLG,14/05/2012,Printing,Localism,WILLIAMS LEA LIMITED,,Large,,5106178858,Business Cards,W2 6LG,337.40
Communities & Local Government,DCLG,14/05/2012,Publications,Finance & Corporate Services,SWETS INFORMATION SERVICES LTD,,Large,,5106178864,Legal Publications @0%VAT (MoJ Framewor),OX14 1UQ,647.24
Communities & Local Government,DCLG,14/05/2012,Publicity,Finance & Corporate Services,PRESS ASSOCIATION,,Large,,5106178786,Info for Media point business 12313,DN14 7YH,"1,205.03"
Communities & Local Government,DCLG,14/05/2012,Rates,Finance & Corporate Services,BIRMINGHAM CITY COUNCIL,,Public Bodies,,5106178843,77PCQ Gnd-1st Annual Rates 2012/13,B4 7AB,"5,771.00"
Communities & Local Government,DCLG,14/05/2012,Rates,Finance & Corporate Services,DACORUM BC,,Public Bodies,,5106178841,Rates 12/13 - CC 1966,HP1 1HH,"10,115.00"
Communities & Local Government,DCLG,14/05/2012,Rates,Finance & Corporate Services,GUILDFORD BC,,Public Bodies,,5106178842,Bridge House Annual Rates 2012/13,GU2 4BB,"32,021.00"
Communities & Local Government,DCLG,14/05/2012,Rates,Finance & Corporate Services,LEEDS TOWN HALL,,Public Bodies,,5106178844,Queen St Annual Rates P1 - 2012-13,LS2 8JR,"6,595.00"
Communities & Local Government,DCLG,14/05/2012,Rates,Finance & Corporate Services,WESTMINSTER CITY COUNCIL,,Public Bodies,,5106178830,Eland rates 2012/13,SW1E 6QY,"543,964.00"
Communities & Local Government,DCLG,14/05/2012,Research,Neighbourhoods,E C HARRIS LLP,,Large,,5106178886,Cat 2 and 3 call off work,N1 9AB,"10,797.00"
Communities & Local Government,DCLG,14/05/2012,Telecoms equipment (non-capitalised),Finance & Corporate Services,DAMOVO UK LTD,,Large,,5106178824,Telephony - 8 new sites,RH12 4QP,"3,146.40"
Communities & Local Government,DCLG,14/05/2012,Telecoms equipment (non-capitalised),Finance & Corporate Services,DAMOVO UK LTD,,Large,,5106178825,Telephony - 8 new sites,RH12 4QP,"1,824.00"
Communities & Local Government,DCLG,14/05/2012,Telecoms equipment (non-capitalised),Finance & Corporate Services,DAMOVO UK LTD,,Large,,5106178882,Telephony - 8 new sites,RH12 4QP,"9,888.01"
Communities & Local Government,DCLG,14/05/2012,Telephone call costs,Finance & Corporate Services,DAMOVO UK LTD,,Large,,5106178827,Telephony Charges,RH12 4QP,"81,432.31"
Communities & Local Government,DCLG,14/05/2012,Telephone call costs,Finance & Corporate Services,DAMOVO UK LTD,,Large,,5106178828,Telephony Charges,RH12 4QP,"4,418.20"
Communities & Local Government,DCLG,14/05/2012,Telephone call costs,Finance & Corporate Services,DAMOVO UK LTD,,Large,,5106178829,Telephony Charges,RH12 4QP,"1,209.07"
Communities & Local Government,DCLG,14/05/2012,Telephone call costs,Finance & Corporate Services,DAMOVO UK LTD,,Large,,5106178885,Telephony Charges,RH12 4QP,585.41
Communities & Local Government,DCLG,14/05/2012,Training,Finance & Corporate Services,DODS PARLIAMENTARY COMM  LTD,,Large,,5106178873,Leadership Courses,SW1H 9BP,"2,250.00"
Communities & Local Government,DCLG,14/05/2012,Training,Finance & Corporate Services,OPERATIONAL RESEARCH SOCIETY,,Micro,,5106178880,Operational Research Introduction - professional development ,B1 2RX,"2,875.00"
Communities & Local Government,DCLG,14/05/2012,Travel and Subsistence Account,Finance & Corporate Services,REDFERN TRAVEL LIMITED,,Small,,2100217360,Consolidated travel expenses April 2012,BD1 3AZ,319.21
Communities & Local Government,DCLG,14/05/2012,Travel and Subsistence Account,Finance & Corporate Services,REDFERN TRAVEL LIMITED,,Small,,2100217360,Consolidated travel expenses April 2012,BD1 3AZ,"1,353.44"
Communities & Local Government,DCLG,14/05/2012,Travel and Subsistence Account,Finance & Corporate Services,REDFERN TRAVEL LIMITED,,Small,,2100217360,Consolidated travel expenses April 2012,BD1 3AZ,734.32
Communities & Local Government,DCLG,14/05/2012,Travel and Subsistence Account,Localism,REDFERN TRAVEL LIMITED,,Small,,2100217360,Consolidated travel expenses April 2012,BD1 3AZ,750.59
Communities & Local Government,DCLG,14/05/2012,Travel and Subsistence Account,Localism,REDFERN TRAVEL LIMITED,,Small,,2100217360,Consolidated travel expenses April 2012,BD1 3AZ,369.40
Communities & Local Government,DCLG,14/05/2012,Travel and Subsistence Account,Localism,REDFERN TRAVEL LIMITED,,Small,,2100217360,Consolidated travel expenses April 2012,BD1 3AZ,427.23
Communities & Local Government,DCLG,14/05/2012,Travel and Subsistence Account,Localism,REDFERN TRAVEL LIMITED,,Small,,2100217360,Consolidated travel expenses April 2012,BD1 3AZ,357.11
Communities & Local Government,DCLG,14/05/2012,Travel and Subsistence Account,Localism,REDFERN TRAVEL LIMITED,,Small,,2100217360,Consolidated travel expenses April 2012,BD1 3AZ,"3,000.76"
Communities & Local Government,DCLG,14/05/2012,Travel and Subsistence Account,Localism,REDFERN TRAVEL LIMITED,,Small,,2100217360,Consolidated travel expenses April 2012,BD1 3AZ,284.96
Communities & Local Government,DCLG,14/05/2012,Travel and Subsistence Account,Localism,REDFERN TRAVEL LIMITED,,Small,,2100217360,Consolidated travel expenses April 2012,BD1 3AZ,"1,958.95"
Communities & Local Government,DCLG,14/05/2012,Travel and Subsistence Account,Localism,REDFERN TRAVEL LIMITED,,Small,,2100217360,Consolidated travel expenses April 2012,BD1 3AZ,480.97
Communities & Local Government,DCLG,14/05/2012,Travel and Subsistence Account,Localism,REDFERN TRAVEL LIMITED,,Small,,2100217360,Consolidated travel expenses April 2012,BD1 3AZ,940.85
Communities & Local Government,DCLG,14/05/2012,Travel and Subsistence Account,Localism,REDFERN TRAVEL LIMITED,,Small,,2100217360,Consolidated travel expenses April 2012,BD1 3AZ,972.44
Communities & Local Government,DCLG,14/05/2012,Travel and Subsistence Account,Localism,YOUNG ADVISORS COMPANY LTD,Yes,Micro,,5106178859,Youth advisor travel costs,M11 2HB,815.60
Communities & Local Government,DCLG,14/05/2012,Travel and Subsistence Account,Neighbourhoods,REDFERN TRAVEL LIMITED,,Small,,2100217360,Consolidated travel expenses April 2012,BD1 3AZ,425.12
Communities & Local Government,DCLG,14/05/2012,Travel and Subsistence Account,Neighbourhoods,REDFERN TRAVEL LIMITED,,Small,,2100217360,Consolidated travel expenses April 2012,BD1 3AZ,"2,240.22"
Communities & Local Government,DCLG,14/05/2012,Travel and Subsistence Account,Neighbourhoods,REDFERN TRAVEL LIMITED,,Small,,2100217360,Consolidated travel expenses April 2012,BD1 3AZ,"1,640.20"
Communities & Local Government,DCLG,14/05/2012,Travel and Subsistence Account,Neighbourhoods,REDFERN TRAVEL LIMITED,,Small,,2100217360,Consolidated travel expenses April 2012,BD1 3AZ,"1,055.57"
Communities & Local Government,DCLG,14/05/2012,Travel and Subsistence Account,Strategic Performance Team,REDFERN TRAVEL LIMITED,,Small,,2100217360,Consolidated travel expenses April 2012,BD1 3AZ,598.48
Communities & Local Government,DCLG,14/05/2012,Travel and Subsistence Account,Troubled Families,REDFERN TRAVEL LIMITED,,Small,,2100217360,Consolidated travel expenses April 2012,BD1 3AZ,"2,909.14"
Communities & Local Government,DCLG,14/05/2012,Vehicle hire,Finance & Corporate Services,ARVAL,,Large,,2100217354,Vehicle Hire 30.04.2012,SN5 6PE,383.79
Communities & Local Government,DCLG,14/05/2012,Work In Progress Pre-Cert 40373 Spend,Neighbourhoods,EAST MIDLANDS INCUBATION NETWORK (E,,Small,,7600001592,ERDF Claim - 1 - P1,DE24 8UP,"30,170.00"
Communities & Local Government,DCLG,14/05/2012,Work In Progress Pre-Cert 40373 Spend,Neighbourhoods,MANCHESTER UNIVERSITY,,,,7600001589,ERDF Claim - 8 - P1-MS,M13 9PL,"14,296.76"
Communities & Local Government,DCLG,14/05/2012,Work In Progress Pre-Cert 40373 Spend,Neighbourhoods,MANCHESTER UNIVERSITY,,,,7600001590,ERDF Claim - 8 - P1-NW,M13 9PL,"33,359.10"
Communities & Local Government,DCLG,14/05/2012,Work In Progress Pre-Cert 40373 Spend,Neighbourhoods,MERSEY PARTNERSHIP,,,,7600001595,ERDF Claim - 12 - P5-MS,L3 1BG,"11,612.78"
Communities & Local Government,DCLG,14/05/2012,Work In Progress Pre-Cert 40373 Spend,Neighbourhoods,NORTH WEST AEROSPACE ALLIANCE,,,,7600001593,ERDF Claim - 26 - P1-NW,BB9 9BT,"145,182.69"
Communities & Local Government,DCLG,14/05/2012,Work In Progress Pre-Cert 40373 Spend,Neighbourhoods,SALFORD UNIVERSITY,,,,7600001588,ERDF Claim - 4 - P2-NW,M5 4WT,"34,963.69"
Communities & Local Government,DCLG,14/05/2012,Work In Progress Pre-Cert 40373 Spend,Neighbourhoods,UNIVERSITY OF EXETER,,,,7600001596,ERDF Claim - 8 - P1,EX4 4QJ,"435,476.45"
Communities & Local Government,DCLG,14/05/2012,Work In Progress Pre-Cert 40373 Spend,Neighbourhoods,YTKO LIMITED,,,,7600001591,ERDF Claim - 5 - P3,CB4 0WS,"16,981.72"
Communities & Local Government,DCLG,14/05/2012,Work In Progress Pre-Cert 40467 Spend,Neighbourhoods,GENESIS BUSINESS PARK LTD,,,,7600001594,ERDF Claim - 6 - P3-MS,BB9 5SP,"447,264.94",
Communities & Local Government,DCLG,15/05/2012,Accommodation Service Charges,Neighbourhoods,GVA GRIMLEY LTD,,Large,,5106178682,ERDF NW LDU Valuation Services to Dec 13,B1 2JB,"3,031.20",
Communities & Local Government,DCLG,15/05/2012,Agency Staff,Finance & Corporate Services,SQUARE ONE RESOURCES LTD,,Medium,,5106178742,SAPDev 1.4.12-31.3.13,EC2A 2AD,"2,858.82",
Communities & Local Government,DCLG,15/05/2012,Agency Staff,Finance & Corporate Services,SQUARE ONE RESOURCES LTD,,Medium,,5106178894,SAPDev 1.4.12-31.3.13,EC2A 2AD,"2,858.82",
Communities & Local Government,DCLG,15/05/2012,Current (non AEF) Grants to Local Authorities,Neighbourhoods,ADUR DC,,,,5000200899,Grant Payable by Exchequer,BN11 1HB,"16,445.00",Yes
Communities & Local Government,DCLG,15/05/2012,Current (non AEF) Grants to Local Authorities,Neighbourhoods,ALLERDALE BC,,,,5000200900,Grant Payable by Exchequer,CA14 2RS,"7,668.00",Yes
Communities & Local Government,DCLG,15/05/2012,Current (non AEF) Grants to Local Authorities,Neighbourhoods,AMBER VALLEY BC,,,,5000200901,Grant Payable by Exchequer,DE5 3WZ,"40,511.00",Yes
Communities & Local Government,DCLG,15/05/2012,Current (non AEF) Grants to Local Authorities,Neighbourhoods,ARUN DC,,,,5000200755,Grant Payable by Exchequer,BN17 5LF,"81,528.00",Yes
Communities & Local Government,DCLG,15/05/2012,Current (non AEF) Grants to Local Authorities,Neighbourhoods,ASHFIELD DC,,,,5000200902,Grant Payable by Exchequer,NG17 8DA,"69,246.00",Yes
Communities & Local Government,DCLG,15/05/2012,Current (non AEF) Grants to Local Authorities,Neighbourhoods,ASHFORD BC,,,,5000200756,Grant Payable by Exchequer,TN23 1PL,"110,093.00",Yes
Communities & Local Government,DCLG,15/05/2012,Current (non AEF) Grants to Local Authorities,Neighbourhoods,AYLESBURY VALE DC(HSG),,,,5000200757,Grant Payable by Exchequer,HP20 1SD,"134,069.00",Yes
Communities & Local Government,DCLG,15/05/2012,Current (non AEF) Grants to Local Authorities,Neighbourhoods,BABERGH DC,,,,5000200758,Grant Payable by Exchequer,IP7 6SJ,"48,216.00",Yes
Communities & Local Government,DCLG,15/05/2012,Current (non AEF) Grants to Local Authorities,Neighbourhoods,BARKING & DAGENHAM LB (HSG),,,,5000200759,Grant Payable by Exchequer,RM10 7BY,"112,482.00",Yes
Communities & Local Government,DCLG,15/05/2012,Current (non AEF) Grants to Local Authorities,Neighbourhoods,BARNET LBC,,,,5000200903,Grant Payable by Exchequer,NW4 4BG,"239,726.00",Yes
Communities & Local Government,DCLG,15/05/2012,Current (non AEF) Grants to Local Authorities,Neighbourhoods,BARNSLEY MBC,,,,5000200904,Grant Payable by Exchequer,S70 2AQ,"158,552.00",Yes
Communities & Local Government,DCLG,15/05/2012,Current (non AEF) Grants to Local Authorities,Neighbourhoods,BARROW BC,,,,5000200905,Grant Payable by Exchequer,LA14 2LD,"13,419.00",Yes
Communities & Local Government,DCLG,15/05/2012,Current (non AEF) Grants to Local Authorities,Neighbourhoods,BASILDON BOROUGH COUNCIL,,,,5000200906,Grant Payable by Exchequer,SS14 0DF,"55,090.00",Yes
Communities & Local Government,DCLG,15/05/2012,Current (non AEF) Grants to Local Authorities,Neighbourhoods,BASINGSTOKE & DEANE BC,,,,5000200907,Grant Payable by Exchequer,RG21 2AJ,"198,716.00",Yes
Communities & Local Government,DCLG,15/05/2012,Current (non AEF) Grants to Local Authorities,Neighbourhoods,BASSETLAW DC (HSG),,,,5000200760,Grant Payable by Exchequer,S80 2AH,"41,899.00",Yes
Communities & Local Government,DCLG,15/05/2012,Current (non AEF) Grants to Local Authorities,Neighbourhoods,BATH & NE SOMERSET DC (HSG),,,,5000200761,Grant Payable by Exchequer,BA1 5AW,"93,286.00",Yes
Communities & Local Government,DCLG,15/05/2012,Current (non AEF) Grants to Local Authorities,Neighbourhoods,BEDFORD UNITARY AUTHORITY,,,,5000201104,Grant Payable by Exchequer,MK40 1SJ,"202,174.00",Yes
Communities & Local Government,DCLG,15/05/2012,Current (non AEF) Grants to Local Authorities,Neighbourhoods,BEXLEY LB (HSG),,,,5000200762,Grant Payable by Exchequer,DA8 1TL,"53,403.00",Yes
Communities & Local Government,DCLG,15/05/2012,Current (non AEF) Grants to Local Authorities,Neighbourhoods,BIRMINGHAM CITY CNCL,,,,5000200908,Grant Payable by Exchequer,B3 3AB,"567,904.00",Yes
Communities & Local Government,DCLG,15/05/2012,Current (non AEF) Grants to Local Authorities,Neighbourhoods,BLABY DC (HSG),,,,5000200763,Grant Payable by Exchequer,LE9 5EP,"31,155.00",Yes
Communities & Local Government,DCLG,15/05/2012,Current (non AEF) Grants to Local Authorities,Neighbourhoods,BLACKBURN WITH DARWEN BC,,,,5000200909,Grant Payable by Exchequer,BB1 7DY,"24,775.00",Yes
Communities & Local Government,DCLG,15/05/2012,Current (non AEF) Grants to Local Authorities,Neighbourhoods,BLACKPOOL BC,,,,5000200910,Grant Payable by Exchequer,FY1 1NA,"78,987.00",Yes
Communities & Local Government,DCLG,15/05/2012,Current (non AEF) Grants to Local Authorities,Neighbourhoods,BOLSOVER DC,,,,5000200911,Grant Payable by Exchequer,S44 6NF,"23,789.00",Yes
Communities & Local Government,DCLG,15/05/2012,Current (non AEF) Grants to Local Authorities,Neighbourhoods,BOLTON MBC,,,,5000200912,Grant Payable by Exchequer,BL1 1RU,"129,254.00",Yes
Communities & Local Government,DCLG,15/05/2012,Current (non AEF) Grants to Local Authorities,Neighbourhoods,BOSTON BC,,,,5000200764,Grant Payable by Exchequer,PE21 8QR,"32,157.00",Yes
Communities & Local Government,DCLG,15/05/2012,Current (non AEF) Grants to Local Authorities,Neighbourhoods,BOURNEMOUTH DC,,,,5000200913,Grant Payable by Exchequer,BH2 6EB,"142,562.00",Yes
Communities & Local Government,DCLG,15/05/2012,Current (non AEF) Grants to Local Authorities,Neighbourhoods,BRACKNELL FOREST DC,,,,5000200914,Grant Payable by Exchequer,RG12 1AQ,"109,842.00",Yes
Communities & Local Government,DCLG,15/05/2012,Current (non AEF) Grants to Local Authorities,Neighbourhoods,BRADFORD MBC,,,,5000200915,Grant Payable by Exchequer,BD1 1HX,"299,420.00",Yes
Communities & Local Government,DCLG,15/05/2012,Current (non AEF) Grants to Local Authorities,Neighbourhoods,BRAINTREE DC,,,,5000200765,Grant Payable by Exchequer,CM7 6HB,"75,171.00",Yes
Communities & Local Government,DCLG,15/05/2012,Current (non AEF) Grants to Local Authorities,Neighbourhoods,BRECKLAND DC,,,,5000200766,Grant Payable by Exchequer,NR19 1EE,"66,795.00",Yes
Communities & Local Government,DCLG,15/05/2012,Current (non AEF) Grants to Local Authorities,Neighbourhoods,BRENT LB (HSG),,,,5000200767,Grant Payable by Exchequer,HA9 9HD,"213,932.00",Yes
Communities & Local Government,DCLG,15/05/2012,Current (non AEF) Grants to Local Authorities,Neighbourhoods,BRENTWOOD BC,,,,5000200916,Grant Payable by Exchequer,CM15 8AY,"35,927.00",Yes
Communities & Local Government,DCLG,15/05/2012,Current (non AEF) Grants to Local Authorities,Neighbourhoods,BRIGHTON & HOVE CITY COUNCIL,,,,5000200917,Grant Payable by Exchequer,BN3 2SR,"78,149.00",Yes
Communities & Local Government,DCLG,15/05/2012,Current (non AEF) Grants to Local Authorities,Neighbourhoods,BRISTOL CITY CNCL (HSG),,,,5000200768,Grant Payable by Exchequer,BS99 7BL,"374,625.00",Yes
Communities & Local Government,DCLG,15/05/2012,Current (non AEF) Grants to Local Authorities,Neighbourhoods,BROADLAND DC,,Large,,5000200769,Grant Payable by Exchequer,NR7 0DU,"34,057.00",Yes
Communities & Local Government,DCLG,15/05/2012,Current (non AEF) Grants to Local Authorities,Neighbourhoods,BROMLEY LB,,,,5000200918,Grant Payable by Exchequer,BR1 3UH,"155,096.00",Yes
Communities & Local Government,DCLG,15/05/2012,Current (non AEF) Grants to Local Authorities,Neighbourhoods,BROMSGROVE DC,,,,5000200770,Grant Payable by Exchequer,B60 1AA,"27,996.00",Yes
Communities & Local Government,DCLG,15/05/2012,Current (non AEF) Grants to Local Authorities,Neighbourhoods,BROXBOURNE BC,,Public Bodies,,5000200919,Grant Payable by Exchequer,EN8 9XG,"48,016.00",Yes
Communities & Local Government,DCLG,15/05/2012,Current (non AEF) Grants to Local Authorities,Neighbourhoods,BROXTOWE BC,,,,5000200920,Grant Payable by Exchequer,NG9 1AB,"30,814.00",Yes
Communities & Local Government,DCLG,15/05/2012,Current (non AEF) Grants to Local Authorities,Neighbourhoods,BUCKINGHAMSHIRE CC,,,,5000200921,Grant Payable by Exchequer,HP20 1UD,"78,109.00",Yes
Communities & Local Government,DCLG,15/05/2012,Current (non AEF) Grants to Local Authorities,Neighbourhoods,BURNLEY BC,,,,5000200922,Grant Payable by Exchequer,BB11 1JA,"6,389.00",Yes
Communities & Local Government,DCLG,15/05/2012,Current (non AEF) Grants to Local Authorities,Neighbourhoods,CALDERDALE MBC,,,,5000200924,Grant Payable by Exchequer,HX1 1YP,"131,990.00",Yes
Communities & Local Government,DCLG,15/05/2012,Current (non AEF) Grants to Local Authorities,Neighbourhoods,CAMBRIDGE CITY COUNCIL,,,,5000200925,Grant Payable by Exchequer,CB2 3NA,"116,516.00",Yes
Communities & Local Government,DCLG,15/05/2012,Current (non AEF) Grants to Local Authorities,Neighbourhoods,CAMBRIDGESHIRE COUNTY CNCL,,,,5000200926,Grant Payable by Exchequer,CB3 0AP,"125,328.00",Yes
Communities & Local Government,DCLG,15/05/2012,Current (non AEF) Grants to Local Authorities,Neighbourhoods,CAMDEN LB,,,,5000200927,Grant Payable by Exchequer,WC1H 8NG,"221,812.00",Yes
Communities & Local Government,DCLG,15/05/2012,Current (non AEF) Grants to Local Authorities,Neighbourhoods,CANNOCK CHASE DC,,,,5000200928,Grant Payable by Exchequer,WS11 1BG,"44,734.00",Yes
Communities & Local Government,DCLG,15/05/2012,Current (non AEF) Grants to Local Authorities,Neighbourhoods,CANTERBURY CITY CNCL,,,,5000200771,Grant Payable by Exchequer,CT1 1YW,"69,663.00",Yes
Communities & Local Government,DCLG,15/05/2012,Current (non AEF) Grants to Local Authorities,Neighbourhoods,CARLISLE CITY CNCL,,,,5000200772,Grant Payable by Exchequer,CA3 8QG,"49,923.00",Yes
Communities & Local Government,DCLG,15/05/2012,Current (non AEF) Grants to Local Authorities,Neighbourhoods,CASTLE POINT BC,,,,5000200929,Grant Payable by Exchequer,SS7 1TF,"30,415.00",Yes
Communities & Local Government,DCLG,15/05/2012,Current (non AEF) Grants to Local Authorities,Neighbourhoods,CENTRAL BEDFORDSHIRE COUNCIL,,,,5000201101,Grant Payable by Exchequer,SG17 5TQ,"222,325.00",Yes
Communities & Local Government,DCLG,15/05/2012,Current (non AEF) Grants to Local Authorities,Neighbourhoods,CHARNWOOD BC,,,,5000200930,Grant Payable by Exchequer,LE11 2TU,"100,805.00",Yes
Communities & Local Government,DCLG,15/05/2012,Current (non AEF) Grants to Local Authorities,Neighbourhoods,CHELMSFORD BC,,,,5000200931,Grant Payable by Exchequer,CM1 1JE,"54,680.00",Yes
Communities & Local Government,DCLG,15/05/2012,Current (non AEF) Grants to Local Authorities,Neighbourhoods,CHELTENHAM BC,,,,5000200932,Grant Payable by Exchequer,GL50 1PW,"44,687.00",Yes
Communities & Local Government,DCLG,15/05/2012,Current (non AEF) Grants to Local Authorities,Neighbourhoods,CHERWELL DC,,,,5000200773,Grant Payable by Exchequer,OX15 4AA,"53,849.00",Yes
Communities & Local Government,DCLG,15/05/2012,Current (non AEF) Grants to Local Authorities,Neighbourhoods,CHESHIRE EAST COUNCIL,,,,5000201102,Grant Payable by Exchequer,SK10 1DP,"214,373.00",Yes
Communities & Local Government,DCLG,15/05/2012,Current (non AEF) Grants to Local Authorities,Neighbourhoods,CHESHIRE WEST & CHESTER COUNCIL,,,,5000201103,Grant Payable by Exchequer,CH1 1SG,"118,797.00",Yes
Communities & Local Government,DCLG,15/05/2012,Current (non AEF) Grants to Local Authorities,Neighbourhoods,CHESTERFIELD BC,,,,5000200933,Grant Payable by Exchequer,S40 1LP,"17,441.00",Yes
Communities & Local Government,DCLG,15/05/2012,Current (non AEF) Grants to Local Authorities,Neighbourhoods,CHICHESTER DC,,,,5000200774,Grant Payable by Exchequer,PO19 1TY,"69,938.00",Yes
Communities & Local Government,DCLG,15/05/2012,Current (non AEF) Grants to Local Authorities,Neighbourhoods,CHILTERN DC (HSG),,,,5000200775,Grant Payable by Exchequer,HP6 5AW,"15,959.00",Yes
Communities & Local Government,DCLG,15/05/2012,Current (non AEF) Grants to Local Authorities,Neighbourhoods,CHORLEY DC,,,,5000200934,Grant Payable by Exchequer,PR7 1DP,"79,966.00",Yes
Communities & Local Government,DCLG,15/05/2012,Current (non AEF) Grants to Local Authorities,Neighbourhoods,CHRISTCHURCH BC (HSG),,,,5000200776,Grant Payable by Exchequer,BH23 1AZ,"16,133.00",Yes
Communities & Local Government,DCLG,15/05/2012,Current (non AEF) Grants to Local Authorities,Neighbourhoods,CITY OF LINCOLN COUNCIL,,,,5000200997,Grant Payable by Exchequer,LN1 1DB,"78,176.00",Yes
Communities & Local Government,DCLG,15/05/2012,Current (non AEF) Grants to Local Authorities,Neighbourhoods,CITY OF LONDON (HSG),,,,5000200777,Grant Payable by Exchequer,EC2P 2EJ,"20,499.00",Yes
Communities & Local Government,DCLG,15/05/2012,Current (non AEF) Grants to Local Authorities,Neighbourhoods,CITY OF SUNDERLAND (HSG),,,,5000200778,Grant Payable by Exchequer,SR2 7DN,"88,238.00",Yes
Communities & Local Government,DCLG,15/05/2012,Current (non AEF) Grants to Local Authorities,Neighbourhoods,CITY OF WAKEFIELD MDC,,,,5000201075,Grant Payable by Exchequer,WF1 2QW,"232,612.00",Yes
Communities & Local Government,DCLG,15/05/2012,Current (non AEF) Grants to Local Authorities,Neighbourhoods,COLCHESTER BC,,,,5000200935,Grant Payable by Exchequer,CO3 3WG,"116,769.00",Yes
Communities & Local Government,DCLG,15/05/2012,Current (non AEF) Grants to Local Authorities,Neighbourhoods,COPELAND BC,,,,5000200779,Grant Payable by Exchequer,CA28 7NY,"2,561.00",Yes
Communities & Local Government,DCLG,15/05/2012,Current (non AEF) Grants to Local Authorities,Neighbourhoods,CORBY BC,,,,5000200780,Grant Payable by Exchequer,NN17 1GD,"81,660.00",Yes
Communities & Local Government,DCLG,15/05/2012,Current (non AEF) Grants to Local Authorities,Neighbourhoods,CORNWALL UNITARY AUTHORITY,,,,5000201106,Grant Payable by Exchequer,TR1 3AY,"393,061.00",Yes
Communities & Local Government,DCLG,15/05/2012,Current (non AEF) Grants to Local Authorities,Neighbourhoods,COTSWOLD DC,,,,5000200781,Grant Payable by Exchequer,GL7 1PX,"56,985.00",Yes
Communities & Local Government,DCLG,15/05/2012,Current (non AEF) Grants to Local Authorities,Neighbourhoods,COVENTRY CITY CNCL,,,,5000200936,Grant Payable by Exchequer,CV1 2QL,"218,403.00",Yes
Communities & Local Government,DCLG,15/05/2012,Current (non AEF) Grants to Local Authorities,Neighbourhoods,CRAVEN DC (HSG),,,,5000200782,Grant Payable by Exchequer,BD23 1PS,"30,775.00",Yes
Communities & Local Government,DCLG,15/05/2012,Current (non AEF) Grants to Local Authorities,Neighbourhoods,CRAWLEY BC,,,,5000200783,Grant Payable by Exchequer,RH10 1UZ,"71,339.00",Yes
Communities & Local Government,DCLG,15/05/2012,Current (non AEF) Grants to Local Authorities,Neighbourhoods,CROYDON LB,,,,5000200937,Grant Payable by Exchequer,CR9 3JS,"323,505.00",Yes
Communities & Local Government,DCLG,15/05/2012,Current (non AEF) Grants to Local Authorities,Neighbourhoods,CUMBRIA COUNTY CNCL,,,,5000200938,Grant Payable by Exchequer,CA3 8NA,"24,652.00",Yes
Communities & Local Government,DCLG,15/05/2012,Current (non AEF) Grants to Local Authorities,Neighbourhoods,DACORUM BC,,,,5000200939,Grant Payable by Exchequer,HP1 1HH,"67,536.00",Yes
Communities & Local Government,DCLG,15/05/2012,Current (non AEF) Grants to Local Authorities,Neighbourhoods,DARLINGTON BC,,,,5000200940,Grant Payable by Exchequer,TS19 1JA,"44,452.00",Yes
Communities & Local Government,DCLG,15/05/2012,Current (non AEF) Grants to Local Authorities,Neighbourhoods,DARTFORD BC,,,,5000200784,Grant Payable by Exchequer,DA1 1DR,"59,216.00",Yes
Communities & Local Government,DCLG,15/05/2012,Current (non AEF) Grants to Local Authorities,Neighbourhoods,DAVENTRY DC,,,,5000200785,Grant Payable by Exchequer,NN11 5AF,"29,803.00",Yes
Communities & Local Government,DCLG,15/05/2012,Current (non AEF) Grants to Local Authorities,Neighbourhoods,DERBY CITY CNCL,,,,5000200941,Grant Payable by Exchequer,DE1 2FS,"148,486.00",Yes
Communities & Local Government,DCLG,15/05/2012,Current (non AEF) Grants to Local Authorities,Neighbourhoods,DERBYSHIRE COUNTYCOUNCIL,,,,5000200942,Grant Payable by Exchequer,DE4 3AH,"64,293.00",Yes
Communities & Local Government,DCLG,15/05/2012,Current (non AEF) Grants to Local Authorities,Neighbourhoods,DERBYSHIRE DALES DC,,,,5000200786,Grant Payable by Exchequer,DE4 3NN,"24,206.00",Yes
Communities & Local Government,DCLG,15/05/2012,Current (non AEF) Grants to Local Authorities,Neighbourhoods,DEVON COUNTY CNCL,,,,5000200943,Grant Payable by Exchequer,EX2 4QJ,"120,499.00",Yes
Communities & Local Government,DCLG,15/05/2012,Current (non AEF) Grants to Local Authorities,Neighbourhoods,DONCASTER MBC,,,,5000200944,Grant Payable by Exchequer,DN1 3QA,"71,094.00",Yes
Communities & Local Government,DCLG,15/05/2012,Current (non AEF) Grants to Local Authorities,Neighbourhoods,DORSET COUNTY CNCL,,,,5000200945,Grant Payable by Exchequer,DT1 1XJ,"43,458.00",Yes
Communities & Local Government,DCLG,15/05/2012,Current (non AEF) Grants to Local Authorities,Neighbourhoods,DOVER DC,,,,5000200787,Grant Payable by Exchequer,CT16 3PD,"34,388.00",Yes
Communities & Local Government,DCLG,15/05/2012,Current (non AEF) Grants to Local Authorities,Neighbourhoods,DUDLEY MBC,,,,5000200946,Grant Payable by Exchequer,DY1 1HF,"130,116.00",Yes
Communities & Local Government,DCLG,15/05/2012,Current (non AEF) Grants to Local Authorities,Neighbourhoods,DURHAM UNITARY AUTHORITY,,,,5000201107,Grant Payable by Exchequer,DH1 5UE,"195,354.00",Yes
Communities & Local Government,DCLG,15/05/2012,Current (non AEF) Grants to Local Authorities,Neighbourhoods,EALING LB,,,,5000200947,Grant Payable by Exchequer,W5 2HL,"207,211.00",Yes
Communities & Local Government,DCLG,15/05/2012,Current (non AEF) Grants to Local Authorities,Neighbourhoods,EAST CAMBRIDGESHIRE DC,,,,5000200788,Grant Payable by Exchequer,CB7 4PL,"57,519.00",Yes
Communities & Local Government,DCLG,15/05/2012,Current (non AEF) Grants to Local Authorities,Neighbourhoods,EAST DEVON DC,,,,5000200789,Grant Payable by Exchequer,EX10 8HL,"58,098.00",Yes
Communities & Local Government,DCLG,15/05/2012,Current (non AEF) Grants to Local Authorities,Neighbourhoods,EAST DORSET DC,,,,5000200948,Grant Payable by Exchequer,BH21 4HN,"21,781.00",Yes
Communities & Local Government,DCLG,15/05/2012,Current (non AEF) Grants to Local Authorities,Neighbourhoods,EAST HAMPSHIRE DC,,,,5000200790,Grant Payable by Exchequer,GU31 4EX,"67,732.00",Yes
Communities & Local Government,DCLG,15/05/2012,Current (non AEF) Grants to Local Authorities,Neighbourhoods,EAST HERTFORDSHIRE DC,,,,5000200791,Grant Payable by Exchequer,CM23 2EN,"64,352.00",Yes
Communities & Local Government,DCLG,15/05/2012,Current (non AEF) Grants to Local Authorities,Neighbourhoods,EAST LINDSEY DC,,,,5000200792,Grant Payable by Exchequer,LN11 8UP,"56,242.00",Yes
Communities & Local Government,DCLG,15/05/2012,Current (non AEF) Grants to Local Authorities,Neighbourhoods,EAST NORTHAMPTONSHIRE COUNCIL,,,,5000200793,Grant Payable by Exchequer,NN14 4LZ,"69,383.00",Yes
Communities & Local Government,DCLG,15/05/2012,Current (non AEF) Grants to Local Authorities,Neighbourhoods,EAST RIDING OF YORKS (HSG),,,,5000200794,Grant Payable by Exchequer,HU17 9BA,"169,081.00",Yes
Communities & Local Government,DCLG,15/05/2012,Current (non AEF) Grants to Local Authorities,Neighbourhoods,EAST STAFFORDSHIRE BC,,,,5000200795,Grant Payable by Exchequer,DE14 2EB,"52,259.00",Yes
Communities & Local Government,DCLG,15/05/2012,Current (non AEF) Grants to Local Authorities,Neighbourhoods,EAST SUSSEX COUNTY CNCL,,,,5000200949,Grant Payable by Exchequer,BN7 1SF,"63,608.00",Yes
Communities & Local Government,DCLG,15/05/2012,Current (non AEF) Grants to Local Authorities,Neighbourhoods,EASTBOURNE BC,,,,5000200950,Grant Payable by Exchequer,BN21 4TW,"28,898.00",Yes
Communities & Local Government,DCLG,15/05/2012,Current (non AEF) Grants to Local Authorities,Neighbourhoods,EASTLEIGH BOROUGH COUNCIL,,,,5000200951,Grant Payable by Exchequer,SO5 9YN,"74,728.00",Yes
Communities & Local Government,DCLG,15/05/2012,Current (non AEF) Grants to Local Authorities,Neighbourhoods,EDEN DC (HSG),,,,5000200796,Grant Payable by Exchequer,CA11 7QF,"19,348.00",Yes
Communities & Local Government,DCLG,15/05/2012,Current (non AEF) Grants to Local Authorities,Neighbourhoods,ELMBRIDGE BC (HSG),,,,5000200797,Grant Payable by Exchequer,KT10 9SD,"95,502.00",Yes
Communities & Local Government,DCLG,15/05/2012,Current (non AEF) Grants to Local Authorities,Neighbourhoods,ENFIELD LB,,,,5000200952,Grant Payable by Exchequer,EN1 3XF,"103,979.00",Yes
Communities & Local Government,DCLG,15/05/2012,Current (non AEF) Grants to Local Authorities,Neighbourhoods,EPPING FOREST DC,,,,5000200953,Grant Payable by Exchequer,CM16 4BZ,"55,057.00",Yes
Communities & Local Government,DCLG,15/05/2012,Current (non AEF) Grants to Local Authorities,Neighbourhoods,EPSOM & EWELL BC,,,,5000200954,Grant Payable by Exchequer,KT18 5BY,"46,554.00",Yes
Communities & Local Government,DCLG,15/05/2012,Current (non AEF) Grants to Local Authorities,Neighbourhoods,EREWASH BC,,,,5000200955,Grant Payable by Exchequer,DE7 5RP,"39,410.00",Yes
Communities & Local Government,DCLG,15/05/2012,Current (non AEF) Grants to Local Authorities,Neighbourhoods,ESSEX COUNTY CNCL,,,,5000200956,Grant Payable by Exchequer,CM1 1JZ,"160,862.00",Yes
Communities & Local Government,DCLG,15/05/2012,Current (non AEF) Grants to Local Authorities,Neighbourhoods,EXETER CITY CNCL,,,,5000200957,Grant Payable by Exchequer,EX1 1JN,"101,286.00",Yes
Communities & Local Government,DCLG,15/05/2012,Current (non AEF) Grants to Local Authorities,Neighbourhoods,FAREHAM BC,,,,5000200798,Grant Payable by Exchequer,PO16 7PU,"50,365.00",Yes
Communities & Local Government,DCLG,15/05/2012,Current (non AEF) Grants to Local Authorities,Neighbourhoods,FENLAND DC,,,,5000200799,Grant Payable by Exchequer,PE15 8NQ,"46,977.00",Yes
Communities & Local Government,DCLG,15/05/2012,Current (non AEF) Grants to Local Authorities,Neighbourhoods,FOREST HEATH DISTRICT COUNCIL,,,,5000200800,Grant Payable by Exchequer,IP28 7EY,"109,962.00",Yes
Communities & Local Government,DCLG,15/05/2012,Current (non AEF) Grants to Local Authorities,Neighbourhoods,FOREST OF DEAN DC,,,,5000200801,Grant Payable by Exchequer,GL16 8HG,"33,501.00",Yes
Communities & Local Government,DCLG,15/05/2012,Current (non AEF) Grants to Local Authorities,Neighbourhoods,FYLDE BC,,,,5000200958,Grant Payable by Exchequer,FY8 1LW,"44,817.00",Yes
Communities & Local Government,DCLG,15/05/2012,Current (non AEF) Grants to Local Authorities,Neighbourhoods,GATESHEAD MBC,,,,5000200959,Grant Payable by Exchequer,NE8 1HH,"51,334.00",Yes
Communities & Local Government,DCLG,15/05/2012,Current (non AEF) Grants to Local Authorities,Neighbourhoods,GEDLING BC,,,,5000200960,Grant Payable by Exchequer,NG5 6LU,"57,389.00",Yes
Communities & Local Government,DCLG,15/05/2012,Current (non AEF) Grants to Local Authorities,Neighbourhoods,GLOUCESTER CITY CNCL,,,,5000200961,Grant Payable by Exchequer,GL1 2EQ,"108,313.00",Yes
Communities & Local Government,DCLG,15/05/2012,Current (non AEF) Grants to Local Authorities,Neighbourhoods,GLOUCESTERSHIRE COUNTY CNCL,,,,5000200962,Grant Payable by Exchequer,GL1 2TG,"92,786.00",Yes
Communities & Local Government,DCLG,15/05/2012,Current (non AEF) Grants to Local Authorities,Neighbourhoods,GMRB,,,,5000200923,Grant Payable by Exchequer,BL9 0SW,"32,399.00",Yes
Communities & Local Government,DCLG,15/05/2012,Current (non AEF) Grants to Local Authorities,Neighbourhoods,GOSPORT BOROUGH COUNCIL,,,,5000200963,Grant Payable by Exchequer,PO12 1ED,"17,388.00",Yes
Communities & Local Government,DCLG,15/05/2012,Current (non AEF) Grants to Local Authorities,Neighbourhoods,GRAVESHAM BC,,,,5000200964,Grant Payable by Exchequer,DA12 1AU,"40,103.00",Yes
Communities & Local Government,DCLG,15/05/2012,Current (non AEF) Grants to Local Authorities,Neighbourhoods,GREAT YARMOUTH BC,,,,5000200965,Grant Payable by Exchequer,NR30 2QG,"38,889.00",Yes
Communities & Local Government,DCLG,15/05/2012,Current (non AEF) Grants to Local Authorities,Neighbourhoods,GREENWICH LB,,,,5000200966,Grant Payable by Exchequer,SE18 6BU,"241,283.00",Yes
Communities & Local Government,DCLG,15/05/2012,Current (non AEF) Grants to Local Authorities,Neighbourhoods,GUILDFORD BC,,,,5000200802,Grant Payable by Exchequer,GU2 5BB,"44,714.00",Yes
Communities & Local Government,DCLG,15/05/2012,Current (non AEF) Grants to Local Authorities,Neighbourhoods,HALTON BC (HSG),,,,5000200803,Grant Payable by Exchequer,WA8 7QF,"65,617.00",Yes
Communities & Local Government,DCLG,15/05/2012,Current (non AEF) Grants to Local Authorities,Neighbourhoods,HAMBLETON DC (HSG),,,,5000200804,Grant Payable by Exchequer,DL6 2UU,"43,803.00",Yes
Communities & Local Government,DCLG,15/05/2012,Current (non AEF) Grants to Local Authorities,Neighbourhoods,HAMMERSMITH & FULHAM LB,,,,5000200968,Grant Payable by Exchequer,W6 9JU,"139,527.00",Yes
Communities & Local Government,DCLG,15/05/2012,Current (non AEF) Grants to Local Authorities,Neighbourhoods,HAMPSHIRE COUNTY COUNCIL,,,,5000200969,Grant Payable by Exchequer,SO23 8UB,"182,041.00",Yes
Communities & Local Government,DCLG,15/05/2012,Current (non AEF) Grants to Local Authorities,Neighbourhoods,HARBOROUGH DC (HSG),,,,5000200805,Grant Payable by Exchequer,LE16 7AG,"64,967.00",Yes
Communities & Local Government,DCLG,15/05/2012,Current (non AEF) Grants to Local Authorities,Neighbourhoods,HARINGEY LB,,,,5000200970,Grant Payable by Exchequer,N22 4TR,"132,479.00",Yes
Communities & Local Government,DCLG,15/05/2012,Current (non AEF) Grants to Local Authorities,Neighbourhoods,HARLOW DISTRICT COUNCIL,,,,5000200971,Grant Payable by Exchequer,CM20 1WG,"33,883.00",Yes
Communities & Local Government,DCLG,15/05/2012,Current (non AEF) Grants to Local Authorities,Neighbourhoods,HARROGATE BC,,,,5000200806,Grant Payable by Exchequer,HG1 2SG,"47,888.00",Yes
Communities & Local Government,DCLG,15/05/2012,Current (non AEF) Grants to Local Authorities,Neighbourhoods,HARROW LB,,,,5000200972,Grant Payable by Exchequer,HA1 2UZ,"131,772.00",Yes
Communities & Local Government,DCLG,15/05/2012,Current (non AEF) Grants to Local Authorities,Neighbourhoods,HART DC,,,,5000200973,Grant Payable by Exchequer,GU13 8AE,"32,243.00",Yes
Communities & Local Government,DCLG,15/05/2012,Current (non AEF) Grants to Local Authorities,Neighbourhoods,HARTLEPOOL BOROUGH COUNCIL,,,,5000200974,Grant Payable by Exchequer,TS24 7BT,"58,840.00",Yes
Communities & Local Government,DCLG,15/05/2012,Current (non AEF) Grants to Local Authorities,Neighbourhoods,HASTINGS BC,,,,5000200975,Grant Payable by Exchequer,TN34 3WN,"29,448.00",Yes
Communities & Local Government,DCLG,15/05/2012,Current (non AEF) Grants to Local Authorities,Neighbourhoods,HAVANT BC,,,,5000200976,Grant Payable by Exchequer,PO9 2AX,"23,914.00",Yes
Communities & Local Government,DCLG,15/05/2012,Current (non AEF) Grants to Local Authorities,Neighbourhoods,HAVERING LB,,,,5000200977,Grant Payable by Exchequer,RM1 3BB,"64,075.00",Yes
Communities & Local Government,DCLG,15/05/2012,Current (non AEF) Grants to Local Authorities,Neighbourhoods,HEREFORDSHIRE COUNCIL,,,,5000200807,Grant Payable by Exchequer,HR4 0XH,"108,350.00",Yes
Communities & Local Government,DCLG,15/05/2012,Current (non AEF) Grants to Local Authorities,Neighbourhoods,HERTFORDSHIRE COUNTY CNCL,,,,5000200978,Grant Payable by Exchequer,SG13 8DQ,"153,133.00",Yes
Communities & Local Government,DCLG,15/05/2012,Current (non AEF) Grants to Local Authorities,Neighbourhoods,HERTSMERE BC,,,,5000200979,Grant Payable by Exchequer,WD6 1WA,"43,788.00",Yes
Communities & Local Government,DCLG,15/05/2012,Current (non AEF) Grants to Local Authorities,Neighbourhoods,HIGH PEAK BC,,,,5000200808,Grant Payable by Exchequer,SK17 6EL,"11,287.00",Yes
Communities & Local Government,DCLG,15/05/2012,Current (non AEF) Grants to Local Authorities,Neighbourhoods,HILLINGDON LB,,,,5000200980,Grant Payable by Exchequer,UB8 1UW,"227,366.00",Yes
Communities & Local Government,DCLG,15/05/2012,Current (non AEF) Grants to Local Authorities,Neighbourhoods,HINCKLEY & BOSWORTH BC,,,,5000200809,Grant Payable by Exchequer,LE10 1BZ,"54,469.00",Yes
Communities & Local Government,DCLG,15/05/2012,Current (non AEF) Grants to Local Authorities,Neighbourhoods,HORSHAM DC,,,,5000200810,Grant Payable by Exchequer,RH12 1RL,"58,916.00",Yes
Communities & Local Government,DCLG,15/05/2012,Current (non AEF) Grants to Local Authorities,Neighbourhoods,HOUNSLOW LB,,Public Bodies,,5000200981,Grant Payable by Exchequer,TW3 4DN,"269,149.00",Yes
Communities & Local Government,DCLG,15/05/2012,Current (non AEF) Grants to Local Authorities,Neighbourhoods,HULL CITY COUNCIL,,,,5000200990,Grant Payable by Exchequer,HU1 2AA,"72,357.00",Yes
Communities & Local Government,DCLG,15/05/2012,Current (non AEF) Grants to Local Authorities,Neighbourhoods,HUNTINGDONSHIRE DC,,,,5000200811,Grant Payable by Exchequer,PE18 6TN,"146,528.00",Yes
Communities & Local Government,DCLG,15/05/2012,Current (non AEF) Grants to Local Authorities,Neighbourhoods,HYNDBURN BC,,,,5000200982,Grant Payable by Exchequer,BB5 1EZ,"8,830.00",Yes
Communities & Local Government,DCLG,15/05/2012,Current (non AEF) Grants to Local Authorities,Neighbourhoods,IPSWICH BC,,,,5000200983,Grant Payable by Exchequer,IP1 2EE,"77,560.00",Yes
Communities & Local Government,DCLG,15/05/2012,Current (non AEF) Grants to Local Authorities,Neighbourhoods,ISLE OF WIGHT CNCL,,,,5000200984,Grant Payable by Exchequer,PO30 1UD,"87,478.00",Yes
Communities & Local Government,DCLG,15/05/2012,Current (non AEF) Grants to Local Authorities,Neighbourhoods,ISLES OF SCILLY COUNCIL,,,,5000200985,Grant Payable by Exchequer,TR21 0LW,"1,755.00",Yes
Communities & Local Government,DCLG,15/05/2012,Current (non AEF) Grants to Local Authorities,Neighbourhoods,ISLINGTON LB,,,,5000200986,Grant Payable by Exchequer,N1 1XR,"434,970.00",Yes
Communities & Local Government,DCLG,15/05/2012,Current (non AEF) Grants to Local Authorities,Neighbourhoods,KENT COUNTY CNCL,,,,5000200988,Grant Payable by Exchequer,ME14 1XQ,"217,370.00",Yes
Communities & Local Government,DCLG,15/05/2012,Current (non AEF) Grants to Local Authorities,Neighbourhoods,KETTERING BC,,,,5000200989,Grant Payable by Exchequer,NN15 7QX,"67,368.00",Yes
Communities & Local Government,DCLG,15/05/2012,Current (non AEF) Grants to Local Authorities,Neighbourhoods,KINGS LYNN & WEST NORFOLK BC,,,,5000200812,Grant Payable by Exchequer,PE30 1EX,"80,611.00",Yes
Communities & Local Government,DCLG,15/05/2012,Current (non AEF) Grants to Local Authorities,Neighbourhoods,KINGSTON UPON THAMES  (HSG),,,,5000200813,Grant Payable by Exchequer,KT1 1EU,"106,925.00",Yes
Communities & Local Government,DCLG,15/05/2012,Current (non AEF) Grants to Local Authorities,Neighbourhoods,KIRKLEES COUNCIL (HSG),,,,5000200814,Grant Payable by Exchequer,HD1 2YU,"210,637.00",Yes
Communities & Local Government,DCLG,15/05/2012,Current (non AEF) Grants to Local Authorities,Neighbourhoods,KNOWSLEY MBC,,,,5000200991,Grant Payable by Exchequer,L36 9YZ,"28,751.00",Yes
Communities & Local Government,DCLG,15/05/2012,Current (non AEF) Grants to Local Authorities,Neighbourhoods,LANCASHIRE COUNTY CNCL,,,,5000200993,Grant Payable by Exchequer,PR1 8RD,"78,961.00",Yes
Communities & Local Government,DCLG,15/05/2012,Current (non AEF) Grants to Local Authorities,Neighbourhoods,LANCASTER CITY CNCL,,,,5000200815,Grant Payable by Exchequer,LA1 1PJ,"35,363.00",Yes
Communities & Local Government,DCLG,15/05/2012,Current (non AEF) Grants to Local Authorities,Neighbourhoods,LEEDS CITY CNCL,,,,5000200994,Grant Payable by Exchequer,LS1 1JF,"419,074.00",Yes
Communities & Local Government,DCLG,15/05/2012,Current (non AEF) Grants to Local Authorities,Neighbourhoods,LEICESTER CITY CNCL (HSG),,,,5000200816,Grant Payable by Exchequer,LE1 6ZG,"228,382.00",Yes
Communities & Local Government,DCLG,15/05/2012,Current (non AEF) Grants to Local Authorities,Neighbourhoods,LEICESTERSHIRE COUNTY CNCL,,,,5000200995,Grant Payable by Exchequer,LE3 8RB,"82,334.00",Yes
Communities & Local Government,DCLG,15/05/2012,Current (non AEF) Grants to Local Authorities,Neighbourhoods,LEWES DC,,,,5000200817,Grant Payable by Exchequer,BN7 2DQ,"39,779.00",Yes
Communities & Local Government,DCLG,15/05/2012,Current (non AEF) Grants to Local Authorities,Neighbourhoods,LEWISHAM LB (HSG),,,,5000200818,Grant Payable by Exchequer,SE6 4RU,"127,415.00",Yes
Communities & Local Government,DCLG,15/05/2012,Current (non AEF) Grants to Local Authorities,Neighbourhoods,LICHFIELD DC,,,,5000200996,Grant Payable by Exchequer,WS13 6YX,"37,139.00",Yes
Communities & Local Government,DCLG,15/05/2012,Current (non AEF) Grants to Local Authorities,Neighbourhoods,LINCOLNSHIRE COUNTY COUNCIL,,,,5000200998,Grant Payable by Exchequer,LN1 1YT,"114,496.00",Yes
Communities & Local Government,DCLG,15/05/2012,Current (non AEF) Grants to Local Authorities,Neighbourhoods,LIVERPOOL CITY COUNCIL,,,,5000200999,Grant Payable by Exchequer,L2 2DH,"157,657.00",Yes
Communities & Local Government,DCLG,15/05/2012,Current (non AEF) Grants to Local Authorities,Neighbourhoods,LONDON BOROUGH OF HACKNEY,,,,5000200967,Grant Payable by Exchequer,E8 4RU,"337,333.00",Yes
Communities & Local Government,DCLG,15/05/2012,Current (non AEF) Grants to Local Authorities,Neighbourhoods,LONDON BOROUGH OF LAMBETH,,,,5000200992,Grant Payable by Exchequer,SW2 1RL,"340,549.00",Yes
Communities & Local Government,DCLG,15/05/2012,Current (non AEF) Grants to Local Authorities,Neighbourhoods,LONDON BOROUGH OF NEWHAM,,,,5000201008,Grant Payable by Exchequer,E16 2QU,"243,611.00",Yes
Communities & Local Government,DCLG,15/05/2012,Current (non AEF) Grants to Local Authorities,Neighbourhoods,LONDON BOROUGH OF REDBRIDGE,,,,5000201030,Grant Payable by Exchequer,IG1 1NN,"142,565.00",Yes
Communities & Local Government,DCLG,15/05/2012,Current (non AEF) Grants to Local Authorities,Neighbourhoods,LUTON BC,,,,5000201000,Grant Payable by Exchequer,LU1 1DX,"81,989.00",Yes
Communities & Local Government,DCLG,15/05/2012,Current (non AEF) Grants to Local Authorities,Neighbourhoods,MAIDSTONE BC,,,,5000200819,Grant Payable by Exchequer,ME15 6JQ,"137,506.00",Yes
Communities & Local Government,DCLG,15/05/2012,Current (non AEF) Grants to Local Authorities,Neighbourhoods,MALDON DC,,,,5000200820,Grant Payable by Exchequer,CM9 7DL,"19,152.00",Yes
Communities & Local Government,DCLG,15/05/2012,Current (non AEF) Grants to Local Authorities,Neighbourhoods,MALVERN HILLS DC,,,,5000201001,Grant Payable by Exchequer,WR14 3AF,"57,549.00",Yes
Communities & Local Government,DCLG,15/05/2012,Current (non AEF) Grants to Local Authorities,Neighbourhoods,MANCHESTER CITY CNCL (HSG),,,,5000200821,Grant Payable by Exchequer,M60 2JR,"356,290.00",Yes
Communities & Local Government,DCLG,15/05/2012,Current (non AEF) Grants to Local Authorities,Neighbourhoods,MANSFIELD DC,,,,5000201002,Grant Payable by Exchequer,NG19 7BH,"27,510.00",Yes
Communities & Local Government,DCLG,15/05/2012,Current (non AEF) Grants to Local Authorities,Neighbourhoods,MEDWAY TOWNS D C (HSG),,,,5000200822,Grant Payable by Exchequer,ME4 4TR,"177,447.00",Yes
Communities & Local Government,DCLG,15/05/2012,Current (non AEF) Grants to Local Authorities,Neighbourhoods,MELTON BC,,,,5000200823,Grant Payable by Exchequer,LE13 0UL,"36,430.00",Yes
Communities & Local Government,DCLG,15/05/2012,Current (non AEF) Grants to Local Authorities,Neighbourhoods,MENDIP DISTRICT COUNCIL,,,,5000200824,Grant Payable by Exchequer,BA4 5BA,"76,331.00",Yes
Communities & Local Government,DCLG,15/05/2012,Current (non AEF) Grants to Local Authorities,Neighbourhoods,MERTON LB,,,,5000201003,Grant Payable by Exchequer,SM4 5DX,"86,966.00",Yes
Communities & Local Government,DCLG,15/05/2012,Current (non AEF) Grants to Local Authorities,Neighbourhoods,MID DEVON DC,,,,5000200825,Grant Payable by Exchequer,EX16 6PP,"27,376.00",Yes
Communities & Local Government,DCLG,15/05/2012,Current (non AEF) Grants to Local Authorities,Neighbourhoods,MID SUFFOLK DC,,,,5000200826,Grant Payable by Exchequer,IP1 2DH,"65,867.00",Yes
Communities & Local Government,DCLG,15/05/2012,Current (non AEF) Grants to Local Authorities,Neighbourhoods,MID SUSSEX DC,,,,5000200827,Grant Payable by Exchequer,RH16 1SS,"66,345.00",Yes
Communities & Local Government,DCLG,15/05/2012,Current (non AEF) Grants to Local Authorities,Neighbourhoods,MIDDLESBROUGH BC,,,,5000201004,Grant Payable by Exchequer,TS1 2QQ,"70,299.00",Yes
Communities & Local Government,DCLG,15/05/2012,Current (non AEF) Grants to Local Authorities,Neighbourhoods,MILTON KEYNES BC,,,,5000201005,Grant Payable by Exchequer,MK9 3WJ,"338,888.00",Yes
Communities & Local Government,DCLG,15/05/2012,Current (non AEF) Grants to Local Authorities,Neighbourhoods,MOLE VALLEY DC,,,,5000200828,Grant Payable by Exchequer,RH4 1SJ,"26,967.00",Yes
Communities & Local Government,DCLG,15/05/2012,Current (non AEF) Grants to Local Authorities,Neighbourhoods,NEW FOREST DC,,Public Bodies,,5000200829,Grant Payable by Exchequer,SO43 9ZG,"55,134.00",Yes
Communities & Local Government,DCLG,15/05/2012,Current (non AEF) Grants to Local Authorities,Neighbourhoods,NEWARK & SHERWOOD DC (HSG),,,,5000200830,Grant Payable by Exchequer,NG23 5QX,"58,766.00",Yes
Communities & Local Government,DCLG,15/05/2012,Current (non AEF) Grants to Local Authorities,Neighbourhoods,NEWCASTLE UNDER LYME BC,,,,5000201006,Grant Payable by Exchequer,ST5 2AG,"59,530.00",Yes
Communities & Local Government,DCLG,15/05/2012,Current (non AEF) Grants to Local Authorities,Neighbourhoods,NEWCASTLE UPON TYNE DC,,,,5000201007,Grant Payable by Exchequer,NE99 1RD,"88,376.00",Yes
Communities & Local Government,DCLG,15/05/2012,Current (non AEF) Grants to Local Authorities,Neighbourhoods,NORFOLK COUNTY COUNCIL,,,,5000201009,Grant Payable by Exchequer,NR1 2DW,"122,243.00",Yes
Communities & Local Government,DCLG,15/05/2012,Current (non AEF) Grants to Local Authorities,Neighbourhoods,NORTH DEVON DC,,,,5000200831,Grant Payable by Exchequer,EX31 1EA,"37,914.00",Yes
Communities & Local Government,DCLG,15/05/2012,Current (non AEF) Grants to Local Authorities,Neighbourhoods,NORTH DORSET DC,,,,5000200832,Grant Payable by Exchequer,DT11 7LL,"45,102.00",Yes
Communities & Local Government,DCLG,15/05/2012,Current (non AEF) Grants to Local Authorities,Neighbourhoods,NORTH EAST DERBYSHIRE DC,,,,5000201010,Grant Payable by Exchequer,S40 1LF,"26,263.00",Yes
Communities & Local Government,DCLG,15/05/2012,Current (non AEF) Grants to Local Authorities,Neighbourhoods,NORTH EAST LINCOLN DC (HSG),,,,5000200833,Grant Payable by Exchequer,DN35 8LN,"57,733.00",Yes
Communities & Local Government,DCLG,15/05/2012,Current (non AEF) Grants to Local Authorities,Neighbourhoods,NORTH HERTS DC (HOUSING) (HSG),,,,5000200834,Grant Payable by Exchequer,SG6 3HN,"79,764.00",Yes
Communities & Local Government,DCLG,15/05/2012,Current (non AEF) Grants to Local Authorities,Neighbourhoods,NORTH KESTEVEN DC,,,,5000201011,Grant Payable by Exchequer,NG34 7EF,"87,384.00",Yes
Communities & Local Government,DCLG,15/05/2012,Current (non AEF) Grants to Local Authorities,Neighbourhoods,NORTH LINCOLNSHIRE DC (HSG),,,,5000200835,Grant Payable by Exchequer,DN16 1AB,"91,773.00",Yes
Communities & Local Government,DCLG,15/05/2012,Current (non AEF) Grants to Local Authorities,Neighbourhoods,NORTH NORFOLK DC,,,,5000200836,Grant Payable by Exchequer,NR27 9EJ,"46,840.00",Yes
Communities & Local Government,DCLG,15/05/2012,Current (non AEF) Grants to Local Authorities,Neighbourhoods,NORTH SOMERSET DC,,,,5000201012,Grant Payable by Exchequer,BS23 1LL,"158,833.00",Yes
Communities & Local Government,DCLG,15/05/2012,Current (non AEF) Grants to Local Authorities,Neighbourhoods,NORTH TYNESIDE MBC,,,,5000201013,Grant Payable by Exchequer,NE27 0BY,"65,272.00",Yes
Communities & Local Government,DCLG,15/05/2012,Current (non AEF) Grants to Local Authorities,Neighbourhoods,NORTH WARWICKSHIRE BC,,Large,,5000200837,Grant Payable by Exchequer,CV9 1DE,"15,968.00",Yes
Communities & Local Government,DCLG,15/05/2012,Current (non AEF) Grants to Local Authorities,Neighbourhoods,NORTH WEST LEICESTER DC,,,,5000200838,Grant Payable by Exchequer,LE67 3FJ,"35,479.00",Yes
Communities & Local Government,DCLG,15/05/2012,Current (non AEF) Grants to Local Authorities,Neighbourhoods,NORTH YORKSHIRE CC (DL7 8AL),,,,5000201014,Grant Payable by Exchequer,DL7 8AL,"65,076.00",Yes
Communities & Local Government,DCLG,15/05/2012,Current (non AEF) Grants to Local Authorities,Neighbourhoods,NORTHAMPTON BOROUGH COUNCIL,,,,5000201015,Grant Payable by Exchequer,NN4 7NR,"104,926.00",Yes
Communities & Local Government,DCLG,15/05/2012,Current (non AEF) Grants to Local Authorities,Neighbourhoods,NORTHAMPTONSHIRE COUNTY COUNCIL,,,,5000201016,Grant Payable by Exchequer,NN4 7BR,"109,565.00",Yes
Communities & Local Government,DCLG,15/05/2012,Current (non AEF) Grants to Local Authorities,Neighbourhoods,NORTHUMBERLAND COUNTY COUNCIL,,,,5000201100,Grant Payable by Exchequer,NE61 2EF,"133,525.00",Yes
Communities & Local Government,DCLG,15/05/2012,Current (non AEF) Grants to Local Authorities,Neighbourhoods,NORWICH CITY CNCL,,,,5000201017,Grant Payable by Exchequer,NR2 1NH,"91,052.00",Yes
Communities & Local Government,DCLG,15/05/2012,Current (non AEF) Grants to Local Authorities,Neighbourhoods,NOTTINGHAM CITY COUNCIL,,,,5000201018,Grant Payable by Exchequer,M33 0DJ,"140,733.00",Yes
Communities & Local Government,DCLG,15/05/2012,Current (non AEF) Grants to Local Authorities,Neighbourhoods,NOTTINGHAMSHIRE COUNTY CNCL,,,,5000201019,Grant Payable by Exchequer,NG1 4BU,"81,038.00",Yes
Communities & Local Government,DCLG,15/05/2012,Current (non AEF) Grants to Local Authorities,Neighbourhoods,NUNEATON & BEDWORTH BC,,,,5000201020,Grant Payable by Exchequer,CV11 5AA,"45,258.00",Yes
Communities & Local Government,DCLG,15/05/2012,Current (non AEF) Grants to Local Authorities,Neighbourhoods,OADBY & WIGSTON BC (HSG),,,,5000200839,Grant Payable by Exchequer,LE8 2DR,"6,033.00",Yes
Communities & Local Government,DCLG,15/05/2012,Current (non AEF) Grants to Local Authorities,Neighbourhoods,OLDHAM MBC,,,,5000201021,Grant Payable by Exchequer,OL1 1UH,"22,527.00",Yes
Communities & Local Government,DCLG,15/05/2012,Current (non AEF) Grants to Local Authorities,Neighbourhoods,OXFORD CITY COUNCIL,,,,5000201022,Grant Payable by Exchequer,OX1 1DF,"99,282.00",Yes
Communities & Local Government,DCLG,15/05/2012,Current (non AEF) Grants to Local Authorities,Neighbourhoods,OXFORDSHIRE CC,,,,5000201023,Grant Payable by Exchequer,OX1 1TH,"81,814.00",Yes
Communities & Local Government,DCLG,15/05/2012,Current (non AEF) Grants to Local Authorities,Neighbourhoods,PENDLE BC,,,,5000201024,Grant Payable by Exchequer,BB9 OLX,"14,795.00",Yes
Communities & Local Government,DCLG,15/05/2012,Current (non AEF) Grants to Local Authorities,Neighbourhoods,PETERBOROUGH CITY CNCL,,,,5000201025,Grant Payable by Exchequer,PE1 1HG,"176,388.00",Yes
Communities & Local Government,DCLG,15/05/2012,Current (non AEF) Grants to Local Authorities,Neighbourhoods,PLYMOUTH CITY CNCL,,,,5000201026,Grant Payable by Exchequer,PL1 2AA,"117,778.00",Yes
Communities & Local Government,DCLG,15/05/2012,Current (non AEF) Grants to Local Authorities,Neighbourhoods,POOLE BC (HSG),,,,5000200840,Grant Payable by Exchequer,BH15 2RU,"79,266.00",Yes
Communities & Local Government,DCLG,15/05/2012,Current (non AEF) Grants to Local Authorities,Neighbourhoods,PORTSMOUTH CITY COUNCIL,,,,5000201027,Grant Payable by Exchequer,PO1 2AR,"99,349.00",Yes
Communities & Local Government,DCLG,15/05/2012,Current (non AEF) Grants to Local Authorities,Neighbourhoods,PRESTON BC,,,,5000201028,Grant Payable by Exchequer,PR1 2RL,"20,818.00",Yes
Communities & Local Government,DCLG,15/05/2012,Current (non AEF) Grants to Local Authorities,Neighbourhoods,PURBECK DC,,,,5000200841,Grant Payable by Exchequer,DT2 8UP,"12,306.00",Yes
Communities & Local Government,DCLG,15/05/2012,Current (non AEF) Grants to Local Authorities,Neighbourhoods,READING BC,,,,5000201029,Grant Payable by Exchequer,RG1 7TD,"95,176.00",Yes
Communities & Local Government,DCLG,15/05/2012,Current (non AEF) Grants to Local Authorities,Neighbourhoods,REDCAR & CLEVELAND BOROUGH COUNCIL,,,,5000201031,Grant Payable by Exchequer,TS6 9AR,"33,743.00",Yes
Communities & Local Government,DCLG,15/05/2012,Current (non AEF) Grants to Local Authorities,Neighbourhoods,REDDITCH BC,,,,5000201032,Grant Payable by Exchequer,B98 8AH,"23,623.00",Yes
Communities & Local Government,DCLG,15/05/2012,Current (non AEF) Grants to Local Authorities,Neighbourhoods,REIGATE & BANSTEAD BC,,,,5000201033,Grant Payable by Exchequer,RH2 OSH,"84,672.00",Yes
Communities & Local Government,DCLG,15/05/2012,Current (non AEF) Grants to Local Authorities,Neighbourhoods,RIBBLE VALLEY BC,,,,5000200842,Grant Payable by Exchequer,BB7 2RA,"13,757.00",Yes
Communities & Local Government,DCLG,15/05/2012,Current (non AEF) Grants to Local Authorities,Neighbourhoods,RICHMOND UPON THAMES LB,,,,5000201034,Grant Payable by Exchequer,TW1 3BZ,"85,554.00",Yes
Communities & Local Government,DCLG,15/05/2012,Current (non AEF) Grants to Local Authorities,Neighbourhoods,RICHMONDSHIRE DC,,,,5000200843,Grant Payable by Exchequer,DL10 4JE,"14,429.00",Yes
Communities & Local Government,DCLG,15/05/2012,Current (non AEF) Grants to Local Authorities,Neighbourhoods,ROCHDALE MBC,,,,5000201035,Grant Payable by Exchequer,OL16 1LQ,"72,163.00",Yes
Communities & Local Government,DCLG,15/05/2012,Current (non AEF) Grants to Local Authorities,Neighbourhoods,ROCHFORD DISTRICT COUNCIL,,,,5000201036,Grant Payable by Exchequer,SS4 1BW,"20,378.00",Yes
Communities & Local Government,DCLG,15/05/2012,Current (non AEF) Grants to Local Authorities,Neighbourhoods,ROSSENDALE BC,,,,5000201037,Grant Payable by Exchequer,BB4 7LZ,"16,626.00",Yes
Communities & Local Government,DCLG,15/05/2012,Current (non AEF) Grants to Local Authorities,Neighbourhoods,ROTHER DC (HSG),,,,5000200844,Grant Payable by Exchequer,TN39 3JX,"46,706.00",Yes
Communities & Local Government,DCLG,15/05/2012,Current (non AEF) Grants to Local Authorities,Neighbourhoods,ROTHERHAM MBC,,,,5000201038,Grant Payable by Exchequer,S60 1AE,"121,037.00",Yes
Communities & Local Government,DCLG,15/05/2012,Current (non AEF) Grants to Local Authorities,Neighbourhoods,ROYAL BOROUGH OF KENSINGTON & CHELS,,,,5000200987,Grant Payable by Exchequer,W8 7NX,"67,753.00",Yes
Communities & Local Government,DCLG,15/05/2012,Current (non AEF) Grants to Local Authorities,Neighbourhoods,RUGBY BC,,,,5000201039,Grant Payable by Exchequer,CV21 2LA,"68,404.00",Yes
Communities & Local Government,DCLG,15/05/2012,Current (non AEF) Grants to Local Authorities,Neighbourhoods,RUNNYMEDE BOROUGH COUNCIL,,,,5000201040,Grant Payable by Exchequer,KT15 2AH,"56,921.00",Yes
Communities & Local Government,DCLG,15/05/2012,Current (non AEF) Grants to Local Authorities,Neighbourhoods,RUSHCLIFFE BOROUGH COUNCIL,,,,5000200845,Grant Payable by Exchequer,NG2 5FE,"38,526.00",Yes
Communities & Local Government,DCLG,15/05/2012,Current (non AEF) Grants to Local Authorities,Neighbourhoods,RUSHMOOR BC,,,,5000201041,Grant Payable by Exchequer,GU14 7JU,"54,100.00",Yes
Communities & Local Government,DCLG,15/05/2012,Current (non AEF) Grants to Local Authorities,Neighbourhoods,RUTLAND CC,,,,5000201042,Grant Payable by Exchequer,LE15 6HP,"19,795.00",Yes
Communities & Local Government,DCLG,15/05/2012,Current (non AEF) Grants to Local Authorities,Neighbourhoods,RYEDALE DC,,,,5000200846,Grant Payable by Exchequer,YO17 0HH,"33,676.00",Yes
Communities & Local Government,DCLG,15/05/2012,Current (non AEF) Grants to Local Authorities,Neighbourhoods,SALFORD CITY CNCL,,,,5000201043,Grant Payable by Exchequer,M27 5AW,"329,598.00",Yes
Communities & Local Government,DCLG,15/05/2012,Current (non AEF) Grants to Local Authorities,Neighbourhoods,SANDWELL MBC,,,,5000201044,Grant Payable by Exchequer,B69 3BS,"133,728.00",Yes
Communities & Local Government,DCLG,15/05/2012,Current (non AEF) Grants to Local Authorities,Neighbourhoods,SCARBOROUGH BC,,Large,,5000200847,Grant Payable by Exchequer,YO11 2HG,"22,312.00",Yes
Communities & Local Government,DCLG,15/05/2012,Current (non AEF) Grants to Local Authorities,Neighbourhoods,SEDGEMOOR DC,,,,5000200848,Grant Payable by Exchequer,TA6 3AR,"106,971.00",Yes
Communities & Local Government,DCLG,15/05/2012,Current (non AEF) Grants to Local Authorities,Neighbourhoods,SEFTON MBC,,,,5000201045,Grant Payable by Exchequer,L20 3NQ,"122,019.00",Yes
Communities & Local Government,DCLG,15/05/2012,Current (non AEF) Grants to Local Authorities,Neighbourhoods,SELBY DC,,,,5000200849,Grant Payable by Exchequer,YO8 0SA,"67,421.00",Yes
Communities & Local Government,DCLG,15/05/2012,Current (non AEF) Grants to Local Authorities,Neighbourhoods,SEVENOAKS DC,,,,5000200850,Grant Payable by Exchequer,TN13 1HG,"49,468.00",Yes
Communities & Local Government,DCLG,15/05/2012,Current (non AEF) Grants to Local Authorities,Neighbourhoods,SHEFFIELD CITY CNCL,,,,5000201046,Grant Payable by Exchequer,S1 1UR,"258,475.00",Yes
Communities & Local Government,DCLG,15/05/2012,Current (non AEF) Grants to Local Authorities,Neighbourhoods,SHEPWAY DISTRICT COUNCIL,,,,5000200851,Grant Payable by Exchequer,CT20 2QY,"57,574.00",Yes
Communities & Local Government,DCLG,15/05/2012,Current (non AEF) Grants to Local Authorities,Neighbourhoods,SHROPSHIRE UNITARY AUTHORITY,,,,5000201105,Grant Payable by Exchequer,SY2 6ND,"216,682.00",Yes
Communities & Local Government,DCLG,15/05/2012,Current (non AEF) Grants to Local Authorities,Neighbourhoods,SLOUGH BOROUGH COUNCIL,,,,5000201047,Grant Payable by Exchequer,SL1 3UQ,"103,912.00",Yes
Communities & Local Government,DCLG,15/05/2012,Current (non AEF) Grants to Local Authorities,Neighbourhoods,SOLIHULL MBC,,,,5000201048,Grant Payable by Exchequer,B91 3QR,"111,927.00",Yes
Communities & Local Government,DCLG,15/05/2012,Current (non AEF) Grants to Local Authorities,Neighbourhoods,SOMERSET COUNTY CNCL,,,,5000201049,Grant Payable by Exchequer,TA1 4DY,"96,936.00",Yes
Communities & Local Government,DCLG,15/05/2012,Current (non AEF) Grants to Local Authorities,Neighbourhoods,SOUTH BUCKS DC (HSG),,,,5000200852,Grant Payable by Exchequer,UB9 4LH,"41,001.00",Yes
Communities & Local Government,DCLG,15/05/2012,Current (non AEF) Grants to Local Authorities,Neighbourhoods,SOUTH CAMBRIDGESHIRE DC,,,,5000200853,Grant Payable by Exchequer,CB23 6EA,"133,773.00",Yes
Communities & Local Government,DCLG,15/05/2012,Current (non AEF) Grants to Local Authorities,Neighbourhoods,SOUTH DERBYSHIRE D C,,,,5000200854,Grant Payable by Exchequer,DE11 0AH,"74,265.00",Yes
Communities & Local Government,DCLG,15/05/2012,Current (non AEF) Grants to Local Authorities,Neighbourhoods,SOUTH GLOUCESTERSHIRE DC (HSG),,,,5000200855,Grant Payable by Exchequer,BS15 2TR,"163,460.00",Yes
Communities & Local Government,DCLG,15/05/2012,Current (non AEF) Grants to Local Authorities,Neighbourhoods,SOUTH HAMS DC,,,,5000200856,Grant Payable by Exchequer,TQ9 5NE,"63,277.00",Yes
Communities & Local Government,DCLG,15/05/2012,Current (non AEF) Grants to Local Authorities,Neighbourhoods,SOUTH HOLLAND,,,,5000200857,Grant Payable by Exchequer,PE11 2XE,"44,030.00",Yes
Communities & Local Government,DCLG,15/05/2012,Current (non AEF) Grants to Local Authorities,Neighbourhoods,SOUTH KESTEVEN DC (HSG),,,,5000200858,Grant Payable by Exchequer,NG31 6PZ,"98,709.00",Yes
Communities & Local Government,DCLG,15/05/2012,Current (non AEF) Grants to Local Authorities,Neighbourhoods,SOUTH LAKELAND DC,,,,5000200859,Grant Payable by Exchequer,LA49 4DQ,"5,690.00",Yes
Communities & Local Government,DCLG,15/05/2012,Current (non AEF) Grants to Local Authorities,Neighbourhoods,SOUTH NORFOLK DC,,,,5000200860,Grant Payable by Exchequer,NR15 2XE,"130,730.00",Yes
Communities & Local Government,DCLG,15/05/2012,Current (non AEF) Grants to Local Authorities,Neighbourhoods,SOUTH NORTHAMPTONSHIRE DC,,,,5000200861,Grant Payable by Exchequer,NN12 7AE,"49,852.00",Yes
Communities & Local Government,DCLG,15/05/2012,Current (non AEF) Grants to Local Authorities,Neighbourhoods,SOUTH OXFORDSHIRE DC,,,,5000200862,Grant Payable by Exchequer,OX10 8HQ,"46,424.00",Yes
Communities & Local Government,DCLG,15/05/2012,Current (non AEF) Grants to Local Authorities,Neighbourhoods,SOUTH RIBBLE BC,,,,5000201050,Grant Payable by Exchequer,PR5 1DH,"25,612.00",Yes
Communities & Local Government,DCLG,15/05/2012,Current (non AEF) Grants to Local Authorities,Neighbourhoods,SOUTH SOMERSET DC,,,,5000200863,Grant Payable by Exchequer,BA20 2DS,"106,553.00",Yes
Communities & Local Government,DCLG,15/05/2012,Current (non AEF) Grants to Local Authorities,Neighbourhoods,SOUTH STAFFORDSHIRE DC,,,,5000200864,Grant Payable by Exchequer,WV8 1PX,"38,964.00",Yes
Communities & Local Government,DCLG,15/05/2012,Current (non AEF) Grants to Local Authorities,Neighbourhoods,SOUTH TYNESIDE COUNCIL,,,,5000201051,Grant Payable by Exchequer,NE33 2RL,"31,346.00",Yes
Communities & Local Government,DCLG,15/05/2012,Current (non AEF) Grants to Local Authorities,Neighbourhoods,SOUTHAMPTON CITY CNCL,,,,5000201052,Grant Payable by Exchequer,SO14 7LF,"142,813.00",Yes
Communities & Local Government,DCLG,15/05/2012,Current (non AEF) Grants to Local Authorities,Neighbourhoods,SOUTHEND ON SEA BC,,,,5000201053,Grant Payable by Exchequer,SS2 6EP,"48,332.00",Yes
Communities & Local Government,DCLG,15/05/2012,Current (non AEF) Grants to Local Authorities,Neighbourhoods,SOUTHWARK LB,,,,5000201054,Grant Payable by Exchequer,SE1 2QH,"396,806.00",Yes
Communities & Local Government,DCLG,15/05/2012,Current (non AEF) Grants to Local Authorities,Neighbourhoods,SPELTHORNE DC,,,,5000200865,Grant Payable by Exchequer,TW18 1XB,"41,405.00",Yes
Communities & Local Government,DCLG,15/05/2012,Current (non AEF) Grants to Local Authorities,Neighbourhoods,ST ALBANS CITY COUNCIL,,,,5000201055,Grant Payable by Exchequer,AL1 3JE,"72,283.00",Yes
Communities & Local Government,DCLG,15/05/2012,Current (non AEF) Grants to Local Authorities,Neighbourhoods,ST EDMUNDSBURY (HSG),,,,5000200866,Grant Payable by Exchequer,IP33 3YS,"42,807.00",Yes
Communities & Local Government,DCLG,15/05/2012,Current (non AEF) Grants to Local Authorities,Neighbourhoods,ST HELENS MBC,,,,5000201056,Grant Payable by Exchequer,WA10 1HP,"53,500.00",Yes
Communities & Local Government,DCLG,15/05/2012,Current (non AEF) Grants to Local Authorities,Neighbourhoods,STAFFORD BC,,,,5000201057,Grant Payable by Exchequer,ST16 3AQ,"33,979.00",Yes
Communities & Local Government,DCLG,15/05/2012,Current (non AEF) Grants to Local Authorities,Neighbourhoods,STAFFORDSHIRE COUNTY CNCL,,,,5000201058,Grant Payable by Exchequer,ST16 2LH,"78,935.00",Yes
Communities & Local Government,DCLG,15/05/2012,Current (non AEF) Grants to Local Authorities,Neighbourhoods,STAFFORDSHIRE MOORLANDS DC,,,,5000200867,Grant Payable by Exchequer,ST13 6HQ,"27,714.00",Yes
Communities & Local Government,DCLG,15/05/2012,Current (non AEF) Grants to Local Authorities,Neighbourhoods,STEVENAGE BC,,,,5000201059,Grant Payable by Exchequer,SG1 1HN,"44,409.00",Yes
Communities & Local Government,DCLG,15/05/2012,Current (non AEF) Grants to Local Authorities,Neighbourhoods,STOCKPORT MBC,,,,5000201060,Grant Payable by Exchequer,SK1 3XE,"49,801.00",Yes
Communities & Local Government,DCLG,15/05/2012,Current (non AEF) Grants to Local Authorities,Neighbourhoods,STOCKTON-ON-TEES BC (HSG),,,,5000200868,Grant Payable by Exchequer,TS23 2YS,"101,168.00",Yes
Communities & Local Government,DCLG,15/05/2012,Current (non AEF) Grants to Local Authorities,Neighbourhoods,STOKE ON TRENT CITY COUNCIL,,,,5000201061,Grant Payable by Exchequer,ST4 1RJ,"124,834.00",Yes
Communities & Local Government,DCLG,15/05/2012,Current (non AEF) Grants to Local Authorities,Neighbourhoods,STRATFORD ON AVON DC,,,,5000201062,Grant Payable by Exchequer,CV37 6HX,"45,716.00",Yes
Communities & Local Government,DCLG,15/05/2012,Current (non AEF) Grants to Local Authorities,Neighbourhoods,STROUD DC (HSG),,,,5000200869,Grant Payable by Exchequer,GL5 4UB,"55,868.00",Yes
Communities & Local Government,DCLG,15/05/2012,Current (non AEF) Grants to Local Authorities,Neighbourhoods,SUFFOLK CC (SOCIAL CARE SERV) (H,,,,5000200870,Grant Payable by Exchequer,IP4 1LH,"106,433.00",Yes
Communities & Local Government,DCLG,15/05/2012,Current (non AEF) Grants to Local Authorities,Neighbourhoods,SUFFOLK COASTAL DC (HSG),,,,5000200871,Grant Payable by Exchequer,IP12 1AU,"40,673.00",Yes
Communities & Local Government,DCLG,15/05/2012,Current (non AEF) Grants to Local Authorities,Neighbourhoods,SURREY COUNTY CNCL,,,,5000201063,Grant Payable by Exchequer,KT1 2EA,"139,392.00",Yes
Communities & Local Government,DCLG,15/05/2012,Current (non AEF) Grants to Local Authorities,Neighbourhoods,SURREY HEATH BC,,,,5000201064,Grant Payable by Exchequer,GU15 3HD,"23,569.00",Yes
Communities & Local Government,DCLG,15/05/2012,Current (non AEF) Grants to Local Authorities,Neighbourhoods,SUTTON LB,,,,5000201065,Grant Payable by Exchequer,SM1 1EA,"111,103.00",Yes
Communities & Local Government,DCLG,15/05/2012,Current (non AEF) Grants to Local Authorities,Neighbourhoods,SWALE BC,,,,5000201066,Grant Payable by Exchequer,ME10 3HT,"91,916.00",Yes
Communities & Local Government,DCLG,15/05/2012,Current (non AEF) Grants to Local Authorities,Neighbourhoods,SWINDON BC,,,,5000201067,Grant Payable by Exchequer,SN1 2JH,"213,134.00",Yes
Communities & Local Government,DCLG,15/05/2012,Current (non AEF) Grants to Local Authorities,Neighbourhoods,TAMESIDE MBC,,,,5000201068,Grant Payable by Exchequer,OL6 6DL,"106,352.00",Yes
Communities & Local Government,DCLG,15/05/2012,Current (non AEF) Grants to Local Authorities,Neighbourhoods,TAMWORTH BOROUGH COUNCIL,,,,5000201069,Grant Payable by Exchequer,B79 7BZ,"21,417.00",Yes
Communities & Local Government,DCLG,15/05/2012,Current (non AEF) Grants to Local Authorities,Neighbourhoods,TANDRIDGE DC,,,,5000200872,Grant Payable by Exchequer,RH8 0BT,"40,629.00",Yes
Communities & Local Government,DCLG,15/05/2012,Current (non AEF) Grants to Local Authorities,Neighbourhoods,TAUNTON DEANE BC,,,,5000200873,Grant Payable by Exchequer,TA1 1HE,"79,619.00",Yes
Communities & Local Government,DCLG,15/05/2012,Current (non AEF) Grants to Local Authorities,Neighbourhoods,TEIGNBRIDGE DC,,,,5000200874,Grant Payable by Exchequer,TQ12 4XX,"74,587.00",Yes
Communities & Local Government,DCLG,15/05/2012,Current (non AEF) Grants to Local Authorities,Neighbourhoods,TELFORD & WREKIN DC,,,,5000201070,Grant Payable by Exchequer,TF3 4LF,"119,181.00",Yes
Communities & Local Government,DCLG,15/05/2012,Current (non AEF) Grants to Local Authorities,Neighbourhoods,TENDRING DC,,,,5000200875,Grant Payable by Exchequer,CO15 1SE,"51,369.00",Yes
Communities & Local Government,DCLG,15/05/2012,Current (non AEF) Grants to Local Authorities,Neighbourhoods,TEST VALLEY BC,,,,5000200876,Grant Payable by Exchequer,SP10 3AJ,"66,576.00",Yes
Communities & Local Government,DCLG,15/05/2012,Current (non AEF) Grants to Local Authorities,Neighbourhoods,TEWKESBURY BC,,,,5000200877,Grant Payable by Exchequer,GL20 5TT,"71,784.00",Yes
Communities & Local Government,DCLG,15/05/2012,Current (non AEF) Grants to Local Authorities,Neighbourhoods,THANET DC,,,,5000200878,Grant Payable by Exchequer,CT8 1XZ,"80,021.00",Yes
Communities & Local Government,DCLG,15/05/2012,Current (non AEF) Grants to Local Authorities,Neighbourhoods,THREE RIVERS DC,,,,5000201071,Grant Payable by Exchequer,WD3 1RL,"26,771.00",Yes
Communities & Local Government,DCLG,15/05/2012,Current (non AEF) Grants to Local Authorities,Neighbourhoods,THURROCK  BOROUGH COUNCIL,,,,5000201072,Grant Payable by Exchequer,RM17 6LT,"53,826.00",Yes
Communities & Local Government,DCLG,15/05/2012,Current (non AEF) Grants to Local Authorities,Neighbourhoods,TONBRIDGE & MALLING BC,,,,5000200879,Grant Payable by Exchequer,ME19 6LZ,"93,767.00",Yes
Communities & Local Government,DCLG,15/05/2012,Current (non AEF) Grants to Local Authorities,Neighbourhoods,TORBAY BC,,,,5000201073,Grant Payable by Exchequer,TQ1 3DR,"83,859.00",Yes
Communities & Local Government,DCLG,15/05/2012,Current (non AEF) Grants to Local Authorities,Neighbourhoods,TORRIDGE DC,,,,5000200880,Grant Payable by Exchequer,EX39 2HT,"51,109.00",Yes
Communities & Local Government,DCLG,15/05/2012,Current (non AEF) Grants to Local Authorities,Neighbourhoods,TOWER HAMLETS LB (HSG),,,,5000200881,Grant Payable by Exchequer,E14 2BG,"774,179.00",Yes
Communities & Local Government,DCLG,15/05/2012,Current (non AEF) Grants to Local Authorities,Neighbourhoods,TRAFFORD MBC,,,,5000201074,Grant Payable by Exchequer,M32 0YY,"73,129.00",Yes
Communities & Local Government,DCLG,15/05/2012,Current (non AEF) Grants to Local Authorities,Neighbourhoods,TUNBRIDGE WELLS BC,,,,5000200882,Grant Payable by Exchequer,TN1 1RS,"45,762.00",Yes
Communities & Local Government,DCLG,15/05/2012,Current (non AEF) Grants to Local Authorities,Neighbourhoods,UTTLESFORD DC,,,,5000200883,Grant Payable by Exchequer,CB11 4ER,"95,562.00",Yes
Communities & Local Government,DCLG,15/05/2012,Current (non AEF) Grants to Local Authorities,Neighbourhoods,VALE OF WHITE HORSE DC,,,,5000200884,Grant Payable by Exchequer,OX14 3JH,"76,397.00",Yes
Communities & Local Government,DCLG,15/05/2012,Current (non AEF) Grants to Local Authorities,Neighbourhoods,WALSALL MBC,,,,5000201076,Grant Payable by Exchequer,WS1 1TW,"153,669.00",Yes
Communities & Local Government,DCLG,15/05/2012,Current (non AEF) Grants to Local Authorities,Neighbourhoods,WALTHAM FOREST LB,,,,5000201077,Grant Payable by Exchequer,E17 4JA,"109,901.00",Yes
Communities & Local Government,DCLG,15/05/2012,Current (non AEF) Grants to Local Authorities,Neighbourhoods,WANDSWORTH LB,,,,5000201078,Grant Payable by Exchequer,SW18 2PU,"215,231.00",Yes
Communities & Local Government,DCLG,15/05/2012,Current (non AEF) Grants to Local Authorities,Neighbourhoods,WARRINGTON BC,,,,5000201079,Grant Payable by Exchequer,WA1 1BN,"130,032.00",Yes
Communities & Local Government,DCLG,15/05/2012,Current (non AEF) Grants to Local Authorities,Neighbourhoods,WARWICK,,,,5000201080,Grant Payable by Exchequer,CV32 4NW,"62,635.00",Yes
Communities & Local Government,DCLG,15/05/2012,Current (non AEF) Grants to Local Authorities,Neighbourhoods,WARWICKSHIRE COUNTY CNCL,,,,5000201081,Grant Payable by Exchequer,CV34 4RH,"59,494.00",Yes
Communities & Local Government,DCLG,15/05/2012,Current (non AEF) Grants to Local Authorities,Neighbourhoods,WATFORD COUNCIL,,,,5000201082,Grant Payable by Exchequer,WD17 3EX,"116,119.00",Yes
Communities & Local Government,DCLG,15/05/2012,Current (non AEF) Grants to Local Authorities,Neighbourhoods,WAVENEY DISTRICT COUNCIL,,Large,,5000200885,Grant Payable by Exchequer,NR32 1HS,"40,653.00",Yes
Communities & Local Government,DCLG,15/05/2012,Current (non AEF) Grants to Local Authorities,Neighbourhoods,WAVERLEY BC V177,,,,5000200886,Grant Payable by Exchequer,GU7 1HR,"49,604.00",Yes
Communities & Local Government,DCLG,15/05/2012,Current (non AEF) Grants to Local Authorities,Neighbourhoods,WEALDEN DC,,,,5000200887,Grant Payable by Exchequer,BN22 9LN,"109,598.00",Yes
Communities & Local Government,DCLG,15/05/2012,Current (non AEF) Grants to Local Authorities,Neighbourhoods,WELLINGBOROUGH,,,,5000201083,Grant Payable by Exchequer,NN8 1BN,"35,271.00",Yes
Communities & Local Government,DCLG,15/05/2012,Current (non AEF) Grants to Local Authorities,Neighbourhoods,WELWYN HATFIELD COUNCIL,,,,5000200888,Grant Payable by Exchequer,AL8 6AE,"49,496.00",Yes
Communities & Local Government,DCLG,15/05/2012,Current (non AEF) Grants to Local Authorities,Neighbourhoods,WEST BERKSHIRE COUNCIL,,,,5000201084,Grant Payable by Exchequer,RG14 2AF,"70,530.00",Yes
Communities & Local Government,DCLG,15/05/2012,Current (non AEF) Grants to Local Authorities,Neighbourhoods,WEST DEVON BC,,,,5000200889,Grant Payable by Exchequer,PL19 0BZ,"68,349.00",Yes
Communities & Local Government,DCLG,15/05/2012,Current (non AEF) Grants to Local Authorities,Neighbourhoods,WEST DORSET DC,,,,5000200890,Grant Payable by Exchequer,DT1 1UZ,"48,275.00",Yes
Communities & Local Government,DCLG,15/05/2012,Current (non AEF) Grants to Local Authorities,Neighbourhoods,WEST LANCASHIRE BC,,,,5000201085,Grant Payable by Exchequer,L39 2DF,"16,787.00",Yes
Communities & Local Government,DCLG,15/05/2012,Current (non AEF) Grants to Local Authorities,Neighbourhoods,WEST LINDSEY DC,,,,5000200891,Grant Payable by Exchequer,DN21 2NA,"61,282.00",Yes
Communities & Local Government,DCLG,15/05/2012,Current (non AEF) Grants to Local Authorities,Neighbourhoods,WEST OXFORDSHIRE DC,,,,5000200892,Grant Payable by Exchequer,OX28 1NB,"51,308.00",Yes
Communities & Local Government,DCLG,15/05/2012,Current (non AEF) Grants to Local Authorities,Neighbourhoods,WEST SOMERSET DC,,,,5000200893,Grant Payable by Exchequer,TA4 4QA,"18,269.00",Yes
Communities & Local Government,DCLG,15/05/2012,Current (non AEF) Grants to Local Authorities,Neighbourhoods,WEST SUSSEX CC,,,,5000201086,Grant Payable by Exchequer,PO19 1RG,"99,655.00",Yes
Communities & Local Government,DCLG,15/05/2012,Current (non AEF) Grants to Local Authorities,Neighbourhoods,WESTMINSTER CITY CNCL,,,,5000201087,Grant Payable by Exchequer,SW1E 6QP,"391,092.00",Yes
Communities & Local Government,DCLG,15/05/2012,Current (non AEF) Grants to Local Authorities,Neighbourhoods,WEYMOUTH & PORTLAND BC,,,,5000201088,Grant Payable by Exchequer,DT4 8TA,"30,233.00",Yes
